Workbook

Sheet zircon U-Pb-Hf-O dating results
A1: Supplementary Data 3: Analytical results of zircon U-Pb-Hf-O dating for migmatite and leucosome samples in the Huangshuihe Group
A2: Spot analysis | B2: Concentr. (ppm) | D2: Th/U | E2: r/c a | F2: SIMS U-Th-Pb isotopic ratios and ages (Ma) | R2: Conc. b | S2: Age concordance c | T2: Concordia age (Ma)d | U2: 1σ | V2: SIMS | AB2: LA-MC-ICP-MS Lu-Hf isotopic compositions e
B3: Th | C3: U | F3: 207Pb/206Pb | G3: 1σ | H3: 207Pb/235U | I3: 1σ | J3: 206Pb/238U | K3: 1σ | L3: 207Pb/206Pb | M3: 1σ | N3: 207Pb/235U | O3: 1σ | P3: 206Pb/238U | Q3: 1σ | R3: Y/N | S3: % | V3: δ18O | W3: 1σ | X3: 178Hf/177Hf | Y3: 2SE | Z3: 180Hf/177Hf | AA3: 2SE | AB3: 176Yb/177Hf | AC3: 2SE | AD3: 176Lu/177Hf | AE3: 2SE | AF3: 176Hf/177Hf | AG3: 2SE | AH3: 176Hf/177Hfi | AI3: εHf(0) | AJ3: εHf(t=206Pb/238U age) f | AK3: 2SE | AL3: εHf(t=850 Ma) f | AM3: 2SE | AN3: TDM1 (Ma) g | AO3: TDM2 (Ma) h | AP3: 2SE
A4: 16YX-1-1, migmatite
A5: 16YX-1-1@1 | B5: 62 | C5: 88 | D5: 0.708 | E5: c | F5: 0.06267 | G5: 0.0062 | H5: 1.18134 | I5: 0.1174 | J5: 0.1367 | K5: 0.0021 | L5: 697.1 | M5: 196.4 | N5: 791.9 | O5: 56.2 | P5: 826.0 | Q5: 12.0 | R5: Y | S5: =ABS(L5-P5)*100/L5 -> 18 | V5: 6.51 | W5: 0.21 | X5: 1.467250 | Y5: 0.000054 | Z5: 1.886835 | AA5: 0.000135 | AB5: 0.040189 | AC5: 0.000720 | AD5: 0.001620 | AE5: 0.000028 | AF5: 0.282524 | AG5: 0.000025 | AH5: 0.282499 | AI5: -9.2 | AJ5: 8.4 | AK5: 0.9 | AL5: 8.9 | AM5: 0.9 | AN5: 1047 | AO5: 1179 | AP5: 36
A6: 16YX-1-1@3 | B6: 63 | C6: 72 | D6: 0.877 | E6: c | F6: 0.06675 | G6: 0.0010 | H6: 1.29852 | I6: 0.0279 | J6: 0.1411 | K6: 0.0021 | L6: 830.0 | M6: 31.7 | N6: 845.1 | O6: 12.4 | P6: 850.8 | Q6: 12.0 | R6: Y | S6: 3 | T6: 851 | U6: 12.0 | V6: 8.95 | W6: 0.40 | X6: 1.467142 | Y6: 0.000052 | Z6: 1.886993 | AA6: 0.000142 | AB6: 0.040569 | AC6: 0.000402 | AD6: 0.001538 | AE6: 0.000015 | AF6: 0.282430 | AG6: 0.000029 | AH6: 0.282405 | AI6: -12.6 | AJ6: 5.6 | AK6: 1.0 | AL6: 5.6 | AM6: 1.0 | AN6: 1178 | AO6: 1374 | AP6: 41
A7: 16YX-1-1@4 | B7: 221 | C7: 308 | D7: 0.719 | E7: c | F7: 0.06670 | G7: 0.0004 | H7: 1.33619 | I7: 0.0226 | J7: 0.1453 | K7: 0.0023 | L7: 828.3 | M7: 11.9 | N7: 861.6 | O7: 9.9 | P7: 874.6 | Q7: 13.0 | R7: Y | S7: 6 | T7: 875 | U7: 13.0 | V7: 6.68 | W7: 0.22 | X7: 1.467221 | Y7: 0.000044 | Z7: 1.886803 | AA7: 0.000099 | AB7: 0.026083 | AC7: 0.001266 | AD7: 0.001078 | AE7: 0.000049 | AF7: 0.282472 | AG7: 0.000022 | AH7: 0.282454 | AI7: -11.1 | AJ7: 7.9 | AK7: 0.8 | AL7: 7.3 | AM7: 0.8 | AN7: 1105 | AO7: 1248 | AP7: 31
A8: 16YX-1-1@9 | B8: 591 | C8: 985 | D8: 0.600 | E8: c | F8: 0.06710 | G8: 0.0004 | H8: 1.29790 | I8: 0.0212 | J8: 0.1403 | K8: 0.0021 | L8: 841.0 | M8: 13.2 | N8: 844.8 | O8: 9.4 | P8: 846.2 | Q8: 11.9 | R8: Y | S8: 1 | T8: 846 | U8: 11.9 | V8: 6.20 | W8: 0.27 | X8: 1.467243 | Y8: 0.000059 | Z8: 1.887042 | AA8: 0.000117 | AB8: 0.028866 | AC8: 0.000308 | AD8: 0.001102 | AE8: 0.000014 | AF8: 0.282256 | AG8: 0.000023 | AH8: 0.282239 | AI8: -18.7 | AJ8: -0.4 | AK8: 0.8 | AL8: -0.3 | AM8: 0.8 | AN8: 1408 | AO8: 1753 | AP8: 32
A9: 16YX-1-1@14 | B9: 173 | C9: 177 | D9: 0.979 | E9: c | F9: 0.06333 | G9: 0.0022 | H9: 1.22889 | I9: 0.0463 | J9: 0.1407 | K9: 0.0021 | L9: 719.4 | M9: 71.7 | N9: 813.8 | O9: 21.3 | P9: 848.8 | Q9: 11.9 | R9: Y | S9: 18 | V9: 7.36 | W9: 0.31 | X9: 1.467092 | Y9: 0.000059 | Z9: 1.886800 | AA9: 0.000160 | AB9: 0.028918 | AC9: 0.000187 | AD9: 0.001169 | AE9: 0.000006 | AF9: 0.282295 | AG9: 0.000026 | AH9: 0.282276 | AI9: -17.3 | AJ9: 1.0 | AK9: 0.9 | AL9: 1.0 | AM9: 0.9 | AN9: 1357 | AO9: 1668 | AP9: 37
A10: 16YX-1-1@15 | B10: 283 | C10: 432 | D10: 0.654 | E10: c | F10: 0.06752 | G10: 0.0005 | H10: 1.34163 | I10: 0.0223 | J10: 0.1441 | K10: 0.0022 | L10: 853.9 | M10: 14.7 | N10: 863.9 | O10: 9.7 | P10: 867.9 | Q10: 12.2 | R10: Y | S10: 2 | T10: 868 | U10: 12.2 | V10: 6.98 | W10: 0.34 | X10: 1.467123 | Y10: 0.000053 | Z10: 1.886809 | AA10: 0.000123 | AB10: 0.029218 | AC10: 0.000363 | AD10: 0.001183 | AE10: 0.000015 | AF10: 0.282532 | AG10: 0.000021 | AH10: 0.282512 | AI10: -9.0 | AJ10: 9.8 | AK10: 0.8 | AL10: 9.4 | AM10: 0.8 | AN10: 1024 | AO10: 1120 | AP10: 30
A11: 16YX-1-1@16 | E11: c | V11: 6.93 | W11: 0.32
A12: 16YX-1-1@17 | B12: 319 | C12: 398 | D12: 0.801 | E12: c | F12: 0.06673 | G12: 0.0006 | H12: 1.28685 | I12: 0.0238 | J12: 0.1399 | K12: 0.0022 | L12: 829.4 | M12: 19.5 | N12: 839.9 | O12: 10.6 | P12: 843.9 | Q12: 12.6 | R12: Y | S12: =ABS(L12-P12)*100/L12 -> 2 | T12: 844 | U12: 12.6 | V12: 7.18 | W12: 0.21 | X12: 1.467166 | Y12: 0.000053 | Z12: 1.886804 | AA12: 0.000100 | AB12: 0.079811 | AC12: 0.002076 | AD12: 0.002945 | AE12: 0.000078 | AF12: 0.282609 | AG12: 0.000027 | AH12: 0.282562 | AI12: -6.2 | AJ12: 11.0 | AK12: 0.9 | AL12: 11.1 | AM12: 0.9 | AN12: 960 | AO12: 1023 | AP12: 40
A13: 16YX-1-1@23 | E13: c | V13: 9.94 | W13: 0.24
A14: 16YX-1-1@24 | B14: 235 | C14: 396 | D14: 0.593 | E14: c | F14: 0.06790 | G14: 0.0006 | H14: 1.37764 | I14: 0.0238 | J14: 0.1472 | K14: 0.0022 | L14: 865.4 | M14: 17.7 | N14: 879.4 | O14: 10.2 | P14: 885.0 | Q14: 12.4 | R14: Y | S14: =ABS(L14-P14)*100/L14 -> 2 | T14: 885 | U14: 12.4 | V14: 6.85 | W14: 0.34 | X14: 1.467190 | Y14: 0.000047 | Z14: 1.886886 | AA14: 0.000106 | AB14: 0.037464 | AC14: 0.000907 | AD14: 0.001454 | AE14: 0.000038 | AF14: 0.282431 | AG14: 0.000022 | AH14: 0.282406 | AI14: -12.5 | AJ14: 6.4 | AK14: 0.8 | AL14: 5.7 | AM14: 0.8 | AN14: 1175 | AO14: 1350 | AP14: 32
A15: 16YX-1-1@25 | B15: 327 | C15: 511 | D15: 0.641 | E15: c | F15: 0.06733 | G15: 0.0004 | H15: 1.31534 | I15: 0.0214 | J15: 0.1417 | K15: 0.0021 | L15: 847.9 | M15: 13.1 | N15: 852.5 | O15: 9.4 | P15: 854.2 | Q15: 12.0 | R15: Y | S15: =ABS(L15-P15)*100/L15 -> 1 | T15: 854 | U15: 12.0 | V15: 6.26 | W15: 0.29 | X15: 1.467146 | Y15: 0.000054 | Z15: 1.886998 | AA15: 0.000131 | AB15: 0.037521 | AC15: 0.000505 | AD15: 0.001385 | AE15: 0.000018 | AF15: 0.282302 | AG15: 0.000024 | AH15: 0.282279 | AI15: -17.1 | AJ15: 1.2 | AK15: 0.8 | AL15: 1.1 | AM15: 0.8 | AN15: 1355 | AO15: 1657 | AP15: 33
A16: 16YX-1-1@26 | B16: 85 | C16: 91 | D16: 0.936 | E16: c | F16: 0.06106 | G16: 0.0022 | H16: 1.15475 | I16: 0.0443 | J16: 0.1372 | K16: 0.0021 | L16: 641.2 | M16: 74.1 | N16: 779.5 | O16: 21.1 | P16: 828.6 | Q16: 11.7 | R16: N | S16: =ABS(L16-P16)*100/L16 -> 29 | V16: 7.14 | W16: 0.34 | X16: 1.467220 | Y16: 0.000056 | Z16: 1.886920 | AA16: 0.000133 | AB16: 0.031664 | AC16: 0.001044 | AD16: 0.001239 | AE16: 0.000040 | AF16: 0.282405 | AG16: 0.000025 | AH16: 0.282386 | AI16: -13.4 | AJ16: 4.4 | AK16: 0.9 | AL16: 4.9 | AM16: 0.9 | AN16: 1204 | AO16: 1432 | AP16: 35
A17: 16YX-1-1@28 | B17: 930 | C17: 862 | D17: 1.078 | E17: c | F17: 0.06677 | G17: 0.0007 | H17: 1.23521 | I17: 0.0225 | J17: 0.1342 | K17: 0.0020 | L17: 830.7 | M17: 21.4 | N17: 816.7 | O17: 10.3 | P17: 811.6 | Q17: 11.5 | R17: Y | S17: =ABS(L17-P17)*100/L17 -> 2 | T17: 812 | U17: 11.5 | V17: 7.12 | W17: 0.38 | X17: 1.467244 | Y17: 0.000050 | Z17: 1.886859 | AA17: 0.000105 | AB17: 0.032668 | AC17: 0.001768 | AD17: 0.001182 | AE17: 0.000065 | AF17: 0.282350 | AG17: 0.000022 | AH17: 0.282332 | AI17: -15.4 | AJ17: 2.1 | AK17: 0.8 | AL17: 3.0 | AM17: 0.8 | AN17: 1280 | AO17: 1566 | AP17: 31
A18: 16YX-1-1@29 | E18: c | V18: 8.18 | W18: 0.29
A19: 16YX-1-1@30 | E19: c | V19: 10.01 | W19: 0.34
A20: 16YX-1-1@31 | E20: c | V20: 6.86 | W20: 0.33
A21: 16YX-1-1@32 | B21: 189 | C21: 272 | D21: 0.695 | E21: c | F21: 0.06770 | G21: 0.0006 | H21: 1.31524 | I21: 0.0229 | J21: 0.1409 | K21: 0.0021 | L21: 859.3 | M21: 18.1 | N21: 852.4 | O21: 10.1 | P21: 849.8 | Q21: 12.0 | R21: Y | S21: =ABS(L21-P21)*100/L21 -> 1 | T21: 850 | U21: 12.0 | V21: 6.47 | W21: 0.31 | X21: 1.467104 | Y21: 0.000036 | Z21: 1.886846 | AA21: 0.000077 | AB21: 0.033355 | AC21: 0.000446 | AD21: 0.001306 | AE21: 0.000019 | AF21: 0.282335 | AG21: 0.000014 | AH21: 0.282314 | AI21: -15.9 | AJ21: 2.3 | AK21: 0.5 | AL21: 2.3 | AM21: 0.5 | AN21: 1306 | AO21: 1582 | AP21: 20
A22: 16YX-1-1@33 | B22: 156 | C22: 285 | D22: 0.548 | E22: c | F22: 0.06769 | G22: 0.0007 | H22: 1.31430 | I22: 0.0244 | J22: 0.1408 | K22: 0.0021 | L22: 859.2 | M22: 22.5 | N22: 852.0 | O22: 10.8 | P22: 849.3 | Q22: 11.9 | R22: Y | S22: 1 | T22: 849 | U22: 11.9 | V22: 6.15 | W22: 0.32 | X22: 1.467092 | Y22: 0.000057 | Z22: 1.886976 | AA22: 0.000118 | AB22: 0.043285 | AC22: 0.001711 | AD22: 0.001721 | AE22: 0.000068 | AF22: 0.282524 | AG22: 0.000025 | AH22: 0.282496 | AI22: -9.2 | AJ22: 8.8 | AK22: 0.9 | AL22: 8.8 | AM22: 0.9 | AN22: 1050 | AO22: 1169 | AP22: 36
A23: 16YX-1-1@2 | B23: 8 | C23: 272 | D23: 0.028 | E23: r | F23: 0.06600 | G23: 0.0004 | H23: 1.23388 | I23: 0.0202 | J23: 0.1356 | K23: 0.0020 | L23: 806.3 | M23: 13.1 | N23: 816.1 | O23: 9.2 | P23: 819.7 | Q23: 11.6 | R23: Y | S23: 2 | T23: 820 | U23: 11.6 | V23: 12.28 | W23: 0.19 | X23: 1.467180 | Y23: 0.000052 | Z23: 1.887004 | AA23: 0.000097 | AB23: 0.025292 | AC23: 0.000882 | AD23: 0.000942 | AE23: 0.000035 | AF23: 0.282305 | AG23: 0.000021 | AH23: 0.282291 | AI23: -17.0 | AJ23: 0.9 | AK23: 0.7 | AL23: 1.5 | AM23: 0.7 | AN23: 1334 | AO23: 1653 | AP23: 29
A24: 16YX-1-1@5 | B24: 15 | C24: 520 | D24: 0.029 | E24: r | F24: 0.06949 | G24: 0.0024 | H24: 1.13382 | I24: 0.0431 | J24: 0.1183 | K24: 0.0020 | L24: 913.4 | M24: 68.6 | N24: 769.6 | O24: 20.7 | P24: 720.9 | Q24: 11.5 | R24: N | S24: 21 | V24: 12.93 | W24: 0.25 | X24: 1.467163 | Y24: 0.000045 | Z24: 1.886931 | AA24: 0.000109 | AB24: 0.025140 | AC24: 0.000384 | AD24: 0.000966 | AE24: 0.000013 | AF24: 0.282319 | AG24: 0.000023 | AH24: 0.282306 | AI24: -16.5 | AJ24: -0.8 | AK24: 0.8 | AL24: 2.0 | AM24: 0.8 | AN24: 1315 | AO24: 1681 | AP24: 32
A25: 16YX-1-1@6 | B25: 11 | C25: 526 | D25: 0.021 | E25: r | F25: 0.06629 | G25: 0.0003 | H25: 1.27381 | I25: 0.0211 | J25: 0.1394 | K25: 0.0022 | L25: 815.5 | M25: 8.4 | N25: 834.1 | O25: 9.5 | P25: 841.1 | Q25: 12.7 | R25: Y | S25: 3 | T25: 841 | U25: 12.7 | V25: 13.13 | W25: 0.23 | X25: 1.467149 | Y25: 0.000044 | Z25: 1.886720 | AA25: 0.000104 | AB25: 0.037679 | AC25: 0.001816 | AD25: 0.001436 | AE25: 0.000074 | AF25: 0.282378 | AG25: 0.000019 | AH25: 0.282355 | AI25: -14.4 | AJ25: 3.6 | AK25: 0.7 | AL25: 3.8 | AM25: 0.7 | AN25: 1249 | AO25: 1494 | AP25: 27
A26: 16YX-1-1@7 | B26: 21 | C26: 1378 | D26: 0.015 | E26: r | F26: 0.06665 | G26: 0.0002 | H26: 1.23957 | I26: 0.0196 | J26: 0.1349 | K26: 0.0021 | L26: 826.8 | M26: 6.9 | N26: 818.7 | O26: 8.9 | P26: 815.7 | Q26: 11.9 | R26: Y | S26: 1 | T26: 816 | U26: 11.9 | V26: 12.55 | W26: 0.51 | X26: 1.467213 | Y26: 0.000043 | Z26: 1.886874 | AA26: 0.000099 | AB26: 0.026963 | AC26: 0.000161 | AD26: 0.000922 | AE26: 0.000005 | AF26: 0.282345 | AG26: 0.000016 | AH26: 0.282331 | AI26: -15.6 | AJ26: 2.2 | AK26: 0.6 | AL26: 2.9 | AM26: 0.6 | AN26: 1278 | AO26: 1566 | AP26: 23
A27: 16YX-1-1@8 | B27: 31 | C27: 461 | D27: 0.067 | E27: r | F27: 0.06652 | G27: 0.0008 | H27: 1.21102 | I27: 0.0295 | J27: 0.1320 | K27: 0.0028 | L27: 822.6 | M27: 24.1 | N27: 805.7 | O27: 13.7 | P27: 799.5 | Q27: 16.1 | R27: Y | S27: 3 | T27: 800 | U27: 16.1 | V27: 12.78 | W27: 0.29 | X27: 1.467166 | Y27: 0.000060 | Z27: 1.886828 | AA27: 0.000125 | AB27: 0.045052 | AC27: 0.002630 | AD27: 0.001782 | AE27: 0.000109 | AF27: 0.282446 | AG27: 0.000022 | AH27: 0.282419 | AI27: -12.0 | AJ27: 4.9 | AK27: 0.8 | AL27: 6.0 | AM27: 0.8 | AN27: 1164 | AO27: 1377 | AP27: 32
A28: 16YX-1-1@10 | B28: 45 | C28: 666 | D28: 0.068 | E28: r | F28: 0.06658 | G28: 0.0005 | H28: 1.29045 | I28: 0.0216 | J28: 0.1406 | K28: 0.0021 | L28: 824.6 | M28: 15.4 | N28: 841.5 | O28: 9.6 | P28: 847.9 | Q28: 11.9 | R28: Y | S28: 3 | T28: 848 | U28: 11.9 | V28: 9.41 | W28: 0.24 | X28: 1.467140 | Y28: 0.000048 | Z28: 1.887031 | AA28: 0.000110 | AB28: 0.021794 | AC28: 0.000401 | AD28: 0.000830 | AE28: 0.000014 | AF28: 0.282286 | AG28: 0.000019 | AH28: 0.282272 | AI28: -17.7 | AJ28: 0.8 | AK28: 0.7 | AL28: 0.9 | AM28: 0.7 | AN28: 1358 | AO28: 1677 | AP28: 27
A29: 16YX-1-1@11 | E29: r | V29: 12.60 | W29: 0.22
A30: 16YX-1-1@12 | E30: r | V30: 13.13 | W30: 0.18
A31: 16YX-1-1@13 | B31: 31 | C31: 906 | D31: 0.034 | E31: r | F31: 0.06825 | G31: 0.0021 | H31: 1.20431 | I31: 0.0481 | J31: 0.1280 | K31: 0.0032 | L31: 876.1 | M31: 62.9 | N31: 802.6 | O31: 22.4 | P31: 776.4 | Q31: 18.4 | R31: Y | S31: =ABS(L31-P31)*100/L31 -> 11 | V31: 13.14 | W31: 0.39 | X31: 1.467214 | Y31: 0.000053 | Z31: 1.886654 | AA31: 0.000112 | AB31: 0.036128 | AC31: 0.000867 | AD31: 0.001343 | AE31: 0.000036 | AF31: 0.282366 | AG31: 0.000016 | AH31: 0.282346 | AI31: -14.8 | AJ31: 1.8 | AK31: 0.6 | AL31: 3.4 | AM31: 0.6 | AN31: 1263 | AO31: 1557 | AP31: 22
A32: 16YX-1-1@18 | B32: 28 | C32: 820 | D32: 0.034 | E32: r | F32: 0.06677 | G32: 0.0006 | H32: 1.23751 | I32: 0.0219 | J32: 0.1344 | K32: 0.0020 | L32: 830.6 | M32: 19.2 | N32: 817.8 | O32: 10.0 | P32: 813.0 | Q32: 11.5 | R32: Y | S32: =ABS(L32-P32)*100/L32 -> 2 | T32: 813 | U32: 11.5 | V32: 12.91 | W32: 0.23 | X32: 1.467113 | Y32: 0.000036 | Z32: 1.887013 | AA32: 0.000081 | AB32: 0.039650 | AC32: 0.001136 | AD32: 0.001564 | AE32: 0.000048 | AF32: 0.282336 | AG32: 0.000017 | AH32: 0.282312 | AI32: -15.9 | AJ32: 1.5 | AK32: 0.6 | AL32: 2.3 | AM32: 0.6 | AN32: 1313 | AO32: 1609 | AP32: 25
A33: 16YX-1-1@19 | B33: 39 | C33: 636 | D33: 0.061 | E33: r | F33: 0.06663 | G33: 0.0004 | H33: 1.26134 | I33: 0.0204 | J33: 0.1373 | K33: 0.0021 | L33: 826.2 | M33: 12.3 | N33: 828.5 | O33: 9.2 | P33: 829.4 | Q33: 11.7 | R33: Y | S33: =ABS(L33-P33)*100/L33 -> 0 | T33: 829 | U33: 11.7 | V33: 12.84 | W33: 0.25 | X33: 1.467182 | Y33: 0.000042 | Z33: 1.886940 | AA33: 0.000086 | AB33: 0.017498 | AC33: 0.000643 | AD33: 0.000677 | AE33: 0.000023 | AF33: 0.282272 | AG33: 0.000019 | AH33: 0.282262 | AI33: -18.1 | AJ33: 0.0 | AK33: 0.7 | AL33: 0.5 | AM33: 0.7 | AN33: 1371 | AO33: 1713 | AP33: 26
A34: 16YX-1-1@20 | B34: 112 | C34: 3883 | D34: 0.029 | E34: r | F34: 0.06706 | G34: 0.0004 | H34: 1.30331 | I34: 0.0215 | J34: 0.1409 | K34: 0.0022 | L34: 839.8 | M34: 11.5 | N34: 847.2 | O34: 9.5 | P34: 850.0 | Q34: 12.4 | R34: Y | S34: =ABS(L34-P34)*100/L34 -> 1 | T34: 850 | U34: 12.4 | V34: 13.28 | W34: 0.31 | X34: 1.467172 | Y34: 0.000033 | Z34: 1.887035 | AA34: 0.000072 | AB34: 0.026234 | AC34: 0.000424 | AD34: 0.000959 | AE34: 0.000016 | AF34: 0.282310 | AG34: 0.000013 | AH34: 0.282294 | AI34: -16.8 | AJ34: 1.7 | AK34: 0.5 | AL34: 1.7 | AM34: 0.5 | AN34: 1328 | AO34: 1626 | AP34: 18
A35: 16YX-1-1@21 | E35: r | V35: 13.04 | W35: 0.29 | X35: 1.467169 | Y35: 0.000057 | Z35: 1.886915 | AA35: 0.000123
A36: 16YX-1-1@22 | B36: 139 | C36: 8781 | D36: 0.016 | E36: r | F36: 0.06861 | G36: 0.0014 | H36: 1.25184 | I36: 0.0627 | J36: 0.1323 | K36: 0.0061 | L36: 886.9 | M36: 40.8 | N36: 824.2 | O36: 28.7 | P36: 801.2 | Q36: 34.7 | R36: Y | S36: =ABS(L36-P36)*100/L36 -> 10 | T36: 801 | U36: 34.7 | V36: 13.13 | W36: 0.24 | X36: 1.467142 | Y36: 0.000034 | Z36: 1.886924 | AA36: 0.000077 | AB36: 0.050875 | AC36: 0.001337 | AD36: 0.001864 | AE36: 0.000050 | AF36: 0.282357 | AG36: 0.000015 | AH36: 0.282329 | AI36: -15.1 | AJ36: 1.8 | AK36: 0.5 | AL36: 2.8 | AM36: 0.5 | AN36: 1294 | AO36: 1580 | AP36: 22
A37: 16YX-1-1@27 | B37: 36 | C37: 397 | D37: 0.090 | E37: r | F37: 0.06663 | G37: 0.0010 | H37: 1.17433 | I37: 0.0420 | J37: 0.1278 | K37: 0.0041 | L37: 826.3 | M37: 31.1 | N37: 788.7 | O37: 19.8 | P37: 775.4 | Q37: 23.7 | R37: Y | S37: =ABS(L37-P37)*100/L37 -> 6 | T37: 775 | U37: 23.7 | V37: 12.90 | W37: 0.37 | X37: 1.467162 | Y37: 0.000042 | Z37: 1.887067 | AA37: 0.000086 | AB37: 0.023653 | AC37: 0.000139 | AD37: 0.000957 | AE37: 0.000005 | AF37: 0.282379 | AG37: 0.000017 | AH37: 0.282365 | AI37: -14.4 | AJ37: 2.5 | AK37: 0.6 | AL37: 2.5 | AM37: 0.6 | AN37: 1232 | AO37: 1515 | AP37: 24
A39: 16YX-4-1, migmatite
A40: 16YX-4-1@1 | B40: 79 | C40: 74 | D40: 1.060 | E40: c | F40: 0.06718 | G40: 0.0007 | H40: 1.29683 | I40: 0.0233 | J40: 0.1400 | K40: 0.0021 | L40: 843.4 | M40: 20.4 | N40: 844.3 | O40: 10.4 | P40: 844.7 | Q40: 11.9 | R40: Y | S40: =ABS(L40-P40)*100/L40 -> 0 | T40: 845 | U40: 11.9 | V40: 6.55 | W40: 0.40 | X40: 1.467181 | Y40: 0.000044 | Z40: 1.887018 | AA40: 0.000100 | AB40: 0.030041 | AC40: 0.000765 | AD40: 0.001201 | AE40: 0.000028 | AF40: 0.282354 | AG40: 0.000016 | AH40: 0.282335 | AI40: -15.2 | AJ40: 3.0 | AK40: 0.6 | AL40: 3.1 | AM40: 0.6 | AN40: 1274 | AO40: 1537 | AP40: 23
A41: 16YX-4-1@2 | B41: 44 | C41: 122 | D41: 0.360 | E41: c | F41: 0.06724 | G41: 0.0007 | H41: 1.27934 | I41: 0.0238 | J41: 0.1380 | K41: 0.0021 | L41: 845.2 | M41: 22.6 | N41: 836.6 | O41: 10.6 | P41: 833.3 | Q41: 11.7 | R41: Y | S41: 1 | T41: 833 | U41: 11.7 | V41: 6.28 | W41: 0.34 | X41: 1.467173 | Y41: 0.000041 | Z41: 1.886906 | AA41: 0.000088 | AB41: 0.025263 | AC41: 0.000394 | AD41: 0.000989 | AE41: 0.000014 | AF41: 0.282304 | AG41: 0.000018 | AH41: 0.282288 | AI41: -17.0 | AJ41: 1.1 | AK41: 0.6 | AL41: 1.4 | AM41: 0.6 | AN41: 1338 | AO41: 1650 | AP41: 25
A42: 16YX-4-1@4 | B42: 367 | C42: 578 | D42: 0.635 | E42: c | F42: 0.06716 | G42: 0.0003 | H42: 1.26127 | I42: 0.0317 | J42: 0.1362 | K42: 0.0034 | L42: 842.7 | M42: 9.1 | N42: 828.5 | O42: 14.3 | P42: 823.2 | Q42: 19.1 | R42: Y | S42: 2 | T42: 823 | U42: 19.1 | V42: 6.14 | W42: 0.24 | X42: 1.467179 | Y42: 0.000032 | Z42: 1.886938 | AA42: 0.000077 | AB42: 0.046616 | AC42: 0.000631 | AD42: 0.001714 | AE42: 0.000020 | AF42: 0.282391 | AG42: 0.000011 | AH42: 0.282364 | AI42: -13.9 | AJ42: 3.5 | AK42: 0.4 | AL42: 4.1 | AM42: 0.4 | AN42: 1240 | AO42: 1485 | AP42: 16
A43: 16YX-4-1@5 | B43: 190 | C43: 239 | D43: 0.796 | E43: c | F43: 0.06652 | G43: 0.0006 | H43: 1.28177 | I43: 0.0222 | J43: 0.1398 | K43: 0.0021 | L43: 822.8 | M43: 17.5 | N43: 837.6 | O43: 9.9 | P43: 843.3 | Q43: 12.0 | R43: Y | S43: 2 | T43: 843 | U43: 12.0 | V43: 6.27 | W43: 0.26 | X43: 1.467189 | Y43: 0.000035 | Z43: 1.886980 | AA43: 0.000082 | AB43: 0.023565 | AC43: 0.000234 | AD43: 0.000888 | AE43: 0.000011 | AF43: 0.282326 | AG43: 0.000015 | AH43: 0.282312 | AI43: -16.2 | AJ43: 2.1 | AK43: 0.5 | AL43: 2.3 | AM43: 0.5 | AN43: 1304 | AO43: 1591 | AP43: 20
A44: 16YX-4-1@6 | B44: 263 | C44: 283 | D44: 0.929 | E44: c | F44: 0.06690 | G44: 0.0005 | H44: 1.29384 | I44: 0.0230 | J44: 0.1403 | K44: 0.0023 | L44: 834.8 | M44: 14.7 | N44: 843.0 | O44: 10.2 | P44: 846.1 | Q44: 12.9 | R44: Y | S44: 1 | T44: 846 | U44: 12.9 | V44: 5.69 | W44: 0.24 | X44: 1.467154 | Y44: 0.000060 | Z44: 1.887163 | AA44: 0.000116 | AB44: 0.050501 | AC44: 0.000957 | AD44: 0.001961 | AE44: 0.000035 | AF44: 0.282494 | AG44: 0.000023 | AH44: 0.282463 | AI44: -10.3 | AJ44: 7.5 | AK44: 0.8 | AL44: 7.6 | AM44: 0.8 | AN44: 1100 | AO44: 1247 | AP44: 33
A45: 16YX-4-1@7 | B45: 107 | C45: 180 | D45: 0.591 | E45: c | F45: 0.06808 | G45: 0.0010 | H45: 1.29003 | I45: 0.0305 | J45: 0.1374 | K45: 0.0025 | L45: 870.9 | M45: 30.7 | N45: 841.3 | O45: 13.6 | P45: 830.1 | Q45: 14.3 | R45: Y | S45: 5 | T45: 830 | U45: 14.3 | V45: 6.50 | W45: 0.33 | X45: 1.467194 | Y45: 0.000059 | Z45: 1.886981 | AA45: 0.000124 | AB45: 0.022309 | AC45: 0.000270 | AD45: 0.000947 | AE45: 0.000011 | AF45: 0.282525 | AG45: 0.000016 | AH45: 0.282507 | AI45: -9.2 | AJ45: 8.7 | AK45: 0.6 | AL45: 9.2 | AM45: 0.6 | AN45: 1033 | AO45: 1157 | AP45: 23
A46: 16YX-4-1@8 | E46: c | V46: 7.23 | W46: 0.25
A47: 16YX-4-1@10 | B47: 225 | C47: 222 | D47: 1.014 | E47: c | F47: 0.06749 | G47: 0.0004 | H47: 1.30395 | I47: 0.0308 | J47: 0.1401 | K47: 0.0032 | L47: 853.0 | M47: 12.1 | N47: 847.5 | O47: 13.7 | P47: 845.3 | Q47: 18.1 | R47: Y | S47: =ABS(L47-P47)*100/L47 -> 1 | T47: 845 | U47: 18.1 | V47: 9.86 | W47: 0.19 | X47: 1.467215 | Y47: 0.000038 | Z47: 1.886987 | AA47: 0.000079 | AB47: 0.019520 | AC47: 0.000241 | AD47: 0.000709 | AE47: 0.000008 | AF47: 0.282177 | AG47: 0.000015 | AH47: 0.282166 | AI47: -21.5 | AJ47: -3.0 | AK47: 0.5 | AL47: -2.9 | AM47: 0.5 | AN47: 1504 | AO47: 1918 | AP47: 21
A48: 16YX-4-1@11 | B48: 102 | C48: 174 | D48: 0.584 | E48: c | F48: 0.06743 | G48: 0.0004 | H48: 1.33201 | I48: 0.0219 | J48: 0.1433 | K48: 0.0022 | L48: 851.2 | M48: 13.6 | N48: 859.8 | O48: 9.6 | P48: 863.1 | Q48: 12.2 | R48: Y | S48: 1 | T48: 863 | U48: 12.2 | V48: 5.96 | W48: 0.36 | X48: 1.467236 | Y48: 0.000033 | Z48: 1.886991 | AA48: 0.000078 | AB48: 0.023314 | AC48: 0.000533 | AD48: 0.001024 | AE48: 0.000022 | AF48: 0.282493 | AG48: 0.000013 | AH48: 0.282476 | AI48: -10.3 | AJ48: 8.4 | AK48: 0.5 | AL48: 8.1 | AM48: 0.5 | AN48: 1075 | AO48: 1206 | AP48: 18
A49: 16YX-4-1@12 | B49: 792 | C49: 628 | D49: 1.262 | E49: c | F49: 0.06711 | G49: 0.0002 | H49: 1.28582 | I49: 0.0199 | J49: 0.1390 | K49: 0.0021 | L49: 841.1 | M49: 7.6 | N49: 839.4 | O49: 8.9 | P49: 838.8 | Q49: 11.8 | R49: Y | S49: 0 | T49: 839 | U49: 11.8 | V49: 6.10 | W49: 0.28 | X49: 1.467154 | Y49: 0.000056 | Z49: 1.887027 | AA49: 0.000125 | AB49: 0.014141 | AC49: 0.000486 | AD49: 0.000596 | AE49: 0.000021 | AF49: 0.282426 | AG49: 0.000024 | AH49: 0.282417 | AI49: -12.7 | AJ49: 5.8 | AK49: 0.9 | AL49: 6.0 | AM49: 0.9 | AN49: 1154 | AO49: 1356 | AP49: 34
A50: 16YX-4-1@14 | B50: 200 | C50: 308 | D50: 0.649 | E50: c | F50: 0.06738 | G50: 0.0006 | H50: 1.28580 | I50: 0.0259 | J50: 0.1384 | K50: 0.0025 | L50: 849.7 | M50: 18.5 | N50: 839.4 | O50: 11.6 | P50: 835.6 | Q50: 14.1 | R50: Y | S50: 2 | T50: 836 | U50: 14.1 | V50: 6.96 | W50: 0.38 | X50: 1.467161 | Y50: 0.000033 | Z50: 1.886962 | AA50: 0.000076 | AB50: 0.020053 | AC50: 0.000077 | AD50: 0.000769 | AE50: 0.000003 | AF50: 0.282264 | AG50: 0.000013 | AH50: 0.282252 | AI50: -18.4 | AJ50: -0.2 | AK50: 0.5 | AL50: 0.2 | AM50: 0.5 | AN50: 1385 | AO50: 1730 | AP50: 18
A51: 16YX-4-1@16 | B51: 743 | C51: 1034 | D51: 0.718 | E51: c | F51: 0.06765 | G51: 0.0002 | H51: 1.31527 | I51: 0.0223 | J51: 0.1410 | K51: 0.0024 | L51: 857.7 | M51: 5.8 | N51: 852.4 | O51: 9.8 | P51: 850.4 | Q51: 13.4 | R51: Y | S51: 1 | T51: 850 | U51: 13.4 | V51: 7.16 | W51: 0.34 | X51: 1.467132 | Y51: 0.000044 | Z51: 1.886977 | AA51: 0.000101 | AB51: 0.018574 | AC51: 0.000651 | AD51: 0.000819 | AE51: 0.000026 | AF51: 0.282304 | AG51: 0.000020 | AH51: 0.282291 | AI51: -17.0 | AJ51: 1.5 | AK51: 0.7 | AL51: 1.5 | AM51: 0.7 | AN51: 1332 | AO51: 1634 | AP51: 28
A52: 16YX-4-1@19 | B52: 313 | C52: 389 | D52: 0.806 | E52: c | F52: 0.06674 | G52: 0.0004 | H52: 1.23034 | I52: 0.0205 | J52: 0.1337 | K52: 0.0021 | L52: 829.5 | M52: 12.0 | N52: 814.5 | O52: 9.4 | P52: 809.0 | Q52: 11.9 | R52: Y | S52: 2 | T52: 809 | U52: 11.9 | V52: 6.01 | W52: 0.19 | X52: 1.467166 | Y52: 0.000054 | Z52: 1.887070 | AA52: 0.000133 | AB52: 0.030245 | AC52: 0.000499 | AD52: 0.001138 | AE52: 0.000019 | AF52: 0.282285 | AG52: 0.000025 | AH52: 0.282267 | AI52: -17.7 | AJ52: -0.2 | AK52: 0.9 | AL52: 0.7 | AM52: 0.9 | AN52: 1370 | AO52: 1713 | AP52: 35
A53: 16YX-4-1@21 | B53: 109 | C53: 233 | D53: 0.466 | E53: c | F53: 0.06702 | G53: 0.0006 | H53: 1.27203 | I53: 0.0273 | J53: 0.1377 | K53: 0.0027 | L53: 838.3 | M53: 18.5 | N53: 833.3 | O53: 12.3 | P53: 831.4 | Q53: 15.2 | R53: Y | S53: 1 | T53: 831 | U53: 15.2 | V53: 6.36 | W53: 0.26 | X53: 1.467180 | Y53: 0.000033 | Z53: 1.886952 | AA53: 0.000071 | AB53: 0.018744 | AC53: 0.000863 | AD53: 0.000869 | AE53: 0.000039 | AF53: 0.282527 | AG53: 0.000014 | AH53: 0.282514 | AI53: -9.1 | AJ53: 9.0 | AK53: 0.5 | AL53: 9.4 | AM53: 0.5 | AN53: 1022 | AO53: 1141 | AP53: 19
A54: 16YX-4-1@22 | B54: 105 | C54: 123 | D54: 0.854 | E54: c | F54: 0.06700 | G54: 0.0005 | H54: 1.33110 | I54: 0.0225 | J54: 0.1441 | K54: 0.0022 | L54: 837.7 | M54: 16.3 | N54: 859.4 | O54: 9.9 | P54: 867.8 | Q54: 12.2 | R54: Y | S54: 4 | T54: 868 | U54: 12.2 | V54: 5.88 | W54: 0.35 | X54: 1.467138 | Y54: 0.000057 | Z54: 1.886941 | AA54: 0.000129 | AB54: 0.019469 | AC54: 0.000270 | AD54: 0.000782 | AE54: 0.000010 | AF54: 0.282547 | AG54: 0.000024 | AH54: 0.282534 | AI54: -8.4 | AJ54: 10.5 | AK54: 0.9 | AL54: 10.2 | AM54: 0.9 | AN54: 992 | AO54: 1071 | AP54: 34
A55: 16YX-4-1@24 | B55: 185 | C55: 182 | D55: 1.014 | E55: c | F55: 0.06841 | G55: 0.0006 | H55: 1.33674 | I55: 0.0234 | J55: 0.1417 | K55: 0.0021 | L55: 881.0 | M55: 18.5 | N55: 861.8 | O55: 10.2 | P55: 854.4 | Q55: 12.0 | R55: Y | S55: 3 | T55: 854 | U55: 12.0 | V55: 7.73 | W55: 0.35 | X55: 1.467187 | Y55: 0.000037 | Z55: 1.887008 | AA55: 0.000087 | AB55: 0.014799 | AC55: 0.000384 | AD55: 0.000652 | AE55: 0.000017 | AF55: 0.282277 | AG55: 0.000015 | AH55: 0.282267 | AI55: -18.0 | AJ55: 0.8 | AK55: 0.5 | AL55: 0.7 | AM55: 0.5 | AN55: 1363 | AO55: 1685 | AP55: 21
A56: 16YX-4-1@25 | B56: 629 | C56: 668 | D56: 0.942 | E56: c | F56: 0.06722 | G56: 0.0004 | H56: 1.30635 | I56: 0.0214 | J56: 0.1409 | K56: 0.0022 | L56: 844.7 | M56: 11.3 | N56: 848.5 | O56: 9.5 | P56: 850.0 | Q56: 12.3 | R56: Y | S56: 1 | T56: 850 | U56: 12.3 | V56: 6.17 | W56: 0.27 | X56: 1.467149 | Y56: 0.000033 | Z56: 1.886843 | AA56: 0.000083 | AB56: 0.031155 | AC56: 0.000570 | AD56: 0.001257 | AE56: 0.000022 | AF56: 0.282342 | AG56: 0.000015 | AH56: 0.282322 | AI56: -15.7 | AJ56: 2.6 | AK56: 0.5 | AL56: 2.6 | AM56: 0.5 | AN56: 1293 | AO56: 1563 | AP56: 21
A57: 16YX-4-1@30 | B57: 975 | C57: 561 | D57: 1.739 | E57: c | F57: 0.06708 | G57: 0.0003 | H57: 1.27498 | I57: 0.0200 | J57: 0.1378 | K57: 0.0021 | L57: 840.4 | M57: 9.5 | N57: 834.6 | O57: 9.0 | P57: 832.5 | Q57: 11.8 | R57: Y | S57: 1 | T57: 832 | U57: 11.8 | X57: 1.467156 | Y57: 0.000043 | Z57: 1.886827 | AA57: 0.000081 | AB57: 0.032117 | AC57: 0.000749 | AD57: 0.001230 | AE57: 0.000026 | AF57: 0.282329 | AG57: 0.000016 | AH57: 0.282310 | AI57: -16.1 | AJ57: 1.8 | AK57: 0.6 | AL57: 2.2 | AM57: 0.6 | AN57: 1311 | AO57: 1602 | AP57: 23
A58: 16YX-4-1@31 | B58: 593 | C58: 626 | D58: 0.948 | E58: c | F58: 0.06713 | G58: 0.0003 | H58: 1.29957 | I58: 0.0231 | J58: 0.1404 | K58: 0.0024 | L58: 841.8 | M58: 9.2 | N58: 845.5 | O58: 10.2 | P58: 847.0 | Q58: 13.7 | R58: Y | S58: 1 | T58: 847 | U58: 13.7 | X58: 1.467117 | Y58: 0.000039 | Z58: 1.886998 | AA58: 0.000087 | AB58: 0.044043 | AC58: 0.001125 | AD58: 0.001671 | AE58: 0.000038 | AF58: 0.282345 | AG58: 0.000017 | AH58: 0.282318 | AI58: -15.6 | AJ58: 2.4 | AK58: 0.6 | AL58: 2.5 | AM58: 0.6 | AN58: 1304 | AO58: 1574 | AP58: 24
A59: 16YX-4-1@33 | B59: 222 | C59: 402 | D59: 0.553 | E59: c | F59: 0.06631 | G59: 0.0005 | H59: 1.25661 | I59: 0.0210 | J59: 0.1374 | K59: 0.0021 | L59: 816.3 | M59: 14.7 | N59: 826.4 | O59: 9.5 | P59: 830.1 | Q59: 11.8 | R59: Y | S59: 2 | T59: 830 | U59: 11.8 | V59: 7.12 | W59: 0.32 | X59: 1.467186 | Y59: 0.000029 | Z59: 1.886871 | AA59: 0.000067 | AB59: 0.052500 | AC59: 0.002984 | AD59: 0.002083 | AE59: 0.000122 | AF59: 0.282273 | AG59: 0.000014 | AH59: 0.282241 | AI59: -18.1 | AJ59: -0.7 | AK59: 0.5 | AL59: -0.3 | AM59: 0.5 | AN59: 1422 | AO59: 1760 | AP59: 20
A60: 16YX-4-1@34 | B60: 68 | C60: 118 | D60: 0.580 | E60: c | F60: 0.06710 | G60: 0.0005 | H60: 1.27573 | I60: 0.0212 | J60: 0.1379 | K60: 0.0021 | L60: 840.9 | M60: 14.8 | N60: 834.9 | O60: 9.5 | P60: 832.7 | Q60: 11.7 | R60: Y | S60: 1 | T60: 833 | U60: 11.7 | V60: 5.93 | W60: 0.21 | X60: 1.467186 | Y60: 0.000039 | Z60: 1.887076 | AA60: 0.000085 | AB60: 0.020218 | AC60: 0.000444 | AD60: 0.000895 | AE60: 0.000021 | AF60: 0.282468 | AG60: 0.000015 | AH60: 0.282454 | AI60: -11.2 | AJ60: 6.9 | AK60: 0.5 | AL60: 7.3 | AM60: 0.5 | AN60: 1106 | AO60: 1277 | AP60: 21
A61: 16YX-4-1@35 | B61: 123 | C61: 139 | D61: 0.886 | E61: c | F61: 0.06685 | G61: 0.0006 | H61: 1.28966 | I61: 0.0228 | J61: 0.1399 | K61: 0.0021 | L61: 833.0 | M61: 19.3 | N61: 841.1 | O61: 10.2 | P61: 844.2 | Q61: 11.9 | R61: Y | S61: 1 | T61: 844 | U61: 11.9 | V61: 6.19 | W61: 0.44 | X61: 1.467169 | Y61: 0.000034 | Z61: 1.886966 | AA61: 0.000075 | AB61: 0.008922 | AC61: 0.000074 | AD61: 0.000390 | AE61: 0.000003 | AF61: 0.282351 | AG61: 0.000012 | AH61: 0.282345 | AI61: -15.3 | AJ61: 3.3 | AK61: 0.4 | AL61: 3.4 | AM61: 0.4 | AN61: 1252 | AO61: 1515 | AP61: 17
A62: 16YX-4-1@3 | E62: r | V62: 10.30 | W62: 0.29
A63: 16YX-4-1@9 | E63: r | V63: 11.03 | W63: 0.28
A64: 16YX-4-1@13 | E64: r | V64: 8.34 | W64: 0.28
A65: 16YX-4-1@15 | B65: 3 | C65: 248 | D65: 0.013 | E65: r | F65: 0.06645 | G65: 0.0005 | H65: 1.26377 | I65: 0.0230 | J65: 0.1379 | K65: 0.0023 | L65: 820.7 | M65: 14.9 | N65: 829.6 | O65: 10.4 | P65: 832.9 | Q65: 13.1 | R65: Y | S65: =ABS(L65-P65)*100/L65 -> 1 | T65: 833 | U65: 13.1 | V65: 10.59 | W65: 0.37 | X65: 1.467222 | Y65: 0.000042 | Z65: 1.887031 | AA65: 0.000094 | AB65: 0.025218 | AC65: 0.000518 | AD65: 0.001176 | AE65: 0.000026 | AF65: 0.282350 | AG65: 0.000018 | AH65: 0.282331 | AI65: -15.4 | AJ65: 2.6 | AK65: 0.6 | AL65: 3.0 | AM65: 0.6 | AN65: 1280 | AO65: 1553 | AP65: 26
A66: 16YX-4-1@17 | B66: 403 | C66: 4168 | D66: 0.097 | E66: r | F66: 0.06687 | G66: 0.0001 | H66: 1.40042 | I66: 0.0211 | J66: 0.1519 | K66: 0.0023 | L66: 833.9 | M66: 2.7 | N66: 889.1 | O66: 9.0 | P66: 911.5 | Q66: 12.8 | R66: N | S66: =ABS(L66-P66)*100/L66 -> 9 | V66: 9.65 | W66: 0.27 | X66: 1.467160 | Y66: 0.000055 | Z66: 1.887022 | AA66: 0.000113 | AB66: 0.028647 | AC66: 0.000614 | AD66: 0.001036 | AE66: 0.000021 | AF66: 0.282010 | AG66: 0.000021 | AH66: 0.281992 | AI66: -27.4 | AJ66: -7.6 | AK66: 0.7 | AL66: -9.0 | AM66: 0.7 | AN66: 1748 | AO66: 2264 | AP66: 29
A67: 16YX-4-1@18 | E67: r | V67: 10.73 | W67: 0.35
A68: 16YX-4-1@20 | B68: 9 | C68: 430 | D68: 0.021 | E68: r | F68: 0.06569 | G68: 0.0010 | H68: 1.17787 | I68: 0.0262 | J68: 0.1300 | K68: 0.0022 | L68: 796.6 | M68: 30.4 | N68: 790.3 | O68: 12.3 | P68: 788.1 | Q68: 12.5 | R68: Y | S68: =ABS(L68-P68)*100/L68 -> 1 | T68: 788 | U68: 12.5 | V68: 10.64 | W68: 0.18 | X68: 1.467191 | Y68: 0.000046 | Z68: 1.886986 | AA68: 0.000104 | AB68: 0.030419 | AC68: 0.000558 | AD68: 0.001223 | AE68: 0.000024 | AF68: 0.282298 | AG68: 0.000021 | AH68: 0.282280 | AI68: -17.2 | AJ68: -0.2 | AK68: 0.7 | AL68: 1.1 | AM68: 0.7 | AN68: 1354 | AO68: 1697 | AP68: 29
A69: 16YX-4-1@23 | E69: r | V69: 10.50 | W69: 0.34
A70: 16YX-4-1@26 | B70: 7 | C70: 459 | D70: 0.016 | E70: r | F70: 0.06721 | G70: 0.0003 | H70: 1.32032 | I70: 0.0209 | J70: 0.1425 | K70: 0.0022 | L70: 844.3 | M70: 8.8 | N70: 854.7 | O70: 9.2 | P70: 858.6 | Q70: 12.3 | R70: Y | S70: =ABS(L70-P70)*100/L70 -> 2 | T70: 859 | U70: 12.3 | X70: 1.467185 | Y70: 0.000058 | Z70: 1.887063 | AA70: 0.000142 | AB70: 0.038652 | AC70: 0.000894 | AD70: 0.001501 | AE70: 0.000028 | AF70: 0.282356 | AG70: 0.000024 | AH70: 0.282332 | AI70: -15.2 | AJ70: 3.2 | AK70: 0.8 | AL70: 3.0 | AM70: 0.8 | AN70: 1282 | AO70: 1536 | AP70: 33
A71: 16YX-4-1@27 | B71: 259 | C71: 804 | D71: 0.322 | E71: r | F71: 0.06698 | G71: 0.0002 | H71: 1.26548 | I71: 0.0199 | J71: 0.1370 | K71: 0.0021 | L71: 837.1 | M71: 7.1 | N71: 830.4 | O71: 8.9 | P71: 827.8 | Q71: 11.9 | R71: Y | S71: =ABS(L71-P71)*100/L71 -> 1 | T71: 828 | U71: 11.9 | X71: 1.467140 | Y71: 0.000050 | Z71: 1.887068 | AA71: 0.000112 | AB71: 0.050323 | AC71: 0.000626 | AD71: 0.001898 | AE71: 0.000025 | AF71: 0.282393 | AG71: 0.000022 | AH71: 0.282363 | AI71: -13.9 | AJ71: 3.6 | AK71: 0.8 | AL71: 4.1 | AM71: 0.8 | AN71: 1244 | AO71: 1485 | AP71: 32
A72: 16YX-4-1@28 | B72: 15 | C72: 1598 | D72: 0.009 | E72: r | F72: 0.06709 | G72: 0.0002 | H72: 1.27858 | I72: 0.0197 | J72: 0.1382 | K72: 0.0021 | L72: 840.4 | M72: 4.9 | N72: 836.2 | O72: 8.8 | P72: 834.6 | Q72: 12.0 | R72: Y | S72: =ABS(L72-P72)*100/L72 -> 1 | T72: 835 | U72: 12.0 | X72: 1.467087 | Y72: 0.000044 | Z72: 1.886971 | AA72: 0.000095 | AB72: 0.013145 | AC72: 0.000651 | AD72: 0.000570 | AE72: 0.000024 | AF72: 0.282485 | AG72: 0.000022 | AH72: 0.282476 | AI72: -10.6 | AJ72: 7.8 | AK72: 0.8 | AL72: 8.1 | AM72: 0.8 | AN72: 1072 | AO72: 1224 | AP72: 31
A73: 16YX-4-1@29 | B73: 6 | C73: 432 | D73: 0.013 | E73: r | F73: 0.06674 | G73: 0.0005 | H73: 1.30353 | I73: 0.0220 | J73: 0.1417 | K73: 0.0022 | L73: 829.5 | M73: 14.6 | N73: 847.3 | O73: 9.8 | P73: 854.1 | Q73: 12.3 | R73: Y | S73: =ABS(L73-P73)*100/L73 -> 3 | T73: 854 | U73: 12.3 | X73: 1.467146 | Y73: 0.000054 | Z73: 1.887016 | AA73: 0.000132 | AB73: 0.030730 | AC73: 0.000606 | AD73: 0.001194 | AE73: 0.000026 | AF73: 0.282312 | AG73: 0.000025 | AH73: 0.282293 | AI73: -16.7 | AJ73: 1.7 | AK73: 0.9 | AL73: 1.6 | AM73: 0.9 | AN73: 1334 | AO73: 1627 | AP73: 35
A74: 16YX-4-1@36 | B74: 2 | C74: 175 | D74: 0.014 | E74: r | F74: 0.06573 | G74: 0.0007 | H74: 1.21232 | I74: 0.0221 | J74: 0.1338 | K74: 0.0020 | L74: 797.7 | M74: 21.4 | N74: 806.3 | O74: 10.2 | P74: 809.3 | Q74: 11.4 | R74: Y | S74: =ABS(L74-P74)*100/L74 -> 1 | T74: 809 | U74: 11.4 | V74: 9.31 | W74: 0.41 | X74: 1.467207 | Y74: 0.000052 | Z74: 1.887082 | AA74: 0.000105 | AB74: 0.012078 | AC74: 0.000544 | AD74: 0.000484 | AE74: 0.000022 | AF74: 0.282418 | AG74: 0.000021 | AH74: 0.282411 | AI74: -13.0 | AJ74: 4.9 | AK74: 0.8 | AL74: 5.8 | AM74: 0.8 | AN74: 1163 | AO74: 1389 | AP74: 30
A76: 15PG-32-1, migmatite
A77: 15PG-32-1@1 | B77: 392 | C77: 544 | D77: 0.720 | E77: c | F77: 0.06710 | G77: 0.0002 | H77: 1.29151 | I77: 0.0199 | J77: 0.1396 | K77: 0.0021 | L77: 841.0 | M77: 6.7 | N77: 842.0 | O77: 8.8 | P77: 842.3 | Q77: 11.9 | R77: Y | S77: =ABS(L77-P77)*100/L77 -> 0 | T77: 842 | U77: 11.9 | V77: 6.51 | W77: 0.19 | X77: 1.467236 | Y77: 0.000040 | Z77: 1.886945 | AA77: 0.000072 | AB77: 0.026258 | AC77: 0.000506 | AD77: 0.000925 | AE77: 0.000018 | AF77: 0.282285 | AG77: 0.000013 | AH77: 0.282271 | AI77: -17.7 | AJ77: 0.7 | AK77: 0.5 | AL77: 0.8 | AM77: 0.5 | AN77: 1361 | AO77: 1684 | AP77: 19
A78: 15PG-32-1@02 | B78: 93 | C78: 215 | D78: 0.433 | E78: c | F78: 0.06652 | G78: 0.0005 | H78: 1.25418 | I78: 0.0219 | J78: 0.1367 | K78: 0.0022 | L78: 822.9 | M78: 14.7 | N78: 825.3 | O78: 9.9 | P78: 826.2 | Q78: 12.4 | R78: Y | S78: 0 | T78: 826 | U78: 12.4 | V78: 5.89 | W78: 0.18 | X78: 1.467194 | Y78: 0.000042 | Z78: 1.887017 | AA78: 0.000079 | AB78: 0.031709 | AC78: 0.001097 | AD78: 0.001192 | AE78: 0.000041 | AF78: 0.282303 | AG78: 0.000014 | AH78: 0.282285 | AI78: -17.0 | AJ78: 0.8 | AK78: 0.5 | AL78: 1.3 | AM78: 0.5 | AN78: 1346 | AO78: 1663 | AP78: 20
A79: 15PG-32-1@03 | B79: 90 | C79: 157 | D79: 0.575 | E79: c | F79: 0.06987 | G79: 0.0005 | H79: 1.49004 | I79: 0.0244 | J79: 0.1547 | K79: 0.0023 | L79: 924.4 | M79: 13.2 | N79: 926.3 | O79: 10.0 | P79: 927.1 | Q79: 13.0 | R79: Y | S79: 0 | T79: 927 | U79: 13.0 | V79: 5.89 | W79: 0.17 | X79: 1.467211 | Y79: 0.000039 | Z79: 1.886797 | AA79: 0.000094 | AB79: 0.037799 | AC79: 0.000586 | AD79: 0.001542 | AE79: 0.000029 | AF79: 0.282524 | AG79: 0.000015 | AH79: 0.282497 | AI79: -9.2 | AJ79: 10.6 | AK79: 0.5 | AL79: 8.9 | AM79: 0.5 | AN79: 1045 | AO79: 1115 | AP79: 21
A80: 15PG-32-1@05 | B80: 559 | C80: 904 | D80: 0.618 | E80: c | F80: 0.06694 | G80: 0.0002 | H80: 1.28957 | I80: 0.0197 | J80: 0.1397 | K80: 0.0021 | L80: 835.8 | M80: 6.2 | N80: 841.1 | O80: 8.8 | P80: 843.1 | Q80: 11.9 | R80: Y | S80: 1 | T80: 843 | U80: 11.9 | V80: 6.34 | W80: 0.18 | X80: 1.467228 | Y80: 0.000031 | Z80: 1.886990 | AA80: 0.000074 | AB80: 0.029520 | AC80: 0.000649 | AD80: 0.001153 | AE80: 0.000022 | AF80: 0.282348 | AG80: 0.000012 | AH80: 0.282330 | AI80: -15.5 | AJ80: 2.8 | AK80: 0.4 | AL80: 2.9 | AM80: 0.4 | AN80: 1282 | AO80: 1550 | AP80: 17
A81: 15PG-32-1@06 | B81: 262 | C81: 495 | D81: 0.529 | E81: c | F81: 0.06771 | G81: 0.0003 | H81: 1.27686 | I81: 0.0198 | J81: 0.1368 | K81: 0.0021 | L81: 859.7 | M81: 8.0 | N81: 835.5 | O81: 8.9 | P81: 826.3 | Q81: 11.7 | R81: Y | S81: 4 | T81: 826 | U81: 11.7 | V81: 7.16 | W81: 0.24 | X81: 1.467213 | Y81: 0.000048 | Z81: 1.886990 | AA81: 0.000097 | AB81: 0.027093 | AC81: 0.000081 | AD81: 0.000982 | AE81: 0.000004 | AF81: 0.282321 | AG81: 0.000019 | AH81: 0.282306 | AI81: -16.4 | AJ81: 1.5 | AK81: 0.7 | AL81: 2.1 | AM81: 0.7 | AN81: 1313 | AO81: 1614 | AP81: 27
A82: 15PG-32-1@07 | B82: 168 | C82: 439 | D82: 0.382 | E82: c | F82: 0.06702 | G82: 0.0003 | H82: 1.23866 | I82: 0.0212 | J82: 0.1341 | K82: 0.0022 | L82: 838.3 | M82: 8.0 | N82: 818.3 | O82: 9.7 | P82: 810.9 | Q82: 12.7 | R82: Y | S82: 3 | T82: 811 | U82: 12.7 | V82: 6.79 | W82: 0.20 | X82: 1.467193 | Y82: 0.000049 | Z82: 1.886898 | AA82: 0.000106 | AB82: 0.021623 | AC82: 0.000130 | AD82: 0.000794 | AE82: 0.000003 | AF82: 0.282312 | AG82: 0.000019 | AH82: 0.282300 | AI82: -16.7 | AJ82: 1.0 | AK82: 0.7 | AL82: 1.8 | AM82: 0.7 | AN82: 1319 | AO82: 1638 | AP82: 26
A83: 15PG-32-1@08 | B83: 370 | C83: 694 | D83: 0.534 | E83: c | F83: 0.06721 | G83: 0.0005 | H83: 1.28689 | I83: 0.0214 | J83: 0.1389 | K83: 0.0021 | L83: 844.2 | M83: 14.9 | N83: 839.9 | O83: 9.6 | P83: 838.3 | Q83: 11.8 | R83: Y | S83: 1 | T83: 838 | U83: 11.8 | V83: 6.07 | W83: 0.26 | X83: 1.467202 | Y83: 0.000047 | Z83: 1.886925 | AA83: 0.000090 | AB83: 0.043073 | AC83: 0.000321 | AD83: 0.001637 | AE83: 0.000012 | AF83: 0.282326 | AG83: 0.000019 | AH83: 0.282300 | AI83: -16.2 | AJ83: 1.6 | AK83: 0.7 | AL83: 1.9 | AM83: 0.7 | AN83: 1330 | AO83: 1620 | AP83: 27
A84: 15PG-32-1@09 | B84: 314 | C84: 354 | D84: 0.887 | E84: c | F84: 0.06721 | G84: 0.0003 | H84: 1.28122 | I84: 0.0200 | J84: 0.1383 | K84: 0.0021 | L84: 844.2 | M84: 8.8 | N84: 837.4 | O84: 8.9 | P84: 834.8 | Q84: 11.8 | R84: Y | S84: 1 | T84: 835 | U84: 11.8 | V84: 6.37 | W84: 0.18 | X84: 1.467239 | Y84: 0.000053 | Z84: 1.886838 | AA84: 0.000120 | AB84: 0.027258 | AC84: 0.000558 | AD84: 0.001011 | AE84: 0.000020 | AF84: 0.282352 | AG84: 0.000025 | AH84: 0.282336 | AI84: -15.3 | AJ84: 2.8 | AK84: 0.9 | AL84: 3.1 | AM84: 0.9 | AN84: 1271 | AO84: 1542 | AP84: 34
A85: 15PG-32-1@10 | B85: 152 | C85: 399 | D85: 0.382 | E85: c | F85: 0.06722 | G85: 0.0003 | H85: 1.29915 | I85: 0.0205 | J85: 0.1402 | K85: 0.0021 | L85: 844.6 | M85: 8.2 | N85: 845.3 | O85: 9.1 | P85: 845.6 | Q85: 12.1 | R85: Y | S85: 0 | T85: 846 | U85: 12.1 | V85: 5.67 | W85: 0.17 | X85: 1.467192 | Y85: 0.000047 | Z85: 1.886750 | AA85: 0.000104 | AB85: 0.035768 | AC85: 0.000920 | AD85: 0.001430 | AE85: 0.000035 | AF85: 0.282437 | AG85: 0.000022 | AH85: 0.282414 | AI85: -12.3 | AJ85: 5.8 | AK85: 0.8 | AL85: 5.9 | AM85: 0.8 | AN85: 1165 | AO85: 1358 | AP85: 31
A86: 15PG-32-1@11 | B86: 109 | C86: 187 | D86: 0.584 | E86: c | F86: 0.06758 | G86: 0.0008 | H86: 1.21733 | I86: 0.0438 | J86: 0.1306 | K86: 0.0044 | L86: 855.9 | M86: 24.3 | N86: 808.6 | O86: 20.2 | P86: 791.5 | Q86: 25.3 | R86: Y | S86: 8 | T86: 791 | U86: 25.3 | V86: 6.45 | W86: 0.14 | X86: 1.467244 | Y86: 0.000040 | Z86: 1.886897 | AA86: 0.000090 | AB86: 0.023847 | AC86: 0.000258 | AD86: 0.001020 | AE86: 0.000010 | AF86: 0.282547 | AG86: 0.000016 | AH86: 0.282531 | AI86: -8.4 | AJ86: 8.7 | AK86: 0.6 | AL86: 10.0 | AM86: 0.6 | AN86: 998 | AO86: 1127 | AP86: 23
A87: 15PG-32-1@12 | B87: 155 | C87: 249 | D87: 0.622 | E87: c | F87: 0.06698 | G87: 0.0005 | H87: 1.27166 | I87: 0.0237 | J87: 0.1377 | K87: 0.0024 | L87: 837.2 | M87: 14.2 | N87: 833.1 | O87: 10.6 | P87: 831.6 | Q87: 13.5 | R87: Y | S87: 1 | T87: 832 | U87: 13.5 | V87: 6.23 | W87: 0.18 | X87: 1.467267 | Y87: 0.000060 | Z87: 1.886874 | AA87: 0.000130 | AB87: 0.027180 | AC87: 0.000551 | AD87: 0.001061 | AE87: 0.000018 | AF87: 0.282258 | AG87: 0.000023 | AH87: 0.282242 | AI87: -18.6 | AJ87: -0.6 | AK87: 0.8 | AL87: -0.2 | AM87: 0.8 | AN87: 1404 | AO87: 1756 | AP87: 32
A88: 15PG-32-1@16 | B88: 152 | C88: 173 | D88: 0.880 | E88: c | F88: 0.06663 | G88: 0.0004 | H88: 1.25044 | I88: 0.0207 | J88: 0.1361 | K88: 0.0021 | L88: 826.2 | M88: 13.4 | N88: 823.6 | O88: 9.4 | P88: 822.7 | Q88: 11.8 | R88: Y | S88: 0 | T88: 823 | U88: 11.8 | V88: 6.21 | W88: 0.34 | X88: 1.467166 | Y88: 0.000041 | Z88: 1.886763 | AA88: 0.000105 | AB88: 0.022131 | AC88: 0.000294 | AD88: 0.000863 | AE88: 0.000011 | AF88: 0.282298 | AG88: 0.000017 | AH88: 0.282284 | AI88: -17.2 | AJ88: 0.7 | AK88: 0.6 | AL88: 1.3 | AM88: 0.6 | AN88: 1342 | AO88: 1666 | AP88: 24
A89: 15PG-32-1@18 | B89: 268 | C89: 305 | D89: 0.879 | E89: c | F89: 0.06692 | G89: 0.0003 | H89: 1.29026 | I89: 0.0224 | J89: 0.1398 | K89: 0.0023 | L89: 835.2 | M89: 9.2 | N89: 841.4 | O89: 10.0 | P89: 843.8 | Q89: 13.3 | R89: Y | S89: 1 | T89: 844 | U89: 13.3 | V89: 6.21 | W89: 0.21 | X89: 1.467248 | Y89: 0.000038 | Z89: 1.886846 | AA89: 0.000095 | AB89: 0.039677 | AC89: 0.000796 | AD89: 0.001482 | AE89: 0.000029 | AF89: 0.282246 | AG89: 0.000014 | AH89: 0.282223 | AI89: -19.1 | AJ89: -1.0 | AK89: 0.5 | AL89: -0.9 | AM89: 0.5 | AN89: 1437 | AO89: 1791 | AP89: 20
A90: 15PG-32-1@20 | B90: 8 | C90: 25 | D90: 0.341 | E90: c | F90: 0.06767 | G90: 0.0013 | H90: 1.34795 | I90: 0.0325 | J90: 0.1445 | K90: 0.0022 | L90: 858.5 | M90: 38.8 | N90: 866.7 | O90: 14.2 | P90: 869.9 | Q90: 12.2 | R90: Y | S90: 1 | T90: 870 | U90: 12.2 | V90: 5.33 | W90: 0.16 | X90: 1.467246 | Y90: 0.000050 | Z90: 1.887018 | AA90: 0.000111 | AB90: 0.016150 | AC90: 0.000587 | AD90: 0.000719 | AE90: 0.000025 | AF90: 0.282567 | AG90: 0.000023 | AH90: 0.282556 | AI90: -7.7 | AJ90: 11.4 | AK90: 0.8 | AL90: 10.9 | AM90: 0.8 | AN90: 962 | AO90: 1020 | AP90: 32
A91: 15PG-32-1@21 | B91: 60 | C91: 104 | D91: 0.576 | E91: c | F91: 0.06767 | G91: 0.0023 | H91: 1.41076 | I91: 0.0526 | J91: 0.1512 | K91: 0.0024 | L91: 858.3 | M91: 68.3 | N91: 893.5 | O91: 22.4 | P91: 907.8 | Q91: 13.7 | R91: Y | S91: 6 | T91: 908 | U91: 13.7 | V91: 7.12 | W91: 0.27 | X91: 1.467192 | Y91: 0.000052 | Z91: 1.886800 | AA91: 0.000120 | AB91: 0.067971 | AC91: 0.001472 | AD91: 0.002683 | AE91: 0.000053 | AF91: 0.282609 | AG91: 0.000022 | AH91: =(AF91-AE91*(EXP(0.00001867*AC91)-1)) -> 0.282609 | AI91: =((AF91/0.282785)-1)*10000 -> -6.2 | AJ91: =((AF91-AE91*(EXP(0.00001867*AC91)-1))/(0.282785-0.0336*(EXP(0.00001867*AC91)-1))-1)*10000 -> -6.2 | AK91: =((AG91)/(0.282785-0.0336*(EXP(0.00001867*AE91)-1)))*10000 -> 0.8 | AL91: =((AH91-AG91*(EXP(0.00001867*AE91)-1))/(0.282785-0.0336*(EXP(0.00001867*AE91)-1))-1)*10000 -> -6.2 | AM91: =((AI91)/(0.282785-0.0336*(EXP(0.00001867*AG91)-1)))*10000 -> -219695.2 | AN91: =10000/0.1867*LN(1+(AH91-0.28325)/(AG91-0.0384)) -> 887 | AO91: =10000/0.1867*LN(1+(((AH91-(AG91*(EXP(0.01867*AE91/1000)-1)))-(0.28325-(0.0384*(EXP(0.01867*AE91/1000)-1)))))/(0.015-0.0384))+AE91 -> 1447 | AP91: =ABS(10000/0.1867*LN(1+((AH91+AI91)-0.28325)/(AG91-0.0384))-AN91) -> 271911
A92: 15PG-32-1@23 | B92: 47 | C92: 111 | D92: 0.428 | E92: c | F92: 0.06740 | G92: 0.0026 | H92: 1.30355 | I92: 0.0549 | J92: 0.1403 | K92: 0.0022 | L92: 850.1 | M92: 79.0 | N92: 847.3 | O92: 24.5 | P92: 846.2 | Q92: 12.7 | R92: Y | S92: 0 | T92: 846 | U92: 12.7 | V92: 6.36 | W92: 0.20 | X92: 1.467229 | Y92: 0.000052 | Z92: 1.887021 | AA92: 0.000109 | AB92: 0.015807 | AC92: 0.000646 | AD92: 0.000657 | AE92: 0.000025 | AF92: 0.282565 | AG92: 0.000020 | AH92: 0.282554 | AI92: -7.8 | AJ92: 10.8 | AK92: 0.7 | AL92: 10.9 | AM92: 0.7 | AN92: 964 | AO92: 1039 | AP92: 28
A93: 15PG-32-1@25 | B93: 99 | C93: 143 | D93: 0.693 | E93: c | F93: 0.06764 | G93: 0.0005 | H93: 1.31274 | I93: 0.0238 | J93: 0.1408 | K93: 0.0023 | L93: 857.6 | M93: 15.4 | N93: 851.3 | O93: 10.5 | P93: 848.9 | Q93: 13.1 | R93: Y | S93: 1 | T93: 849 | U93: 13.1 | V93: 6.02 | W93: 0.13 | X93: 1.467150 | Y93: 0.000055 | Z93: 1.886738 | AA93: 0.000109 | AB93: 0.019139 | AC93: 0.000738 | AD93: 0.000834 | AE93: 0.000032 | AF93: 0.282352 | AG93: 0.000021 | AH93: 0.282339 | AI93: -15.3 | AJ93: 3.2 | AK93: 0.7 | AL93: 3.2 | AM93: 0.7 | AN93: 1265 | AO93: 1525 | AP93: 29
A94: 15PG-32-1@04 | B94: 81 | C94: 662 | D94: 0.122 | E94: r | F94: 0.06672 | G94: 0.0002 | H94: 1.23180 | I94: 0.0190 | J94: 0.1339 | K94: 0.0020 | L94: 829.0 | M94: 6.9 | N94: 815.2 | O94: 8.7 | P94: 810.1 | Q94: 11.5 | R94: Y | S94: 2 | T94: 810 | U94: 11.5 | V94: 8.11 | W94: 0.15 | X94: 1.467197 | Y94: 0.000036 | Z94: 1.886842 | AA94: 0.000076 | AB94: 0.027318 | AC94: 0.000288 | AD94: 0.001043 | AE94: 0.000015 | AF94: 0.282319 | AG94: 0.000014 | AH94: 0.282303 | AI94: -16.5 | AJ94: 1.1 | AK94: 0.5 | AL94: 1.9 | AM94: 0.5 | AN94: 1319 | AO94: 1633 | AP94: 20
A95: 15PG-32-1@13 | B95: 5 | C95: 1037 | D95: 0.005 | E95: r | F95: 0.06685 | G95: 0.0008 | H95: 1.23792 | I95: 0.0340 | J95: 0.1343 | K95: 0.0033 | L95: 833.0 | M95: 24.2 | N95: 817.9 | O95: 15.5 | P95: 812.4 | Q95: 19.0 | R95: Y | S95: 2 | T95: 812 | U95: 19.0 | V95: 7.72 | W95: 0.25 | X95: 1.467181 | Y95: 0.000052 | Z95: 1.886993 | AA95: 0.000113 | AB95: 0.039079 | AC95: 0.001614 | AD95: 0.001454 | AE95: 0.000056 | AF95: 0.282202 | AG95: 0.000020 | AH95: 0.282179 | AI95: -20.6 | AJ95: -3.3 | AK95: 0.7 | AL95: -2.5 | AM95: 0.7 | AN95: 1499 | AO95: 1909 | AP95: 28
A96: 15PG-32-1@14 | B96: 4 | C96: 362 | D96: 0.012 | E96: r | F96: 0.06649 | G96: 0.0004 | H96: 1.22320 | I96: 0.0206 | J96: 0.1334 | K96: 0.0021 | L96: 821.9 | M96: 11.1 | N96: 811.2 | O96: 9.5 | P96: 807.4 | Q96: 12.2 | R96: Y | S96: 2 | T96: 807 | U96: 12.2 | V96: 10.64 | W96: 0.18 | X96: 1.467155 | Y96: 0.000048 | Z96: 1.887019 | AA96: 0.000120 | AB96: 0.036631 | AC96: 0.001359 | AD96: 0.001513 | AE96: 0.000052 | AF96: 0.282185 | AG96: 0.000022 | AH96: 0.282162 | AI96: -21.2 | AJ96: -4.0 | AK96: 0.8 | AL96: -3.1 | AM96: 0.8 | AN96: 1525 | AO96: 1951 | AP96: 31
A97: 15PG-32-1@15 | B97: 118 | C97: 218 | D97: 0.541 | E97: r | F97: 0.06641 | G97: 0.0005 | H97: 1.24624 | I97: 0.0225 | J97: 0.1361 | K97: 0.0022 | L97: 819.3 | M97: 15.5 | N97: 821.7 | O97: 10.2 | P97: 822.6 | Q97: 12.7 | R97: Y | S97: 0 | T97: 823 | U97: 12.7 | V97: 10.65 | W97: 0.23 | X97: 1.467219 | Y97: 0.000050 | Z97: 1.886979 | AA97: 0.000114 | AB97: 0.025217 | AC97: 0.000729 | AD97: 0.001026 | AE97: 0.000031 | AF97: 0.282274 | AG97: 0.000018 | AH97: 0.282258 | AI97: -18.1 | AJ97: -0.3 | AK97: 0.6 | AL97: 0.3 | AM97: 0.6 | AN97: 1381 | AO97: 1726 | AP97: 25
A98: 15PG-32-1@17 | B98: 180 | C98: 615 | D98: 0.293 | E98: r | F98: 0.06529 | G98: 0.0012 | H98: 1.46041 | I98: 0.0458 | J98: 0.1622 | K98: 0.0041 | L98: 783.6 | M98: 37.8 | N98: 914.2 | O98: 19.1 | P98: 969.2 | Q98: 23.0 | R98: N | S98: 24 | V98: 7.48 | W98: 0.17 | X98: 1.467245 | Y98: 0.000044 | Z98: 1.886813 | AA98: 0.000118 | AB98: 0.010469 | AC98: 0.000397 | AD98: 0.000466 | AE98: 0.000019 | AF98: 0.282447 | AG98: 0.000019 | AH98: 0.282438 | AI98: -12.0 | AJ98: 9.4 | AK98: 0.7 | AL98: 6.8 | AM98: 0.7 | AN98: 1123 | AO98: 1222 | AP98: 26
A99: 15PG-32-1@19 | B99: 15 | C99: 305 | D99: 0.050 | E99: r | F99: 0.06627 | G99: 0.0003 | H99: 1.23738 | I99: 0.0258 | J99: 0.1354 | K99: 0.0027 | L99: 815.0 | M99: 10.4 | N99: 817.7 | O99: 11.8 | P99: 818.7 | Q99: 15.6 | R99: Y | S99: 0 | T99: 819 | U99: 15.6 | V99: 8.56 | W99: 0.20 | X99: 1.467244 | Y99: 0.000058 | Z99: 1.886985 | AA99: 0.000126 | AB99: 0.035280 | AC99: 0.002486 | AD99: 0.001393 | AE99: 0.000077 | AF99: 0.282210 | AG99: 0.000022 | AH99: 0.282189 | AI99: -20.3 | AJ99: -2.8 | AK99: 0.8 | AL99: -2.1 | AM99: 0.8 | AN99: 1484 | AO99: 1883 | AP99: 31
A100: 15PG-32-1@22 | B100: 4 | C100: 480 | D100: 0.007 | E100: r | F100: 0.06712 | G100: 0.0004 | H100: 1.25076 | I100: 0.0212 | J100: 0.1352 | K100: 0.0021 | L100: 841.5 | M100: 13.3 | N100: 823.7 | O100: 9.6 | P100: 817.2 | Q100: 12.1 | R100: Y | S100: 3 | T100: 817 | U100: 12.1 | V100: 10.08 | W100: 0.24
A101: 15PG-32-1@24 | B101: 123 | C101: 804 | D101: 0.153 | E101: r | F101: 0.06600 | G101: 0.0002 | H101: 1.35234 | I101: 0.0210 | J101: 0.1486 | K101: 0.0023 | L101: 806.3 | M101: 7.4 | N101: 868.6 | O101: 9.1 | P101: 893.2 | Q101: 12.6 | R101: N | S101: 11 | V101: 11.25 | W101: 0.23
A103: 16YX-1-2, leucosomei
A104: 16YX-1-2@1 | B104: 16 | C104: 1010 | D104: 0.016 | F104: 0.06935 | G104: 0.0008 | H104: 1.15858 | I104: 0.0344 | J104: 0.1212 | K104: 0.0033 | L104: 909.2 | M104: 22.7 | N104: 781.3 | O104: 16.3 | P104: 737.3 | Q104: 19.2 | R104: N | S104: =ABS(L104-P104)*100/L104 -> 19 | V104: 13.14 | W104: 0.39 | X104: 1.466926 | Y104: 0.000116 | Z104: 1.887480 | AA104: 0.000234 | AB104: 0.061946 | AC104: 0.002026 | AD104: 0.002431 | AE104: 0.000087 | AF104: 0.282272 | AG104: 0.000045 | AH104: 0.282233 | AI104: -18.1 | AL104: -0.5 | AM104: 1.6 | AN104: 1437 | AO104: 1763 | AP104: 65
A105: 16YX-1-2@2 | B105: 49 | C105: 312 | D105: 0.156 | F105: 0.06341 | G105: 0.0043 | H105: 1.15250 | I105: 0.0827 | J105: 0.1318 | K105: 0.0034 | L105: 722.1 | M105: 136.2 | N105: 778.4 | O105: 39.8 | P105: 798.2 | Q105: 19.2 | R105: Y | S105: =ABS(L105-P105)*100/L105 -> 11 | V105: 12.51 | W105: 0.30 | X105: 1.466736 | Y105: 0.000157 | Z105: 1.887393 | AA105: 0.000273 | AB105: 0.069629 | AC105: 0.000673 | AD105: 0.002491 | AE105: 0.000015 | AF105: 0.282411 | AG105: 0.000035 | AH105: 0.282371 | AI105: -13.2 | AL105: 4.4 | AM105: 1.2 | AN105: 1237 | AO105: 1452 | AP105: 51
A106: 16YX-1-2@3 | V106: 11.55 | W106: 0.30 | X106: 1.467244 | Y106: 0.000061 | Z106: 1.886821 | AA106: 0.000120 | AB106: 0.042728 | AC106: 0.001993 | AD106: 0.001999 | AE106: 0.000083 | AF106: 0.282429 | AG106: 0.000019 | AH106: 0.282397 | AI106: -12.6 | AL106: 5.3 | AM106: 0.7 | AN106: 1194 | AO106: 1393 | AP106: 28
A107: 16YX-1-2@4 | B107: 152 | C107: 521 | D107: 0.292 | F107: 0.05289 | G107: 0.0017 | H107: 0.28167 | I107: 0.0098 | J107: 0.0386 | K107: 0.0006 | L107: 324.1 | M107: 69.9 | N107: 252.0 | O107: 7.8 | P107: 244.3 | Q107: 3.6 | R107: Y | S107: =ABS(L107-P107)*100/L107 -> 25 | V107: 11.26 | W107: 0.31 | X107: 1.466973 | Y107: 0.000096 | Z107: 1.887186 | AA107: 0.000242 | AB107: 0.022826 | AC107: 0.000921 | AD107: 0.000977 | AE107: 0.000042 | AF107: 0.282417 | AG107: 0.000032 | AH107: 0.282401 | AI107: -13.0 | AL107: 5.4 | AM107: 1.1 | AN107: 1179 | AO107: 1384 | AP107: 45
A108: 16YX-1-2@5 | B108: 13 | C108: 491 | D108: 0.026 | F108: 0.06774 | G108: 0.0024 | H108: 1.15459 | I108: 0.0507 | J108: 0.1236 | K108: 0.0032 | L108: 860.5 | M108: 72.4 | N108: 779.4 | O108: 24.2 | P108: 751.4 | Q108: 18.1 | R108: Y | S108: =ABS(L108-P108)*100/L108 -> 13 | V108: 12.92 | W108: 0.33 | X108: 1.466907 | Y108: 0.000101 | Z108: 1.887488 | AA108: 0.000247 | AB108: 0.054191 | AC108: 0.001074 | AD108: 0.002173 | AE108: 0.000041 | AF108: 0.282209 | AG108: 0.000036 | AH108: 0.282174 | AI108: -20.4 | AL108: -2.6 | AM108: 1.3 | AN108: 1518 | AO108: 1896 | AP108: 52
A109: 16YX-1-2@6 | B109: 108 | C109: 555 | D109: 0.194 | F109: 0.05672 | G109: 0.0020 | H109: 0.52061 | I109: 0.0202 | J109: 0.0666 | K109: 0.0010 | L109: 480.6 | M109: 77.0 | N109: 425.6 | O109: 13.6 | P109: 415.5 | Q109: 6.1 | R109: Y | S109: =ABS(L109-P109)*100/L109 -> 14 | V109: 11.10 | W109: 0.28 | X109: 1.467415 | Y109: 0.000101 | Z109: 1.886419 | AA109: 0.000173 | AB109: 0.016944 | AC109: 0.000529 | AD109: 0.000641 | AE109: 0.000019 | AF109: 0.282394 | AG109: 0.000025 | AH109: 0.282384 | AI109: -13.8 | AL109: 4.8 | AM109: 0.9 | AN109: 1201 | AO109: 1424 | AP109: 34
A110: 16YX-1-2@7 | B110: 48 | C110: 368 | D110: 0.132 | F110: 0.09231 | G110: 0.0006 | H110: 1.90763 | I110: 0.0337 | J110: 0.1499 | K110: 0.0025 | L110: 1473.7 | M110: 12.4 | N110: 1083.8 | O110: 11.8 | P110: 900.3 | Q110: 13.8 | R110: N | S110: =ABS(L110-P110)*100/L110 -> 39 | V110: 12.25 | W110: 0.21 | X110: 1.466920 | Y110: 0.000135 | Z110: 1.887562 | AA110: 0.000229 | AB110: 0.036380 | AC110: 0.000456 | AD110: 0.001434 | AE110: 0.000023 | AF110: 0.282309 | AG110: 0.000047 | AH110: 0.282286 | AI110: -16.8 | AL110: 1.4 | AM110: 1.7 | AN110: 1346 | AO110: 1644 | AP110: 67
A111: 16YX-1-2@8 | V111: 13.37 | W111: 0.28
A112: 16YX-1-2@9 | V112: 9.50 | W112: 0.24
A113: 16YX-1-2@11 | B113: 126 | C113: 876 | D113: 0.144 | F113: 0.05666 | G113: 0.0013 | H113: 0.51464 | I113: 0.0147 | J113: 0.0659 | K113: 0.0010 | L113: 478.2 | M113: 51.8 | N113: 421.6 | O113: 9.9 | P113: 411.3 | Q113: 6.3 | R113: Y | S113: =ABS(L113-P113)*100/L113 -> 14 | V113: 9.67 | W113: 0.34 | X113: 1.467059 | Y113: 0.000087 | Z113: 1.887251 | AA113: 0.000149 | AB113: 0.032137 | AC113: 0.001456 | AD113: 0.001220 | AE113: 0.000053 | AF113: 0.282308 | AG113: 0.000028 | AH113: 0.282288 | AI113: -16.9 | AL113: 1.4 | AM113: 1.0 | AN113: 1341 | AO113: 1640 | AP113: 40
A114: 16YX-1-2@12 | B114: 61 | C114: 447 | D114: 0.136 | F114: 0.06769 | G114: 0.0003 | H114: 1.30179 | I114: 0.0215 | J114: 0.1395 | K114: 0.0022 | L114: 859.2 | M114: 7.7 | N114: 846.5 | O114: 9.5 | P114: 841.7 | Q114: 12.7 | R114: Y | S114: 2 | V114: 12.33 | W114: 0.23 | X114: 1.467213 | Y114: 0.000035 | Z114: 1.887059 | AA114: 0.000085 | AB114: 0.045323 | AC114: 0.000385 | AD114: 0.001774 | AE114: 0.000015 | AF114: 0.282514 | AG114: 0.000013 | AH114: 0.282486 | AI114: -9.6 | AL114: 8.4 | AM114: 0.5 | AN114: 1065 | AO114: 1192 | AP114: 19
A115: 16YX-1-2@13 | B115: 53 | C115: 1866 | D115: 0.028 | F115: 0.06757 | G115: 0.0008 | H115: 1.25405 | I115: 0.0365 | J115: 0.1346 | K115: 0.0036 | L115: 855.4 | M115: 23.6 | N115: 825.2 | O115: 16.6 | P115: 814.1 | Q115: 20.5 | R115: Y | S115: 5 | V115: 13.27 | W115: 0.27 | X115: 1.466966 | Y115: 0.000098 | Z115: 1.887504 | AA115: 0.000230 | AB115: 0.050325 | AC115: 0.000911 | AD115: 0.001937 | AE115: 0.000034 | AF115: 0.282083 | AG115: 0.000045 | AH115: 0.282052 | AI115: -24.8 | AL115: -6.9 | AM115: 1.6 | AN115: 1687 | AO115: 2169 | AP115: 64
A116: 16YX-1-2@14 | B116: 332 | C116: 792 | D116: 0.419 | F116: 0.05657 | G116: 0.0023 | H116: 0.50911 | I116: 0.0221 | J116: 0.0653 | K116: 0.0011 | L116: 474.6 | M116: 86.3 | N116: 417.9 | O116: 15.0 | P116: 407.6 | Q116: 6.7 | R116: Y | S116: 14 | V116: 11.07 | W116: 0.37 | X116: 1.467153 | Y116: 0.000032 | Z116: 1.886884 | AA116: 0.000073 | AB116: 0.033146 | AC116: 0.002037 | AD116: 0.001234 | AE116: 0.000071 | AF116: 0.282250 | AG116: 0.000012 | AH116: 0.282230 | AI116: -18.9 | AL116: -0.6 | AM116: 0.4 | AN116: 1423 | AO116: 1771 | AP116: 17
A117: 16YX-1-2@15 | B117: 18 | C117: 633 | D117: 0.028 | F117: 0.06902 | G117: 0.0005 | H117: 1.19872 | I117: 0.0236 | J117: 0.1260 | K117: 0.0023 | L117: 899.4 | M117: 14.2 | N117: 800.0 | O117: 10.9 | P117: 764.8 | Q117: 13.3 | R117: N | S117: 15 | V117: 13.21 | W117: 0.40 | X117: 1.467304 | Y117: 0.000086 | Z117: 1.886710 | AA117: 0.000148 | AB117: 0.060304 | AC117: 0.002854 | AD117: 0.002312 | AE117: 0.000105 | AF117: 0.282351 | AG117: 0.000018 | AH117: 0.282314 | AI117: -15.3 | AL117: 2.4 | AM117: 0.6 | AN117: 1318 | AO117: 1581 | AP117: 25
A118: 16YX-1-2@16 | B118: 73 | C118: 179 | D118: 0.404 | F118: 0.06769 | G118: 0.0004 | H118: 1.30385 | I118: 0.0211 | J118: 0.1397 | K118: 0.0021 | L118: 859.1 | M118: 12.5 | N118: 847.4 | O118: 9.4 | P118: 843.0 | Q118: 11.9 | R118: Y | S118: 2 | V118: 12.12 | W118: 0.34
A120: Note
A121: a. Core (c) or rim (r) zircon identified based on CL images and Th/U ratios
A122: b. Conc.(Y/N) indicates whether the analytical age is concordant (Y=yes; N=no), Only analyses that overlap within 2s covaried uncertainty of the concordia curve are termed as concordant age (Spencer et al., 2016)
A123: c. Age concordance is defined as (206Pb/238U age)/(207Pb/206Pb age)×100%.
A124: d. Concordia age of each zircon domain was given based on following criterion: 1) only concordant data are used; 2) we choose 238U/206Pb age as the "best age" as all dated ages are below 1.5 Ga (Spencer et al., 2016); 3) age concordance should <10%
A125: e. The 176Hf/177Hf and 176Lu/177Hf ratios of chondrite and depleted mantle at the present are 0.282785 and 0.0336, 0.28325 and 0.0384, respectively (Bouvier et al., 2008; Griffin et al. 2000). l = 1.867 ×10–11a–1 (Söderlund et al., 2004). (176Lu/177Hf)C = 0.015.
A126: f. εHf(t) = 10,000×{[(176Hf/177Hf)S – (176Lu/177Hf)S×(elt–1)]/[(176Hf/177Hf)CHUR,0 – (176Lu/177Hf)CHUR×(elt–1)]–1}
A127: g. TDM = 1/l × ln{1 + [(176Hf/177Hf)S – (176Hf/177Hf)DM] / [(176Lu/177Hf)S – (176Lu/177Hf)DM]}
A128: h.TDM2 = 1/l × ln{1 + [(176Hf/177Hf)S, t – (176Hf/177Hf)DM, t ] / [(176Lu/177Hf)C – (176Lu/177Hf)DM]} + t
A129: i. The zircon ages in leucosome are various and mostly disconcordant possibly due to destruction of their U-Pb system. We hence took 850 Ma as their approximate crystallization age since lecosome were derived from partial melts of the migmatite according to field observation.
A131: Reference:
A132: Bouvier, A., Vervoort, J.D., Patchett, P.J., 2008. The Lu–Hf and Sm–Nd isotopic composition of CHUR: constraints from unequilibrated chondrites and implications for the bulk composition of terrestrial planets. Earth Planet. Sci. Lett. 273, 48–57.
A133: Griffin, W.L., Pearson, N.J., Belousova, E., Jackson, S.E., van Achterbergh, E., O’Reilly, S.Y., Shee, S.R., 2000. The Hf isotope composition of cratonic mantle: LA-MCICP-MS analysis of zircon megacrysts in kimberlites. Geochim. Cosmochim. Acta 64, 133–147.
A134: Söderlund, U., Patchett, P.J., Vervoort, J.D., Isachsen, C.E., 2004. The 176Lu decay constant determined by Lu–Hf and U-Pb isotope systematics of Precambrian mafic intrusions. Earth Planet. Sci. Lett. 219, 311–324.
A135: Spencer, C.J., Kirkland, C.L., Taylor, R.J.M., 2016. Strategies towards statistically robust interpretations of in situ U-Pb zircon geochronology. Geosci. Front.7, 581–589.

Sheet Raw data for O isotope
E1: 16O/Coeff | G1: 18O/16O | J1: δ 18O
D2: IP(nA) | E2: L'2 | G2: H1/L'2 | K2: 2SE
A3: PENGLAI@01 | C3: 00:39:00 | D3: 1.39909 | E3: 1262107000 | F3: 0.04069554 | G3: 0.002023151 | H3: 0.01481468 | J3: 5.21 | K3: 0.30
A4: PENGLAI@02 | C4: 00:42:00 | D4: 1.404332 | E4: 1253034000 | F4: 0.02825052 | G4: 0.002022874 | H4: 0.01070297 | J4: 5.07 | K4: 0.22
A5: PENGLAI@3 | C5: 00:45:00 | D5: 1.404097 | E5: 1245580000 | F5: 0.179707 | G5: 0.002023496 | H5: 0.0150185 | J5: 5.38 | K5: 0.30
A6: PENGLAI@04 | C6: 01:02:00 | D6: 1.385791 | E6: 1240306000 | F6: 0.1564249 | G6: 0.002022592 | H6: 0.01634372 | J6: 4.93 | K6: 0.33
A7: PENGLAI@05 | C7: 01:19:00 | D7: 1.428896 | E7: 1246285000 | F7: 0.228913 | G7: 0.002023094 | H7: 0.01314217 | J7: 5.18 | K7: 0.27
A8: PENGLAI@06 | C8: 01:34:00 | D8: 1.393145 | E8: 1234923000 | F8: 0.2167118 | G8: 0.002022999 | H8: 0.01056029 | J8: 5.14 | K8: 0.21
A9: PENGLAI@07 | C9: 01:51:00 | D9: 1.395961 | E9: 1243515000 | F9: 0.0156303 | G9: 0.002022833 | H9: 0.01049825 | J9: 5.05 | K9: 0.21
A10: PENGLAI@08 | C10: 02:05:00 | D10: 1.383131 | E10: 1234530000 | F10: 0.04713961 | G10: 0.002023475 | H10: 0.01684842 | J10: 5.37 | K10: 0.34
A11: PENGLAI@09 | C11: 02:22:00 | D11: 1.382271 | E11: 1238348000 | F11: 0.02723317 | G11: 0.002023561 | H11: 0.01199328 | J11: 5.42 | K11: 0.24
A12: PENGLAI@10 | C12: 02:36:00 | D12: 1.37656 | E12: 1234964000 | F12: 0.009623322 | G12: 0.002023427 | H12: 0.01583687 | J12: 5.35 | K12: 0.32
A13: PENGLAI@11 | C13: 02:53:00 | D13: 1.385556 | E13: 1233612000 | F13: 0.03217513 | G13: 0.002023225 | H13: 0.01385347 | J13: 5.25 | K13: 0.28
A14: PENGLAI@12 | C14: 03:08:00 | D14: 1.366468 | E14: 1211187000 | F14: 0.02635586 | G14: 0.002022842 | H14: 0.01286556 | J14: 5.06 | K14: 0.26
A15: PENGLAI@13 | C15: 03:25:00 | D15: 1.355437 | E15: 1206281000 | F15: 0.03967569 | G15: 0.00202279 | H15: 0.01239567 | J15: 5.03 | K15: 0.25
A16: PENGLAI@14 | C16: 03:39:00 | D16: 1.355359 | E16: 1217228000 | F16: 0.06855371 | G16: 0.002022329 | H16: 0.01993243 | J16: 4.80 | K16: 0.40
A17: PENGLAI@15 | C17: 03:56:00 | D17: 1.344798 | E17: 1200666000 | F17: 0.02037322 | G17: 0.002023641 | H17: 0.01669347 | J17: 5.46 | K17: 0.34
A18: PENGLAI@16 | C18: 04:10:00 | D18: 1.349648 | E18: 1195671000 | F18: 0.1182533 | G18: 0.002023535 | H18: 0.01068334 | J18: 5.40 | K18: 0.22
A19: PENGLAI@17 | C19: 04:27:00 | D19: 1.333767 | E19: 1191206000 | F19: 0.02520385 | G19: 0.002023437 | H19: 0.009458471 | J19: 5.36 | K19: 0.19
A20: PENGLAI@18 | C20: 04:41:00 | D20: 1.334236 | E20: 1188761000 | F20: 0.05210565 | G20: 0.002022719 | H20: 0.01462854 | J20: 5.00 | K20: 0.30
A21: PENGLAI@19 | C21: 04:58:00 | D21: 1.328213 | E21: 1188552000 | F21: 0.02091456 | G21: 0.002022662 | H21: 0.01295355 | J21: 4.97 | K21: 0.26
A22: PENGLAI@20 | C22: 05:12:00 | D22: 1.330403 | E22: 1186076000 | F22: 0.01493915 | G22: 0.002022482 | H22: 0.01443826 | J22: 4.88 | K22: 0.29
A23: PENGLAI@21 | C23: 05:30:00 | D23: 1.328917 | E23: 1181596000 | F23: 0.03671259 | G23: 0.002023897 | H23: 0.01652466 | J23: 5.58 | K23: 0.33
A24: PENGLAI@22 | C24: 05:44:00 | D24: 1.338226 | E24: 1189532000 | F24: 0.03522744 | G24: 0.002023537 | H24: 0.0125445 | J24: 5.41 | K24: 0.25
A25: PENGLAI@23 | C25: 06:01:00 | D25: 1.327352 | E25: 1179802000 | F25: 0.05003497 | G25: 0.002023182 | H25: 0.01944235 | J25: 5.23 | K25: 0.39
A26: PENGLAI@24 | C26: 06:15:00 | D26: 1.323128 | E26: 1185527000 | F26: 0.0398317 | G26: 0.002024093 | H26: 0.01432138 | J26: 5.68 | K26: 0.29
A27: PENGLAI@25 | C27: 06:32:00 | D27: 1.323519 | E27: 1176519000 | F27: 0.1150312 | G27: 0.002023551 | H27: 0.01591787 | J27: 5.41 | K27: 0.32
A28: PENGLAI@26 | C28: 06:45:00 | D28: 1.322345 | E28: 1182224000 | F28: 0.02362926 | G28: 0.002023453 | H28: 0.01063462 | J28: 5.36 | K28: 0.21
A29: PENGLAI@27 | C29: 07:02:00 | D29: 1.308029 | E29: 1182145000 | F29: 0.08224596 | G29: 0.002024026 | H29: 0.01521293 | J29: 5.65 | K29: 0.31
A30: PENGLAI@28 | C30: 07:16:00 | D30: 1.316713 | E30: 1191233000 | F30: 0.03611313 | G30: 0.002023659 | H30: 0.01403602 | J30: 5.47 | K30: 0.28
A31: PENGLAI@29 | C31: 07:33:00 | D31: 1.32258 | E31: 1177448000 | F31: 0.09450288 | G31: 0.002022643 | H31: 0.01534092 | J31: 4.96 | K31: 0.31
A32: PENGLAI@30 | C32: 07:47:00 | D32: 1.313662 | E32: 1176097000 | F32: 0.208232 | G32: 0.00202363 | H32: 0.01759472 | J32: 5.45 | K32: 0.36
A33: PENGLAI@31 | C33: 08:03:00 | D33: 1.316321 | E33: 1180110000 | F33: 0.06632353 | G33: 0.002022963 | H33: 0.01950124 | J33: 5.12 | K33: 0.39
A34: PENGLAI@32 | C34: 08:17:00 | D34: 1.311549 | E34: 1177385000 | F34: 0.04550686 | G34: 0.00202318 | H34: 0.01213864 | J34: 5.23 | K34: 0.24
A35: PENGLAI@33 | C35: 08:34:00 | D35: 1.30091 | E35: 1172419000 | F35: 0.0280192 | G35: 0.002023066 | H35: 0.0215185 | J35: 5.17 | K35: 0.43
A36: PENGLAI@34 | C36: 08:50:00 | D36: 1.303883 | E36: 1170119000 | F36: 0.1180098 | G36: 0.002023634 | H36: 0.02195097 | J36: 5.45 | K36: 0.44
A38: QINGHU@01 | C38: 00:48:00 | D38: 1.390954 | E38: 1228643000 | F38: 0.09659406 | G38: 0.002023338 | H38: 0.01860116 | J38: 5.31 | K38: 0.38
A39: QINGHU@02 | C39: 01:16:00 | D39: 1.394475 | E39: 1240599000 | F39: 0.04094267 | G39: 0.002023205 | H39: 0.0100688 | J39: 5.24 | K39: 0.20
A40: QINGHU@03 | C40: 01:48:00 | D40: 1.388842 | E40: 1230000000 | F40: 0.03663079 | G40: 0.002023828 | H40: 0.0177921 | J40: 5.55 | K40: 0.36
A41: QINGHU@04 | C41: 02:19:00 | D41: 1.384461 | E41: 1218478000 | F41: 0.07167783 | G41: 0.00202349 | H41: 0.01467329 | J41: 5.38 | K41: 0.30
A42: QINGHU@05 | C42: 02:50:00 | D42: 1.379376 | E42: 1232802000 | F42: 0.008967214 | G42: 0.002023259 | H42: 0.0135713 | J42: 5.27 | K42: 0.27
A43: QINGHU@06 | C43: 03:22:00 | D43: 1.357628 | E43: 1202567000 | F43: 0.02012698 | G43: 0.002023861 | H43: 0.01608831 | J43: 5.57 | K43: 0.32
A44: QINGHU@07 | C44: 03:53:00 | D44: 1.339478 | E44: 1196138000 | F44: 0.05277635 | G44: 0.002023297 | H44: 0.01097654 | J44: 5.29 | K44: 0.22
A45: QINGHU@08 | C45: 04:24:00 | D45: 1.335097 | E45: 1176296000 | F45: 0.1016981 | G45: 0.002024144 | H45: 0.01486397 | J45: 5.71 | K45: 0.30
A46: QINGHU@09 | C46: 04:55:00 | D46: 1.331811 | E46: 1182306000 | F46: 0.03603433 | G46: 0.002023755 | H46: 0.01683762 | J46: 5.51 | K46: 0.34
A47: QINGHU@10 | C47: 05:27:00 | D47: 1.32657 | E47: 1189201000 | F47: 0.01741467 | G47: 0.002023962 | H47: 0.01597408 | J47: 5.62 | K47: 0.32
A48: QINGHU@11 | C48: 05:58:00 | D48: 1.333611 | E48: 1184982000 | F48: 0.01524951 | G48: 0.002023724 | H48: 0.01224807 | J48: 5.50 | K48: 0.25
A49: QINGHU@12 | C49: 06:29:00 | D49: 1.31726 | E49: 1190139000 | F49: 0.02041923 | G49: 0.002023194 | H49: 0.0178543 | J49: 5.23 | K49: 0.36
A50: QINGHU@13 | C50: 06:59:00 | D50: 1.314131 | E50: 1178858000 | F50: 0.03776592 | G50: 0.00202415 | H50: 0.01861904 | J50: 5.71 | K50: 0.38
A51: QINGHU@14 | C51: 07:30:00 | D51: 1.323362 | E51: 1183375000 | F51: 0.05680509 | G51: 0.002023572 | H51: 0.01763642 | J51: 5.42 | K51: 0.36
A52: QINGHU@15 | C52: 08:00:00 | D52: 1.400968 | E52: 1173300000 | F52: 0.01244985 | G52: 0.002023027 | H52: 0.01553318 | J52: 5.15 | K52: 0.31
A53: QINGHU@16 | C53: 08:31:00 | D53: 1.307872 | E53: 1168614000 | F53: 0.02515969 | G53: 0.002023285 | H53: 0.01264208 | J53: 5.28 | K53: 0.26
A54: QINGHU@17 | C54: 08:48:00 | D54: 1.298094 | E54: 1167557000 | F54: 0.01996275 | G54: 0.002023573 | H54: 0.02039061 | J54: 5.42 | K54: 0.41
A56: 16YX-4-1@29 | C56: 02:39:00 | D56: 1.380941 | E56: 1236293000 | F56: 0.0628758 | G56: 0.002031368 | H56: 0.02027037 | J56: 9.31 | K56: 0.41
A57: 16YX-4-1@28 | C57: 02:33:00 | D57: 1.381488 | E57: 1226993000 | F57: 0.07538901 | G57: 0.002025107 | H57: 0.0218525 | J57: 6.19 | K57: 0.44
A58: 16YX-4-1@27 | C58: 02:30:00 | D58: 1.39072 | E58: 1222049000 | F58: 0.1086196 | G58: 0.002024588 | H58: 0.0103787 | J58: 5.93 | K58: 0.21
A59: 16YX-4-1@26 | C59: 02:28:00 | D59: 1.390094 | E59: 1231230000 | F59: 0.0215467 | G59: 0.002026983 | H59: 0.01606894 | J59: 7.12 | K59: 0.32
A60: 16YX-4-1@25 | C60: 02:25:00 | D60: 1.382427 | E60: 1235723000 | F60: 0.004775147 | G60: 0.002025066 | H60: 0.01333968 | J60: 6.17 | K60: 0.27
A61: 16YX-4-1@24 | C61: 02:16:00 | D61: 1.384383 | E61: 1226893000 | F61: 0.08737522 | G61: 0.002028199 | H61: 0.01746416 | J61: 7.73 | K61: 0.35
A62: 16YX-4-1@23 | C62: 02:13:00 | D62: 1.382505 | E62: 1227249000 | F62: 0.04355214 | G62: 0.002033755 | H62: 0.01666781 | J62: 10.50 | K62: 0.34
A63: 16YX-4-1@22 | C63: 02:11:00 | D63: 1.374213 | E63: 1228007000 | F63: 0.06364357 | G63: 0.002024487 | H63: 0.01718429 | J63: 5.88 | K63: 0.35
A64: 16YX-4-1@21 | C64: 02:08:00 | D64: 1.37875 | E64: 1233658000 | F64: 0.06979624 | G64: 0.002025443 | H64: 0.01290557 | J64: 6.36 | K64: 0.26
A65: 16YX-4-1@20 | C65: 02:02:00 | D65: 1.385869 | E65: 1235236000 | F65: 0.02083772 | G65: 0.002034026 | H65: 0.009105143 | J65: 10.64 | K65: 0.18
A66: 16YX-4-1@19 | C66: 01:59:00 | D66: 1.384617 | E66: 1230852000 | F66: 0.2184143 | G66: 0.002024742 | H66: 0.009507129 | J66: 6.01 | K66: 0.19
A67: 16YX-4-1@18 | C67: 01:56:00 | D67: 1.382505 | E67: 1244045000 | F67: 0.08265381 | G67: 0.002034215 | H67: 0.01732307 | J67: 10.73 | K67: 0.35
A68: 16YX-4-1@17 | C68: 01:54:00 | D68: 1.390094 | E68: 1243095000 | F68: 0.1120051 | G68: 0.002032052 | H68: 0.0131442 | J68: 9.65 | K68: 0.27
A69: 16YX-4-1@16 | C69: 01:45:00 | D69: 1.384148 | E69: 1242250000 | F69: 0.07735186 | G69: 0.002033071 | H69: 0.01671414 | J69: 10.16 | K69: 0.34
A70: 16YX-4-1@15 | C70: 01:42:00 | D70: 1.3836 | E70: 1234795000 | F70: 0.1773824 | G70: 0.002033943 | H70: 0.01824694 | J70: 10.59 | K70: 0.37
A71: 16YX-4-1@14 | C71: 01:39:00 | D71: 1.390485 | E71: 1235805000 | F71: 0.1740392 | G71: 0.002026654 | H71: 0.01896096 | J71: 6.96 | K71: 0.38
A72: 16YX-4-1@13 | C72: 01:36:00 | D72: 1.396117 | E72: 1232052000 | F72: 0.2122821 | G72: 0.00202943 | H72: 0.01381482 | J72: 8.34 | K72: 0.28
A73: 16YX-4-1@12 | C73: 01:31:00 | D73: 1.393066 | E73: 1231188000 | F73: 0.1778358 | G73: 0.00202494 | H73: 0.01368074 | J73: 6.10 | K73: 0.28
A74: 16YX-4-1@11 | C74: 01:28:00 | D74: 1.398699 | E74: 1248130000 | F74: 0.1834732 | G74: 0.002024645 | H74: 0.01765983 | J74: 5.96 | K74: 0.36
A75: 16YX-4-1@10 | C75: 01:25:00 | D75: 1.404801 | E75: 1247047000 | F75: 0.04522897 | G75: 0.002032475 | H75: 0.009394482 | J75: 9.86 | K75: 0.19
A76: 16YX-4-1@09 | C76: 01:22:00 | D76: 1.406131 | E76: 1243608000 | F76: 0.1992904 | G76: 0.002034817 | H76: 0.01393583 | J76: 11.03 | K76: 0.28
A77: 16YX-4-1@08 | C77: 01:13:00 | D77: 1.403549 | E77: 1245415000 | F77: 0.2225398 | G77: 0.002027195 | H77: 0.01231021 | J77: 7.23 | K77: 0.25
A78: 16YX-4-1@07 | C78: 01:11:00 | D78: 1.397917 | E78: 1228739000 | F78: 0.07690637 | G78: 0.002025737 | H78: 0.0162864 | J78: 6.50 | K78: 0.33
A79: 16YX-4-1@06 | C79: 01:08:00 | D79: 1.387981 | E79: 1233731000 | F79: 0.09482216 | G79: 0.002024103 | H79: 0.01170329 | J79: 5.69 | K79: 0.24
A80: 16YX-4-1@05 | C80: 01:05:00 | D80: 1.379376 | E80: 1241744000 | F80: 0.0945773 | G80: 0.002025273 | H80: 0.01308821 | J80: 6.27 | K80: 0.26
A81: 16YX-4-1@04 | C81: 00:59:00 | D81: 1.395961 | E81: 1227905000 | F81: 0.03214459 | G81: 0.002025011 | H81: 0.01164006 | J81: 6.14 | K81: 0.24
A82: 16YX-4-1@03 | C82: 00:57:00 | D82: 1.399012 | E82: 1222796000 | F82: 0.09260066 | G82: 0.002033352 | H82: 0.01443488 | J82: 10.30 | K82: 0.29
A83: 16YX-4-1@02 | C83: 00:54:00 | D83: 1.393145 | E83: 1249600000 | F83: 0.1732962 | G83: 0.002025301 | H83: 0.01660225 | J83: 6.28 | K83: 0.34
A84: 16YX-4-1@01 | C84: 00:51:00 | D84: 1.390954 | E84: 1248720000 | F84: 0.1454399 | G84: 0.002025837 | H84: 0.01972575 | J84: 6.55 | K84: 0.40
A85: 16YX-1-2@16 | C85: 07:13:00 | D85: 1.312801 | E85: 1180219000 | F85: 0.0354048 | G85: 0.002036996 | H85: 0.01691699 | J85: 12.12 | K85: 0.34
A86: 16YX-1-2@15 | C86: 07:10:00 | D86: 1.318043 | E86: 1174789000 | F86: 0.1064872 | G86: 0.002039185 | H86: 0.0194537 | J86: 13.21 | K86: 0.40
A87: 16YX-1-2@14 | C87: 07:08:00 | D87: 1.319998 | E87: 1175979000 | F87: 0.04932528 | G87: 0.002034905 | H87: 0.0181359 | J87: 11.07 | K87: 0.37
A88: 16YX-1-2@13 | C88: 07:05:00 | D88: 1.311315 | E88: 1110376000 | F88: 0.06740342 | G88: 0.00203931 | H88: 0.0132677 | J88: 13.27 | K88: 0.27
A89: 16YX-1-2@12 | C89: 06:57:00 | D89: 1.323441 | E89: 1177127000 | F89: 0.01425631 | G89: 0.002037422 | H89: 0.01137464 | J89: 12.33 | K89: 0.23
A90: 16YX-1-2@11 | C90: 06:54:00 | D90: 1.316791 | E90: 1144380000 | F90: 0.08886212 | G90: 0.002032087 | H90: 0.01661052 | J90: 9.67 | K90: 0.34
A91: 16YX-1-2@10 | C91: 06:51:00 | D91: 1.313818 | E91: 1171301000 | F91: 0.1004928 | G91: 0.002024999 | H91: 0.01905993 | J91: 6.13 | K91: 0.38
A92: 16YX-1-2@09 | C92: 06:48:00 | D92: 1.319216 | E92: 1180332000 | F92: 0.04017205 | G92: 0.002031745 | H92: 0.01175469 | J92: 9.50 | K92: 0.24
A93: 16YX-1-2@08 | C93: 06:43:00 | D93: 1.321876 | E93: 1184469000 | F93: 0.04048159 | G93: 0.002039513 | H93: 0.01384409 | J93: 13.37 | K93: 0.28
A94: 16YX-1-2@07 | C94: 06:40:00 | D94: 1.31726 | E94: 1094810000 | F94: 0.03747515 | G94: 0.002037262 | H94: 0.01057272 | J94: 12.25 | K94: 0.21
A95: 16YX-1-2@06 | C95: 06:37:00 | D95: 1.346284 | E95: 1179328000 | F95: 0.1376719 | G95: 0.002034952 | H95: 0.01396958 | J95: 11.10 | K95: 0.28
A96: 16YX-1-2@05 | C96: 06:34:00 | D96: 1.325083 | E96: 1194131000 | F96: 0.2588329 | G96: 0.002038612 | H96: 0.01641403 | J96: 12.92 | K96: 0.33
A97: 16YX-1-2@04 | C97: 06:26:00 | D97: 1.321485 | E97: 1189776000 | F97: 0.03523226 | G97: 0.002035286 | H97: 0.01529041 | J97: 11.26 | K97: 0.31
A98: 16YX-1-2@03 | C98: 06:23:00 | D98: 1.326648 | E98: 1141716000 | F98: 0.4245326 | G98: 0.002035864 | H98: 0.0148648 | J98: 11.55 | K98: 0.30
A99: 16YX-1-2@02 | C99: 06:20:00 | D99: 1.330481 | E99: 1125518000 | F99: 0.06368325 | G99: 0.002037792 | H99: 0.0145588 | J99: 12.51 | K99: 0.30
A100: 16YX-1-2@01 | C100: 06:18:00 | D100: 1.325944 | E100: 1176078000 | F100: 0.1314521 | G100: 0.002039047 | H100: 0.01907869 | J100: 13.14 | K100: 0.39
A101: 16YX-1-1@33 | C101: 04:47:00 | D101: 1.33408 | E101: 1006783000 | F101: 0.2519907 | G101: 0.002026708 | H101: 0.01613006 | J101: 6.99 | K101: 0.33
A102: 16YX-1-1@32 | C102: 04:44:00 | D102: 1.333454 | E102: 1199574000 | F102: 0.04367619 | G102: 0.002025664 | H102: 0.015151 | J102: 6.47 | K102: 0.31
A103: 16YX-1-1@31 | C103: 04:38:00 | D103: 1.339243 | E103: 1154082000 | F103: 0.04059437 | G103: 0.002026454 | H103: 0.01624464 | J103: 6.86 | K103: 0.33
A104: 16YX-1-1@30 | C104: 04:35:00 | D104: 1.337522 | E104: 1193900000 | F104: 0.06600219 | G104: 0.002032768 | H104: 0.01658264 | J104: 10.01 | K104: 0.34
A105: 16YX-1-1@29 | C105: 04:32:00 | D105: 1.330638 | E105: 1200944000 | F105: 0.03057196 | G105: 0.002029093 | H105: 0.01422173 | J105: 8.18 | K105: 0.29
A106: 16YX-1-1@28 | C106: 04:30:00 | D106: 1.331107 | E106: 1200825000 | F106: 0.06871561 | G106: 0.002026979 | H106: 0.01904126 | J106: 7.12 | K106: 0.38
A107: 16YX-1-1@27 | C107: 04:21:00 | D107: 1.335566 | E107: 1202005000 | F107: 0.01833585 | G107: 0.002038556 | H107: 0.01813381 | J107: 12.90 | K107: 0.37
A108: 16YX-1-1@26 | C108: 04:18:00 | D108: 1.335019 | E108: 1170485000 | F108: 0.4196856 | G108: 0.002027019 | H108: 0.01705681 | J108: 7.14 | K108: 0.34
A109: 16YX-1-1@25 | C109: 04:15:00 | D109: 1.342764 | E109: 1192219000 | F109: 0.2408088 | G109: 0.002025244 | H109: 0.01447986 | J109: 6.26 | K109: 0.29
A110: 16YX-1-1@24 | C110: 04:13:00 | D110: 1.349335 | E110: 1195987000 | F110: 0.01192348 | G110: 0.002026436 | H110: 0.01667975 | J110: 6.85 | K110: 0.34
A111: 16YX-1-1@23 | C111: 04:07:00 | D111: 1.344485 | E111: 1204659000 | F111: 0.1121619 | G111: 0.002032634 | H111: 0.01206962 | J111: 9.94 | K111: 0.24
A112: 16YX-1-1@22 | C112: 04:04:00 | D112: 1.340338 | E112: 1204750000 | F112: 0.06801263 | G112: 0.002039031 | H112: 0.01194303 | J112: 13.13 | K112: 0.24
A113: 16YX-1-1@21 | C113: 04:01:00 | D113: 1.348475 | E113: 1206887000 | F113: 0.09910404 | G113: 0.002038847 | H113: 0.01431079 | J113: 13.04 | K113: 0.29
A114: 16YX-1-1@20 | C114: 03:58:00 | D114: 1.348475 | E114: 1184109000 | F114: 0.03721014 | G114: 0.002039319 | H114: 0.01532808 | J114: 13.28 | K114: 0.31
A115: 16YX-1-1@19 | C115: 03:50:00 | D115: 1.345815 | E115: 1202936000 | F115: 0.04260423 | G115: 0.002038436 | H115: 0.01240782 | J115: 12.84 | K115: 0.25
A116: 16YX-1-1@18 | C116: 03:47:00 | D116: 1.355359 | E116: 1197855000 | F116: 0.01059899 | G116: 0.002038583 | H116: 0.01124127 | J116: 12.91 | K116: 0.23
A117: 16YX-1-1@17 | C117: 03:44:00 | D117: 1.355985 | E117: 1191087000 | F117: 0.1366587 | G117: 0.002027102 | H117: 0.01018639 | J117: 7.18 | K117: 0.21
A118: 16YX-1-1@16 | C118: 03:42:00 | D118: 1.353325 | E118: 1207520000 | F118: 0.08561276 | G118: 0.002026585 | H118: 0.01582481 | J118: 6.93 | K118: 0.32
A119: 16YX-1-1@15 | C119: 03:36:00 | D119: 1.360287 | E119: 1210163000 | F119: 0.04668312 | G119: 0.002026686 | H119: 0.01660534 | J119: 6.98 | K119: 0.34
A120: 16YX-1-1@14 | C120: 03:33:00 | D120: 1.358723 | E120: 1209343000 | F120: 0.03444538 | G120: 0.002027462 | H120: 0.01515579 | J120: 7.36 | K120: 0.31
A121: 16YX-1-1@13 | C121: 03:30:00 | D121: 1.353168 | E121: 1214604000 | F121: 0.01370677 | G121: 0.002039047 | H121: 0.01936084 | J121: 13.14 | K121: 0.39
A122: 16YX-1-1@12 | C122: 03:27:00 | D122: 1.349883 | E122: 1210301000 | F122: 0.02171684 | G122: 0.002039033 | H122: 0.008725988 | J122: 13.13 | K122: 0.18
A123: 16YX-1-1@11 | C123: 03:19:00 | D123: 1.358958 | E123: 1206016000 | F123: 0.04284592 | G123: 0.00203796 | H123: 0.01105704 | J123: 12.60 | K123: 0.22
A124: 16YX-1-1@10 | C124: 03:16:00 | D124: 1.357002 | E124: 1230407000 | F124: 0.07985385 | G124: 0.002031559 | H124: 0.01167692 | J124: 9.41 | K124: 0.24
A125: 16YX-1-1@09 | C125: 03:13:00 | D125: 1.356063 | E125: 1213522000 | F125: 0.03758007 | G125: 0.002025123 | H125: 0.01312208 | J125: 6.20 | K125: 0.27
A126: 16YX-1-1@08 | C126: 03:10:00 | D126: 1.363104 | E126: 1208173000 | F126: 0.02375501 | G126: 0.002038321 | H126: 0.01430116 | J126: 12.78 | K126: 0.29
A127: 16YX-1-1@07 | C127: 03:05:00 | D127: 1.366233 | E127: 1234610000 | F127: 0.03282239 | G127: 0.002037855 | H127: 0.02486652 | J127: 12.55 | K127: 0.51
A128: 16YX-1-1@06 | C128: 03:02:00 | D128: 1.366702 | E128: 1218288000 | F128: 0.05195011 | G128: 0.002039019 | H128: 0.01108085 | J128: 13.13 | K128: 0.23
A129: 16YX-1-1@05 | C129: 02:59:00 | D129: 1.377733 | E129: 1216200000 | F129: 0.05823267 | G129: 0.002038618 | H129: 0.01221247 | J129: 12.93 | K129: 0.25
A130: 16YX-1-1@04 | C130: 02:56:00 | D130: 1.385791 | E130: 1223325000 | F130: 0.03397751 | G130: 0.002026084 | H130: 0.01081226 | J130: 6.68 | K130: 0.22
A131: 16YX-1-1@03 | C131: 02:48:00 | D131: 1.385165 | E131: 1222689000 | F131: 0.1830838 | G131: 0.002030641 | H131: 0.01979445 | J131: 8.95 | K131: 0.40
A132: 16YX-1-1@02 | C132: 02:45:00 | D132: 1.385634 | E132: 1148592000 | F132: 0.144403 | G132: 0.002037324 | H132: 0.009491559 | J132: 12.28 | K132: 0.19
A133: 16YX-1-1@01 | C133: 02:42:00 | D133: 1.386026 | E133: 1225730000 | F133: 0.02108298 | G133: 0.002025747 | H133: 0.01053032 | J133: 6.51 | K133: 0.21
A134: 15PG-32-1@25 | C134: 08:29:00 | D134: 2.289129 | E134: 1975668000 | F134: 0.05627893 | G134: 0.002021633 | H134: 0.006241529 | J134: 6.02 | K134: 0.13
A135: 15PG-32-1@24 | C135: 08:26:00 | D135: 2.281619 | E135: 1970422000 | F135: 0.03861954 | G135: 0.002032126 | H135: 0.01125306 | J135: 11.25 | K135: 0.23
A136: 15PG-32-1@23 | C136: 08:23:00 | D136: 2.280289 | E136: 1964684000 | F136: 0.09324151 | G136: 0.002022308 | H136: 0.01000566 | J136: 6.36 | K136: 0.20
A137: 15PG-32-1@22 | C137: 08:20:00 | D137: 2.284513 | E137: 1977954000 | F137: 0.02812836 | G137: 0.002029776 | H137: 0.01196493 | J137: 10.08 | K137: 0.24
A138: 15PG-32-1@21 | C138: 08:14:00 | D138: 2.273639 | E138: 1899993000 | F138: 0.01618749 | G138: 0.002023842 | H138: 0.01325049 | J138: 7.12 | K138: 0.27
A139: 15PG-32-1@20 | C139: 08:11:00 | D139: 2.266676 | E139: 1973570000 | F139: 0.03103863 | G139: 0.002020248 | H139: 0.007814782 | J139: 5.33 | K139: 0.16
A140: 15PG-32-1@19 | C140: 08:08:00 | D140: 2.265268 | E140: 1960174000 | F140: 0.03387773 | G140: 0.002026724 | H140: 0.009815498 | J140: 8.56 | K140: 0.20
A141: 15PG-32-1@18 | C141: 08:05:00 | D141: 2.28467 | E141: 1966758000 | F141: 0.1072559 | G141: 0.002022012 | H141: 0.01036606 | J141: 6.21 | K141: 0.21
A142: 15PG-32-1@17 | C142: 07:56:00 | D142: 2.301333 | E142: 1989623000 | F142: 0.01874489 | G142: 0.002024561 | H142: 0.008242356 | J142: 7.48 | K142: 0.17
A143: 15PG-32-1@16 | C143: 07:53:00 | D143: 2.295387 | E143: 1978198000 | F143: 0.01998894 | G143: 0.002022008 | H143: 0.01678133 | J143: 6.21 | K143: 0.34
A144: 15PG-32-1@15 | C144: 07:51:00 | D144: 2.298125 | E144: 1980913000 | F144: 0.1254232 | G144: 0.002030905 | H144: 0.0111125 | J144: 10.65 | K144: 0.23
A145: 15PG-32-1@14 | C145: 07:48:00 | D145: 2.305245 | E145: 1968192000 | F145: 0.03713386 | G145: 0.002030887 | H145: 0.008843739 | J145: 10.64 | K145: 0.18
A146: 15PG-32-1@13 | C146: 07:42:00 | D146: 2.291241 | E146: 1974603000 | F146: 0.04528089 | G146: 0.002025047 | H146: 0.01241948 | J146: 7.72 | K146: 0.25
A147: 15PG-32-1@12 | C147: 07:39:00 | D147: 2.293666 | E147: 1973195000 | F147: 0.08483979 | G147: 0.00202205 | H147: 0.009115418 | J147: 6.23 | K147: 0.18
A148: 15PG-32-1@11 | C148: 07:36:00 | D148: 2.304619 | E148: 1967840000 | F148: 0.04234037 | G148: 0.002022496 | H148: 0.007186766 | J148: 6.45 | K148: 0.14
A149: 15PG-32-1@10 | C149: 07:33:00 | D149: 2.31252 | E149: 1971013000 | F149: 0.02142527 | G149: 0.002020938 | H149: 0.008491817 | J149: 5.67 | K149: 0.17
A150: 15PG-32-1@09 | C150: 07:24:00 | D150: 2.299612 | E150: 1978537000 | F150: 0.1076713 | G150: 0.002022325 | H150: 0.00916736 | J150: 6.37 | K150: 0.18
A151: 15PG-32-1@08 | C151: 07:21:00 | D151: 2.2957 | E151: 1963064000 | F151: 0.03309595 | G151: 0.002021729 | H151: 0.01279462 | J151: 6.07 | K151: 0.26
A152: 15PG-32-1@07 | C152: 07:18:00 | D152: 2.359615 | E152: 1970412000 | F152: 0.02805095 | G152: 0.00202317 | H152: 0.009958166 | J152: 6.79 | K152: 0.20
A153: 15PG-32-1@06 | C153: 07:15:00 | D153: 2.292649 | E153: 1976690000 | F153: 0.3003691 | G153: 0.002023915 | H153: 0.01199951 | J153: 7.16 | K153: 0.24
A154: 15PG-32-1@05 | C154: 07:09:00 | D154: 2.26785 | E154: 1954382000 | F154: 0.04977399 | G154: 0.00202228 | H154: 0.009030972 | J154: 6.34 | K154: 0.18
A155: 15PG-32-1@04 | C155: 07:06:00 | D155: 2.267381 | E155: 1949036000 | F155: 0.04208294 | G155: 0.00202582 | H155: 0.007670671 | J155: 8.11 | K155: 0.15
A156: 15PG-32-1@03 | C156: 07:03:00 | D156: 2.279193 | E156: 1942111000 | F156: 0.03913392 | G156: 0.002021374 | H156: 0.008243209 | J156: 5.89 | K156: 0.17
A157: 15PG-32-1@02 | C157: 07:00:00 | D157: 2.287642 | E157: 1942627000 | F157: 0.05607054 | G157: 0.002021369 | H157: 0.008916857 | J157: 5.89 | K157: 0.18
A158: 15PG-32-1@01 | C158: 06:52:00 | D158: 2.286704 | E158: 1949883000 | F158: 0.09062961 | G158: 0.002022615 | H158: 0.009450842 | J158: 6.51 | K158: 0.19

Sheet Raw data for U-Pb isotope
E2: 207Pb/206Pb | G2: 208Pb/206Pb | I2: 206Pb/238U | K2: 238U16O2/238U | M2: 90Zr216O/238U | O2: 232Th16O/238U | Q2: 204Pb/206Pb | S2: 206Pb/204Pb | U2: 206Pb/Coeff | W2: 238U/Coeff | Y2: 204Pb/Coeff | AA2: 200.5/Coeff | AC2: 177Hf16O2/90Zr216O | AE2: 90Zr216O/Coeff | AG2: 94Zr216O/Coeff | AI2: 270.1/Coeff
E3: EM/EM | G3: EM/EM | I3: EM/EM | K3: EM/EM | M3: EM/EM | O3: EM/EM | Q3: EM/EM | S3: EM/EM | U3: EM | W3: EM | Y3: EM | AA3: EM | AC3: EM/EM | AE3: EM | AG3: EM | AI3: EM
A4: PL@1 | D4: 7.341938 | E4: 0.05328339 | F4: 0.4394415 | G4: 0.04626646 | H4: 1.225009 | I4: 0.1340974 | J4: 0.6366789 | K4: 2.778538 | L4: 0.1378613 | M4: 0.8578336 | N4: 0.9078699 | O4: 0.895992 | P4: 0.3127425 | Q4: 8.09371e-06 | R4: 44.54472 | S4: NaN | T4: NaN | U4: 10743 | V4: 1.489813 | W4: 80172.93 | X4: 2.074792 | Y4: 0.08503401 | Z4: 43.64358 | AA4: 0 | AB4: NaN | AC4: 0.7600257 | AD4: 0.7605022 | AE4: 68698.68 | AF4: 1.186353 | AG4: 9830.679 | AH4: 1.398125 | AI4: 5.466475 | AJ4: 36.85139
A5: PL@2 | D5: 7.394353 | E5: 0.05343505 | F5: 0.588367 | G5: 0.03243918 | H5: 3.078891 | I5: 0.134275 | J5: 0.4409962 | K5: 2.77579 | L5: 0.2104567 | M5: 1.20773 | N5: 0.5963266 | O5: 0.6371871 | P5: 0.2753355 | Q5: 1.260124e-05 | R5: 35.35601 | S5: NaN | T5: NaN | U5: 7687.678 | V5: 1.241571 | W5: 57254.22 | X5: 1.179904 | Y5: 0.09718173 | Z5: 35.35534 | AA5: 0 | AB5: NaN | AC5: 0.7707942 | AD5: 0.7007063 | AE5: 69123.05 | AF5: 0.7539514 | AG5: 9816.084 | AH5: 0.8670851 | AI5: 3.644316 | AJ5: 40.82483
A6: PL@3 | D6: 7.227799 | E6: 0.05347668 | F6: 0.5323598 | G6: 0.02807245 | H6: 2.055953 | I6: 0.1339413 | J6: 0.74318 | K6: 2.783002 | L6: 0.2495516 | M6: 1.073906 | N6: 0.8633437 | O6: 0.5313208 | P6: 0.3607095 | Q6: 3.417011e-05 | R6: 21.32105 | S6: 29894.39 | T6: 21.32105 | U6: 8772.239 | V6: 1.356191 | W6: 65550.13 | X6: 2.0441 | Y6: 0.2976191 | Z6: 21.32007 | AA6: 0 | AB6: NaN | AC6: 0.7650531 | AD6: 0.6448301 | AE6: 70322.79 | AF6: 1.235488 | AG6: 9999.504 | AH6: 1.522094 | AI6: 3.644316 | AJ6: 40.82483
A7: Qinghu@1 | D7: 7.388564 | E7: 0.05002768 | F7: 1.007543 | G7: 0.1317726 | H7: 1.610142 | I7: 0.06438566 | J7: 0.4564409 | K7: 2.845749 | L7: 0.3713488 | M7: 1.709865 | N7: 0.4659156 | O7: 2.51245 | P7: 0.5782356 | Q7: 6.494293e-05 | R7: 25.93179 | S7: NaN | T7: NaN | U7: 2613.363 | V7: 0.5185006 | W7: 40592.67 | X7: 0.5839185 | Y7: 0.170068 | Z7: 25.81989 | AA7: 0 | AB7: NaN | AC7: 0.7539922 | AD7: 1.126769 | AE7: 69412.91 | AF7: 0.8955611 | AG7: 9949.036 | AH7: 1.054337 | AI7: 3.644316 | AJ7: 47.14045
A8: 16YX-4-1@1 | D8: 7.275911 | E8: 0.06840269 | F8: 0.885748 | G8: 0.3157487 | H8: 1.596473 | I8: 0.3518529 | J8: 0.5358218 | K8: 2.78666 | L8: 0.4776523 | M8: 11.31018 | N8: 0.7033643 | O8: 6.412484 | P8: 0.5025784 | Q8: 8.504408e-05 | R8: 21.82565 | S8: 13311.09 | T8: 25.86636 | U8: 2162.778 | V8: 1.157002 | W8: 6148.311 | X8: 1.388939 | Y8: 0.1842404 | Z8: 21.82179 | AA8: 0.0728863 | AB8: 70.71068 | AC8: 0.6712606 | AD8: 0.6516544 | AE8: 69501.4 | AF8: 0.7951238 | AG8: 9894.517 | AH8: 1.021488 | AI8: 1.214772 | AJ8: 70.71068
A9: 16YX-4-1@2 | D9: 7.257605 | E9: 0.0688539 | F9: 0.8236933 | G9: 0.1110058 | H9: 1.431346 | I9: 0.3476367 | J9: 0.4274194 | K9: 2.790686 | L9: 0.3190735 | M9: 6.911927 | N9: 0.3095058 | O9: 2.175151 | P9: 0.3307519 | Q9: 0.0001123971 | R9: 28.87568 | S9: 10615.93 | T9: 22.34752 | U9: 3382.589 | V9: 0.8299141 | W9: 9732.011 | X9: 1.074331 | Y9: 0.3765792 | Z9: 28.245 | AA9: 0 | AB9: NaN | AC9: 0.5606426 | AD9: 0.6206151 | AE9: 67418.9 | AF9: 0.9363722 | AG9: 9482.097 | AH9: 1.405141 | AI9: 0 | AJ9: NaN
A10: 16YX-4-1@4 | D10: 7.280448 | E10: 0.06766753 | F10: 0.4112425 | G10: 0.1918211 | H10: 0.7415542 | I10: 0.3429128 | J10: 3.673898 | K10: 2.79236 | L10: 1.313123 | M10: 1.454885 | N10: 4.142857 | O10: 3.843597 | P10: 0.8818551 | Q10: 3.548774e-05 | R10: 18.9068 | S10: 27818.12 | T10: 14.95245 | U10: 16628.47 | V10: 5.571093 | W10: 49271.95 | X10: 8.591883 | Y10: 0.558795 | Z10: 16.55603 | AA10: 0 | AB10: NaN | AC10: 0.898758 | AD10: 2.285874 | AE10: 70292.69 | AF10: 4.66131 | AG10: 10075.78 | AH10: 4.82184 | AI10: 4.859089 | AJ10: 48.4123
A11: 16YX-4-1@5 | D11: 9.015855 | E11: 0.06805114 | F11: 0.7488089 | G11: 0.2325367 | H11: 1.327816 | I11: 0.3183956 | J11: 0.5601874 | K11: 2.623778 | L11: 0.2494518 | M11: 5.483301 | N11: 0.9060941 | O11: 4.544539 | P11: 0.3842348 | Q11: 0.0001064372 | R11: 14.90949 | S11: 9102.261 | T11: 14.90949 | U11: 5155.75 | V11: 1.796274 | W11: 16205.37 | X11: 2.341994 | Y11: 0.5466472 | Z11: 14.90712 | AA11: 0 | AB11: NaN | AC11: 0.6956781 | AD11: 0.8883184 | AE11: 88748.2 | AF11: 1.46232 | AG11: 12535.87 | AH11: 1.722058 | AI11: 0 | AJ11: NaN
A12: 16YX-4-1@6 | D12: 9.133515 | E12: 0.06690405 | F12: 0.7072623 | G12: 0.2631839 | H12: 1.950931 | I12: 0.3249767 | J12: 0.3206042 | K12: 2.662075 | L12: 0.7397066 | M12: 4.684657 | N12: 1.266693 | O12: 5.304126 | P12: 1.24762 | Q12: 7.855302e-05 | R12: 16.22405 | S12: 14244.24 | T12: 16.22405 | U12: 5877.916 | V12: 0.9061011 | W12: 17894.82 | X12: 0.6012595 | Y12: 0.4616132 | Z12: 16.22214 | AA12: 0 | AB12: NaN | AC12: 0.6062499 | AD12: 1.461429 | AE12: 83810.57 | AF12: 1.069071 | AG12: 11900.95 | AH12: 1.095732 | AI12: 0 | AJ12: NaN
A13: PL@4 | D13: 8.541147 | E13: 0.05376434 | F13: 0.5546972 | G13: 0.02740272 | H13: 1.861108 | I13: 0.1216046 | J13: 0.665925 | K13: 2.627634 | L13: 0.3769905 | M13: 1.429499 | N13: 1.087778 | O13: 0.5008845 | P13: 0.249015 | Q13: 1.210387e-05 | R13: 35.35599 | S13: NaN | T13: NaN | U13: 7910.569 | V13: 2.293446 | W13: 65123.31 | X13: 2.905315 | Y13: 0.09718173 | Z13: 35.35534 | AA13: 0 | AB13: NaN | AC13: 0.7705896 | AD13: 1.045811 | AE13: 92919.44 | AF13: 1.846591 | AG13: 13334.44 | AH13: 2.05998 | AI13: 0 | AJ13: NaN
A14: 16YX-4-1@7 | D14: 9.172944 | E14: 0.07206871 | F14: 1.176184 | G14: 0.1860433 | H14: 1.076536 | I14: 0.3222543 | J14: 2.067823 | K14: 2.675892 | L14: 0.7739283 | M14: 7.408143 | N14: 4.512752 | O14: 3.376457 | P14: 0.5992746 | Q14: 0.0002779478 | R14: 13.93006 | S14: 4114.459 | T14: 16.13239 | U14: 3825.51 | V14: 4.337769 | W14: 11956.68 | X14: 6.153514 | Y14: 1.044704 | Z14: 12.77307 | AA14: 0 | AB14: NaN | AC14: 0.6230894 | AD14: 0.8420485 | AE14: 87129.69 | AF14: 1.878071 | AG14: 12458.23 | AH14: 1.97314 | AI14: 0 | AJ14: NaN
A15: 16YX-4-1@10 | D15: 9.443468 | E15: 0.06749313 | F15: 0.583163 | G15: 0.2941526 | H15: 1.445373 | I15: 0.3252726 | J15: 2.804829 | K15: 2.665945 | L15: 0.82951 | M15: 5.982001 | N15: 4.747483 | O15: 5.791615 | P15: 1.179352 | Q15: 3.955016e-05 | R15: 26.29731 | S15: NaN | T15: NaN | U15: 5042.981 | V15: 3.861652 | W15: 15638.71 | X15: 6.02582 | Y15: 0.1943635 | Z15: 25 | AA15: 0 | AB15: NaN | AC15: 0.7188659 | AD15: 0.8611771 | AE15: 91951.38 | AF15: 1.148778 | AG15: 13041.27 | AH15: 1.11865 | AI15: 0 | AJ15: NaN
A16: 16YX-4-1@11 | D16: 9.322835 | E16: 0.0674332 | F16: 0.6551779 | G16: 0.1728534 | H16: 1.336021 | I16: 0.3296959 | J16: 0.5821025 | K16: 2.648231 | L16: 0.3037995 | M16: 7.593983 | N16: 0.8670233 | O16: 3.334475 | P16: 0.6025486 | Q16: 2.146422e-05 | R16: 36.58944 | S16: NaN | T16: NaN | U16: 3997.145 | V16: 0.6233916 | W16: 12127.5 | X16: 1.049035 | Y16: 0.08503401 | Z16: 36.51484 | AA16: 0 | AB16: NaN | AC16: 0.6513057 | AD16: 0.9860505 | AE16: 92120.71 | AF16: 1.654652 | AG16: 13082.03 | AH16: 1.6903 | AI16: 0 | AJ16: NaN
A17: 16YX-4-1@12 | D17: 9.451839 | E17: 0.06737248 | F17: 0.3520152 | G17: 0.3731159 | H17: 0.6193573 | I17: 0.3156085 | J17: 0.4574142 | K17: 2.62074 | L17: 0.3284705 | M17: 2.081725 | N17: 1.473778 | O17: 7.203011 | P17: 0.4480172 | Q17: 1.844481e-05 | R17: 21.82239 | S17: 58309.47 | T17: 21.82239 | U17: 13857.91 | V17: 2.124251 | W17: 43933.82 | X17: 2.50059 | Y17: 0.255102 | Z17: 21.82179 | AA17: 0 | AB17: NaN | AC17: 0.7429328 | AD17: 0.902655 | AE17: 91257.27 | AF17: 1.039227 | AG17: 13013.5 | AH17: 1.391719 | AI17: 3.644316 | AJ17: 40.82483
A18: 16YX-4-1@14 | D18: 9.36422 | E18: 0.06816986 | F18: 0.8488351 | G18: 0.1961124 | H18: 0.7713465 | I18: 0.3114284 | J18: 1.354595 | K18: 2.600898 | L18: 0.2744103 | M18: 4.211721 | N18: 2.702191 | O18: 3.704564 | P18: 0.7496511 | Q18: 5.468335e-05 | R18: 21.29315 | S18: 24542.38 | T18: 21.8122 | U18: 6859.587 | V18: 2.993618 | W18: 22095.38 | X18: 4.240544 | Y18: 0.3644315 | Z18: 19.53155 | AA18: 0 | AB18: NaN | AC18: 0.7445899 | AD18: 1.403929 | AE18: 92425.33 | AF18: 1.425244 | AG18: 13077.56 | AH18: 1.291301 | AI18: 1.214772 | AJ18: 70.71068
A19: PL@5 | D19: 9.464434 | E19: 0.05346182 | F19: 0.4803216 | G19: 0.03063279 | H19: 1.640878 | I19: 0.1219613 | J19: 0.736355 | K19: 2.626134 | L19: 0.2257378 | M19: 1.284637 | N19: 1.287733 | O19: 0.5644332 | P19: 0.1657892 | Q19: 2.844186e-05 | R19: 21.82272 | S19: 34224.16 | T19: 21.82272 | U19: 8966.302 | V19: 2.258306 | W19: 73612.53 | X19: 2.982941 | Y19: 0.255102 | Z19: 21.82179 | AA19: 0 | AB19: NaN | AC19: 0.7914963 | AD19: 1.284317 | AE19: 94348.44 | AF19: 1.686978 | AG19: 13479.81 | AH19: 2.066235 | AI19: 1.214772 | AJ19: 70.71068
A20: Qinghu@2 | D20: 9.524516 | E20: 0.05432723 | F20: 0.9074088 | G20: 0.2169372 | H20: 1.121511 | I20: 0.05580681 | J20: 0.9037345 | K20: 2.588779 | L20: 0.8056819 | M20: 1.235508 | N20: 1.373474 | O20: 4.055646 | P20: 0.1080867 | Q20: 0.0003964188 | R20: 9.247052 | S20: 2405.003 | T20: 8.367366 | U20: 4474.207 | V20: 0.7383042 | W20: 79778.56 | X20: 0.5456546 | Y20: 1.737124 | Z20: 8.401316 | AA20: 0 | AB20: NaN | AC20: 0.6496469 | AD20: 1.096208 | AE20: 97462.48 | AF20: 1.32438 | AG20: 13947.14 | AH20: 1.40586 | AI20: 3.644316 | AJ20: 40.82483
A21: 16YX-4-1@15 | D21: 9.568169 | E21: 0.06905035 | F21: 0.5479615 | G21: 0.008913609 | H21: 3.924743 | I21: 0.3201294 | J21: 1.057274 | K21: 2.658662 | L21: 0.2392725 | M21: 5.356986 | N21: 1.267459 | O21: 0.07503448 | P21: 6.271064 | Q21: 0.0001805857 | R21: 11.03906 | S21: 5923.49 | T21: 10.97939 | U21: 5608.662 | V21: 1.660646 | W21: 17543.65 | X21: 2.491401 | Y21: 1.008261 | Z21: 10.97643 | AA21: 0 | AB21: NaN | AC21: 0.9201151 | AD21: 1.310747 | AE21: 93835.29 | AF21: 1.593199 | AG21: 13293.68 | AH21: 1.652716 | AI21: 1.822158 | AJ21: 69.38887
A22: 16YX-4-1@16 | D22: 9.663064 | E22: 0.06764513 | F22: 0.2816363 | G22: 0.21251 | H22: 0.7029506 | I22: 0.3117522 | J22: 0.2183784 | K22: 2.567631 | L22: 0.7424091 | M22: 1.23806 | N22: 2.38519 | O22: 4.101529 | P22: 0.2885812 | Q22: 3.709249e-05 | R22: 12.21762 | S22: 25749.24 | T22: 12.21762 | U22: 22001.73 | V22: 1.088423 | W22: 70585.88 | X22: 1.296115 | Y22: 0.813897 | Z22: 12.21694 | AA22: 0 | AB22: NaN | AC22: 0.8849622 | AD22: 0.715579 | AE22: 87229.15 | AF22: 1.106478 | AG22: 12401.05 | AH22: 1.124613 | AI22: 4.859089 | AJ22: 35.35535
A23: 16YX-4-1@17 | D23: 9.50754 | E23: 0.0668747 | F23: 0.1306596 | G23: 0.0270658 | H23: 0.7147032 | I23: 0.3533505 | J23: 0.2218058 | K23: 2.670502 | L23: 0.2539217 | M23: 0.3195432 | N23: 2.071565 | O23: 0.5515092 | P23: 0.7680672 | Q23: 6.74966e-06 | R23: 17.46333 | S23: 172773.9 | T23: 15.2462 | U23: 101288.6 | V23: 0.5401317 | W23: 288281.7 | X23: 0.2678569 | Y23: 0.6802721 | Z23: 16.81482 | AA23: 0 | AB23: NaN | AC23: 1.00476 | AD23: 0.5589668 | AE23: 91546.88 | AF23: 1.611433 | AG23: 12907.87 | AH23: 1.504511 | AI23: 15.79205 | AJ23: 19.61161
A24: 16YX-4-1@19 | D24: 9.669479 | E24: 0.0671103 | F24: 0.5583265 | G24: 0.2424384 | H24: 1.051008 | I24: 0.3039473 | J24: 0.6851638 | K24: 2.622253 | L24: 0.1905137 | M24: 3.365415 | N24: 2.264134 | O24: 4.604213 | P24: 0.8687539 | Q24: 2.609297e-05 | R24: 23.57114 | S24: 53218.66 | T24: 23.57114 | U24: 8437.224 | V24: 2.881224 | W24: 27796.01 | X24: 3.511216 | Y24: 0.2186589 | Z24: 23.57023 | AA24: 0 | AB24: NaN | AC24: 0.6558729 | AD24: 1.4827 | AE24: 93100.22 | AF24: 1.23527 | AG24: 13351.05 | AH24: 1.157408 | AI24: 1.822158 | AJ24: 69.38887
A25: 16YX-4-1@20 | D25: 9.577948 | E25: 0.07594681 | F25: 0.6712135 | G25: 0.03194349 | H25: 2.672417 | I25: 0.2619841 | J25: 0.2745302 | K25: 2.366047 | L25: 0.7873896 | M25: 2.745555 | N25: 1.36851 | O25: 0.1216113 | P25: 1.593192 | Q25: 0.0007121258 | R25: 7.815633 | S25: 1448.244 | T25: 6.54337 | U25: 7406.491 | V25: 2.713573 | W25: 27919.58 | X25: 2.183567 | Y25: 5.320701 | Z25: 10.27989 | AA25: 0 | AB25: NaN | AC25: 0.8648803 | AD25: 1.101874 | AE25: 76528.22 | AF25: 1.087208 | AG25: 10933.46 | AH25: 1.326018 | AI25: 0 | AJ25: NaN
A26: PL@6 | D26: 9.025947 | E26: 0.05456911 | F26: 0.7379498 | G26: 0.02975644 | H26: 2.075775 | I26: 0.1217664 | J26: 0.985302 | K26: 2.62013 | L26: 0.1546258 | M26: 1.601366 | N26: 0.8955392 | O26: 0.5344834 | P26: 0.3357729 | Q26: 1.91907e-05 | R26: 25.82086 | S26: 54825.42 | T26: 25.82086 | U26: 7244.92 | V26: 1.977078 | W26: 59589.77 | X26: 2.824836 | Y26: 0.1822157 | Z26: 25.81989 | AA26: 0 | AB26: NaN | AC26: 0.794581 | AD26: 0.9653725 | AE26: 95282.92 | AF26: 1.953238 | AG26: 13610.79 | AH26: 2.172081 | AI26: 6.07386 | AJ26: 31.62278
A27: 16YX-4-1@21 | D27: 9.557842 | E27: 0.06791382 | F27: 0.8148055 | G27: 0.1400677 | H27: 2.993421 | I27: 0.3100137 | J27: 1.929179 | K27: 2.602124 | L27: 0.5237146 | M27: 5.563197 | N27: 4.224152 | O27: 2.658485 | P27: 1.859893 | Q27: 6.235708e-05 | R27: 25.22558 | S27: 18339.76 | T27: 21.90453 | U27: 5164.947 | V27: 3.760877 | W27: 16760.92 | X27: 5.616365 | Y27: 0.3158406 | Z27: 24.01922 | AA27: 0 | AB27: NaN | AC27: 0.7969329 | AD27: 0.7470111 | AE27: 91922.9 | AF27: 1.080549 | AG27: 13048.77 | AH27: 0.8945926 | AI27: 1.214772 | AJ27: 70.71068
A28: 16YX-4-1@22 | D28: 9.402005 | E28: 0.06699884 | F28: 0.7857803 | G28: 0.2532944 | H28: 1.077915 | I28: 0.3265459 | J28: 0.9176945 | K28: 2.617086 | L28: 0.7294486 | M28: 10.59068 | N28: 2.519392 | O28: 4.876884 | P28: 0.5214668 | Q28: 0.000102979 | R28: 26.09302 | S28: NaN | T28: NaN | U28: 2791.95 | V28: 2.597561 | W28: 8564.749 | X28: 3.377876 | Y28: 0.2915452 | Z28: 26.13179 | AA28: 0 | AB28: NaN | AC28: 0.7069311 | AD28: 0.7282939 | AE28: 90252.21 | AF28: 1.123195 | AG28: 12816.44 | AH28: 1.411919 | AI28: 0 | AJ28: NaN
A29: 16YX-4-1@24 | D29: 9.487121 | E29: 0.06895366 | F29: 0.8611923 | G29: 0.3021532 | H29: 1.31292 | I29: 0.315754 | J29: 0.478284 | K29: 2.581717 | L29: 0.2841053 | M29: 7.069867 | N29: 4.605325 | O29: 5.786696 | P29: 0.424723 | Q29: 3.782786e-05 | R29: 28.86911 | S29: NaN | T29: NaN | U29: 3957.636 | V29: 4.790987 | W29: 12525.63 | X29: 4.549392 | Y29: 0.1457726 | Z29: 28.86751 | AA29: 0 | AB29: NaN | AC29: 0.6898744 | AD29: 0.8978912 | AE29: 87460.92 | AF29: 0.6906708 | AG29: 12455.17 | AH29: 0.560192 | AI29: 0 | AJ29: NaN
A30: 16YX-4-1@25 | D30: 9.258842 | E30: 0.06766386 | F30: 0.5310747 | G30: 0.2778303 | H30: 0.914327 | I30: 0.320589 | J30: 0.7940642 | K30: 2.623342 | L30: 0.3192988 | M30: 1.95938 | N30: 2.629746 | O30: 5.37564 | P30: 0.7837678 | Q30: 3.075258e-05 | R30: 16.66742 | S30: 36808.44 | T30: 16.66742 | U30: 14445.37 | V30: 3.583047 | W30: 45070.83 | X30: 3.65699 | Y30: 0.4373178 | Z30: 16.66667 | AA30: 0 | AB30: NaN | AC30: 0.6875506 | AD30: 0.6320378 | AE30: 87802.91 | AF30: 1.010619 | AG30: 12533.23 | AH30: 1.294699 | AI30: 1.214772 | AJ30: 70.71068
A31: 16YX-4-1@26 | D31: 9.33723 | E31: 0.06721119 | F31: 0.4261795 | G31: 0.006010059 | H31: 5.602603 | I31: 0.3199921 | J31: 0.5573245 | K31: 2.599072 | L31: 0.2088516 | M31: 2.8266 | N31: 1.329647 | O31: 0.08978007 | P31: 2.572323 | Q31: 3.263529e-05 | R31: 20.00096 | S31: 38255.53 | T31: 20.00096 | U31: 9470.427 | V31: 2.140659 | W31: 29622.23 | X31: 2.684191 | Y31: 0.3036929 | Z31: 20 | AA31: 0 | AB31: NaN | AC31: 0.8919959 | AD31: 0.8885483 | AE31: 83559.43 | AF31: 1.49999 | AG31: 11873.59 | AH31: 1.746815 | AI31: 1.214772 | AJ31: 70.71068
A32: PL@7 | D32: 9.424927 | E32: 0.05297383 | F32: 0.7485728 | G32: 0.02669272 | H32: 3.42657 | I32: 0.124984 | J32: 0.6548059 | K32: 2.633422 | L32: 0.6936028 | M32: 3.076395 | N32: 2.542657 | O32: 0.4785616 | P32: 0.769 | Q32: 4.186762e-05 | R32: 27.99924 | S32: NaN | T32: NaN | U32: 3801.367 | V32: 0.9789321 | W32: 30426.4 | X32: 1.334442 | Y32: 0.1579203 | Z32: 27.73501 | AA32: 0 | AB32: NaN | AC32: 0.7974454 | AD32: 0.9365085 | AE32: 93414.66 | AF32: 1.194321 | AG32: 13329.77 | AH32: 1.4226 | AI32: 3.03693 | AJ32: 44.72136
A33: Qinghu@3 | D33: 9.286849 | E33: 0.05008763 | F33: 0.8942085 | G33: 0.2057286 | H33: 0.9942635 | I33: 0.05691056 | J33: 0.9893248 | K33: 2.621255 | L33: 0.1936557 | M33: 1.24922 | N33: 1.540437 | O33: 3.79007 | P33: 0.1486589 | Q33: 4.514248e-05 | R33: 25.00168 | S33: 26049.84 | T33: 25.00168 | U33: 4335.559 | V33: 2.175074 | W33: 76321.67 | X33: 3.150166 | Y33: 0.1943635 | Z33: 25 | AA33: 0 | AB33: NaN | AC33: 0.6601462 | AD33: 0.8704935 | AE33: 95079.12 | AF33: 1.71651 | AG33: 13462.37 | AH33: 1.950901 | AI33: 4.859089 | AJ33: 48.4123
A34: 16YX-4-1@27 | D34: 9.375094 | E34: 0.06757242 | F34: 0.3193293 | G34: 0.09063789 | H34: 19.48972 | I34: 0.3137216 | J34: 0.7235044 | K34: 2.63612 | L34: 0.3217279 | M34: 1.634986 | N34: 4.471658 | O34: 1.838217 | P34: 19.24059 | Q34: 4.126062e-05 | R34: 13.36387 | S34: 25786.05 | T34: 13.36387 | U34: 16800.26 | V34: 5.050652 | W34: 53638.31 | X34: 5.503438 | Y34: 0.6802721 | Z34: 13.36306 | AA34: 0 | AB34: NaN | AC34: 0.8422155 | AD34: 1.273979 | AE34: 86424.35 | AF34: 1.244769 | AG34: 12362.13 | AH34: 1.050076 | AI34: 1.822158 | AJ34: 57.73503
A35: 16YX-4-1@28 | D35: 9.298271 | E35: 0.0670858 | F35: 0.2348846 | G35: 0.004019901 | H35: 3.653954 | I35: 0.3062847 | J35: 0.2189572 | K35: 2.572172 | L35: 0.3812437 | M35: 0.8027459 | N35: 1.142787 | O35: 0.05387 | P35: 0.373985 | Q35: 3.153418e-05 | R35: 11.11164 | S35: 33331.22 | T35: 11.11164 | U35: 31238.63 | V35: 1.898416 | W35: 102014.1 | X35: 2.067514 | Y35: 0.9839651 | Z35: 11.11111 | AA35: 0 | AB35: NaN | AC35: 0.9215853 | AD35: 1.167568 | AE35: 81777.35 | AF35: 0.9672227 | AG35: 11604.59 | AH35: 1.080743 | AI35: 4.251702 | AJ35: 40.82483
A36: 16YX-4-1@29 | D36: 9.338403 | E36: 0.06673552 | F36: 0.7036844 | G36: 0.004540359 | H36: 4.274405 | I36: 0.3682972 | J36: 0.6706809 | K36: 2.908634 | L36: 0.2646068 | M36: 3.355597 | N36: 2.242314 | O36: 0.07459991 | P36: 2.211551 | Q36: 5.262051e-05 | R36: 21.6165 | S36: 19776.3 | T36: 18.84583 | U36: 9434.201 | V36: 1.967352 | W36: 26067.42 | X36: 1.621209 | Y36: 0.4980564 | Z36: 21.21624 | AA36: 0 | AB36: NaN | AC36: 0.9295508 | AD36: 0.7580187 | AE36: 87315.67 | AF36: 1.294645 | AG36: 12554.11 | AH36: 1.420771 | AI36: 1.214772 | AJ36: 70.71068
A37: 16YX-4-1@30 | D37: 9.430403 | E37: 0.06748147 | F37: 0.441365 | G37: 0.5193285 | H37: 2.809065 | I37: 0.3122492 | J37: 0.3546291 | K37: 2.615179 | L37: 0.3533131 | M37: 2.325424 | N37: 4.985884 | O37: 9.92621 | P37: 2.690068 | Q37: 2.768404e-05 | R37: 18.89903 | S37: 43273.4 | T37: 18.89903 | U37: 12032.2 | V37: 5.160916 | W37: 38505.44 | X37: 4.915779 | Y37: 0.3401361 | Z37: 20.41241 | AA37: 0 | AB37: NaN | AC37: 0.5254742 | AD37: 1.010783 | AE37: 88245.82 | AF37: 0.771853 | AG37: 12437.13 | AH37: 0.9201744 | AI37: 1.214772 | AJ37: 70.71068
A38: 16YX-4-1@31 | D38: 9.313682 | E38: 0.06748021 | F38: 0.4139271 | G38: 0.280077 | H38: 0.6115195 | I38: 0.3213855 | J38: 1.304699 | K38: 2.636302 | L38: 0.3564062 | M38: 2.1007 | N38: 1.975789 | O38: 5.413664 | P38: 0.2686035 | Q38: 2.448294e-05 | R38: 27.9278 | S38: NaN | T38: NaN | U38: 14023.2 | V38: 2.26353 | W38: 43741.13 | X38: 3.40471 | Y38: 0.3401361 | Z38: 27.27724 | AA38: 0 | AB38: NaN | AC38: 0.7146902 | AD38: 0.8044703 | AE38: 91520.59 | AF38: 1.47007 | AG38: 12988.37 | AH38: 1.854833 | AI38: 3.644316 | AJ38: 40.82483
A39: PL@8 | D39: 9.433063 | E39: 0.05366628 | F39: 0.3842772 | G39: 0.04576165 | H39: 1.080224 | I39: 0.1224179 | J39: 0.5950288 | K39: 2.634004 | L39: 0.3864665 | M39: 0.8006079 | N39: 1.108501 | O39: 0.848507 | P39: 0.1182585 | Q39: 1.393807e-05 | R39: 33.89793 | S39: NaN | T39: NaN | U39: 13966.55 | V39: 1.840645 | W39: 114157.9 | X39: 2.246074 | Y39: 0.1943635 | Z39: 34.04195 | AA39: 0.0728863 | AB39: 70.71068 | AC39: 0.7499115 | AD39: 1.191305 | AE39: 91263.87 | AF39: 1.195373 | AG39: 12698.47 | AH39: 2.457511 | AI39: 4.859088 | AJ39: 35.35534
A40: 16YX-4-1@33 | D40: 9.8207 | E40: 0.06858196 | F40: 0.6261675 | G40: 0.1660471 | H40: 1.275996 | I40: 0.3977015 | J40: 0.6103612 | K40: 3.039379 | L40: 0.6099263 | M40: 2.114269 | N40: 1.463248 | O40: 3.49726 | P40: 1.671913 | Q40: 0.0001575872 | R40: 8.179678 | S40: 6648.35 | T40: 9.364735 | U40: 14736.75 | V40: 1.779933 | W40: 37060.66 | X40: 1.833071 | Y40: 2.332362 | Z40: 8.960756 | AA40: 0 | AB40: NaN | AC40: 0.8369093 | AD40: 0.9558091 | AE40: 78234.12 | AF40: 0.5001708 | AG40: 11097.23 | AH40: 0.578645 | AI40: 1.822158 | AJ40: 69.38887
A41: 16YX-4-1@34 | D41: 9.739339 | E41: 0.06851375 | F41: 0.6081497 | G41: 0.1789687 | H41: 1.059545 | I41: 0.3805184 | J41: 0.3736689 | K41: 2.932926 | L41: 0.3322348 | M41: 6.957384 | N41: 0.4790501 | O41: 3.668079 | P41: 0.2771889 | Q41: 9.821465e-05 | R41: 16.44231 | S41: 9737.733 | T41: 16.44231 | U41: 4598.142 | V41: 1.130717 | W41: 12084.15 | X41: 1.115776 | Y41: 0.4494655 | Z41: 16.4399 | AA41: 0 | AB41: NaN | AC41: 0.7542185 | AD41: 0.5785686 | AE41: 84048.51 | AF41: 0.6719143 | AG41: 11994.6 | AH41: 0.9889446 | AI41: 0 | AJ41: NaN
A42: 16YX-4-1@35 | D42: 9.695608 | E42: 0.06876276 | F42: 0.8277676 | G42: 0.2690757 | H42: 0.7958881 | I42: 0.3830183 | J42: 0.4204662 | K42: 2.913185 | L42: 0.2636358 | M42: 5.875566 | N42: 0.6892411 | O42: 5.605235 | P42: 0.2469439 | Q42: 0.0001332475 | R42: 13.02148 | S42: 7154.535 | T42: 13.02148 | U42: 5400.233 | V42: 1.026204 | W42: 14102.19 | X42: 1.263291 | Y42: 0.7167153 | Z42: 13.01889 | AA42: 0 | AB42: NaN | AC42: 0.7845717 | AD42: 0.4556441 | AE42: 82817.67 | AF42: 0.6553851 | AG42: 11792.09 | AH42: 0.7356918 | AI42: 0 | AJ42: NaN
A43: 16YX-4-1@36 | D43: 9.638499 | E43: 0.06978773 | F43: 0.7822049 | G43: 0.01503299 | H43: 6.023343 | I43: 0.3513604 | J43: 0.3667455 | K43: 2.816025 | L43: 0.2957043 | M43: 4.494964 | N43: 0.4786161 | O43: 0.08932487 | P43: 1.133515 | Q43: 0.0002819327 | R43: 9.709153 | S43: 3738.311 | T43: 9.055301 | U43: 6367.512 | V43: 1.180122 | W43: 18121.42 | X43: 1.039494 | Y43: 1.785714 | Z43: 8.817335 | AA43: 0 | AB43: NaN | AC43: 0.9196279 | AD43: 0.6130141 | AE43: 81432.2 | AF43: 0.60506 | AG43: 11570.74 | AH43: 0.959844 | AI43: 1.214772 | AJ43: 70.71068
A44: PL@9 | D44: 9.925217 | E44: 0.05346422 | F44: 0.5920881 | G44: 0.03511228 | H44: 1.401437 | I44: 0.1508793 | J44: 0.2637178 | K44: 2.982436 | L44: 0.2605074 | M44: 1.205202 | N44: 0.3392877 | O44: 0.7040402 | P44: 0.1575166 | Q44: 2.268378e-05 | R44: 22.40332 | S44: 64704.47 | T44: 26.17996 | U44: 10757.4 | V44: 1.084632 | W44: 71289.63 | X44: 0.8447033 | Y44: 0.2429543 | Z44: 22.36068 | AA44: 0 | AB44: NaN | AC44: 0.7719353 | AD44: 0.4815638 | AE44: 85905.35 | AF44: 0.5657267 | AG44: 12194.88 | AH44: 0.8666748 | AI44: 4.859088 | AJ44: 35.35534
A45: 16YX-1-1@1 | D45: 9.323852 | E45: 0.1046084 | F45: 2.5464 | G45: 0.2821041 | H45: 2.463928 | I45: 0.3183082 | J45: 1.06778 | K45: 2.559837 | L45: 0.5196672 | M45: 14.47184 | N45: 1.297221 | O45: 4.043176 | P45: 0.5074456 | Q45: 0.002900896 | R45: 12.33521 | S45: 371.1564 | T45: 9.883845 | U45: 1809.681 | V45: 1.964037 | W45: 5688.995 | X45: 2.219187 | Y45: 5.296406 | Z45: 13.88515 | AA45: 0 | AB45: NaN | AC45: 0.5829134 | AD45: 0.9507773 | AE45: 82190.83 | AF45: 0.9715158 | AG45: 11710.4 | AH45: 1.19784 | AI45: 1.822158 | AJ45: 69.38887
A46: 16YX-1-1@2 | D46: 9.368757 | E46: 0.0668984 | F46: 0.5658322 | G46: 0.009302361 | H46: 4.654053 | I46: 0.3000393 | J46: 0.6154464 | K46: 2.567132 | L46: 0.3410628 | M46: 4.713026 | N46: 1.759047 | O46: 0.159937 | P46: 1.110762 | Q46: 6.260872e-05 | R46: 18.90002 | S46: 15629.66 | T46: 18.90002 | U46: 5368.514 | V46: 2.421092 | W46: 17907.53 | X46: 2.866806 | Y46: 0.3401361 | Z46: 20.41241 | AA46: 0 | AB46: NaN | AC46: 0.9089704 | AD46: 1.290938 | AE46: 84147.7 | AF46: 1.19531 | AG46: 11914.13 | AH46: 1.309655 | AI46: 1.214772 | AJ46: 70.71068
A47: 16YX-1-1@3 | D47: 9.421172 | E47: 0.06911441 | F47: 1.2351 | G47: 0.2658402 | H47: 1.4259 | I47: 0.3360359 | J47: 0.7929926 | K47: 2.712661 | L47: 0.6816702 | M47: 18.84684 | N47: 1.227655 | O47: 5.004519 | P47: 0.4361168 | Q47: 0.0001644181 | R47: 23.83457 | S47: 9125.64 | T47: 26.45579 | U47: 1544.839 | V47: 1.389621 | W47: 4599.711 | X47: 1.763677 | Y47: 0.255102 | Z47: 24.1249 | AA47: 0 | AB47: NaN | AC47: 0.6473105 | AD47: 1.35263 | AE47: 86579.07 | AF47: 0.5669906 | AG47: 12297.66 | AH47: 0.6437656 | AI47: 0 | AJ47: NaN
A48: 16YX-1-1@4 | D48: 9.041359 | E48: 0.0666968 | F48: 0.5709198 | G48: 0.2039539 | H48: 0.7644615 | I48: 0.3438327 | J48: 0.9752753 | K48: 2.705615 | L48: 0.3446678 | M48: 4.387056 | N48: 0.7290895 | O48: 4.102712 | P48: 0.4302491 | Q48: 2.722198e-05 | R48: 22.36189 | S48: 37549.42 | T48: 22.36189 | U48: 6739.302 | V48: 1.136259 | W48: 19622.41 | X48: 2.016186 | Y48: 0.1842404 | Z48: 22.36068 | AA48: 0 | AB48: NaN | AC48: 0.7219702 | AD48: 0.4604179 | AE48: 86016.45 | AF48: 1.397566 | AG48: 12221.44 | AH48: 1.231842 | AI48: 1.214772 | AJ48: 70.71068
A49: 16YX-1-1@5 | D49: 9.183896 | E49: 0.0736577 | F49: 2.077013 | G49: 0.02177643 | H49: 34.617 | I49: 0.2669445 | J49: 2.000114 | K49: 2.597037 | L49: 0.9321421 | M49: 2.490174 | N49: 30.39846 | O49: 0.164447 | P49: 26.27374 | Q49: 0.0002905719 | R49: 43.0447 | S49: 7479.27 | T49: 33.53126 | U49: 15202.84 | V49: 24.25769 | W49: 55522.97 | X49: 23.4316 | Y49: 2.113703 | Z49: 19.46119 | AA49: 0 | AB49: NaN | AC49: 1.002598 | AD49: 4.931587 | AE49: 85932.95 | AF49: 0.6466837 | AG49: 12107.1 | AH49: 0.6404049 | AI49: 3.03693 | AJ49: 44.72136
A50: PL@10 | D50: 9.056927 | E50: 0.05358283 | F50: 0.3025797 | G50: 0.03657551 | H50: 0.9634796 | I50: 0.1282912 | J50: 0.4707335 | K50: 2.672211 | L50: 0.1545493 | M50: 0.5108922 | N50: 0.9545769 | O50: 0.7019309 | P50: 0.1819684 | Q50: 1.511836e-05 | R50: 19.88853 | S50: 67269.38 | T50: 18.89865 | U50: 22557.77 | V50: 1.780172 | W50: 175935.6 | X50: 2.209227 | Y50: 0.3401361 | Z50: 19.6699 | AA50: 0 | AB50: NaN | AC50: 0.752378 | AD50: 1.015753 | AE50: 89771.14 | AF50: 1.267651 | AG50: 12721.97 | AH50: 1.53799 | AI50: 6.07386 | AJ50: 31.62278
A51: Qinghu@4 | D51: 9.110672 | E51: 0.0496368 | F51: 0.7643563 | G51: 0.2130738 | H51: 0.7655493 | I51: 0.0586761 | J51: 0.3083575 | K51: 2.648157 | L51: 0.3109069 | M51: 0.7994875 | N51: 1.011983 | O51: 4.010689 | P51: 0.106486 | Q51: 4.151405e-05 | R51: 21.3214 | S51: 23710.99 | T51: 21.3214 | U51: 6459.956 | V51: 0.615483 | W51: 110099.8 | X51: 0.6491884 | Y51: 0.2672498 | Z51: 21.32007 | AA51: 0 | AB51: NaN | AC51: 0.6618771 | AD51: 0.8622563 | AE51: 88040.94 | AF51: 1.452507 | AG51: 12583.1 | AH51: 1.620351 | AI51: 10.93295 | AJ51: 27.96236
A52: 16YX-1-1@6 | D52: 9.1386 | E52: 0.06628943 | F52: 0.4030548 | G52: 0.006379206 | H52: 3.272066 | I52: 0.3266536 | J52: 0.2949113 | K52: 2.68577 | L52: 0.6635108 | M52: 2.548263 | N52: 0.7142117 | O52: 0.1182787 | P52: 1.316889 | Q52: 3.530539e-05 | R52: 20.04928 | S52: 36351.4 | T52: 20.15923 | U52: 10705.48 | V52: 0.4976733 | W52: 32772.41 | X52: 0.2836653 | Y52: 0.3765792 | Z52: 19.62181 | AA52: 0 | AB52: NaN | AC52: 0.9369936 | AD52: 0.7498569 | AE52: 83518.55 | AF52: 0.9062962 | AG52: 11790.27 | AH52: 0.8599954 | AI52: 0 | AJ52: NaN
A53: 16YX-1-1@7 | D53: 9.00991 | E53: 0.06722387 | F53: 0.304802 | G53: 0.005698579 | H53: 3.917479 | I53: 0.3155638 | J53: 0.5601753 | K53: 2.680349 | L53: 0.1323993 | M53: 0.9703528 | N53: 4.241658 | O53: 0.08610538 | P53: 1.623112 | Q53: 3.996837e-05 | R53: 13.74151 | S53: 29223.64 | T53: 18.38537 | U53: 27336.35 | V53: 5.008105 | W53: 86774.36 | X53: 5.502625 | Y53: 1.081147 | Z53: 14.12338 | AA53: 0 | AB53: NaN | AC53: 1.105028 | AD53: 0.8793325 | AE53: 83034.82 | AF53: 1.336641 | AG53: 11733.51 | AH53: 1.266936 | AI53: 4.251703 | AJ53: 53.45225
A54: 16YX-1-1@8 | D54: 9.138913 | E54: 0.06854749 | F54: 1.001561 | G54: 0.02243021 | H54: 15.41875 | I54: 0.341785 | J54: 3.372299 | K54: 2.863322 | L54: 1.410745 | M54: 6.666841 | N54: 10.53251 | O54: 0.3837533 | P54: 16.52642 | Q54: 0.0001412495 | R54: 17.4112 | S54: 8341.346 | T54: 18.04784 | U54: 3044.905 | V54: 11.50996 | W54: 9138.362 | X54: 14.17809 | Y54: 0.4008746 | Z54: 17.40777 | AA54: 0 | AB54: NaN | AC54: 0.9017401 | AD54: 1.009435 | AE54: 55488.13 | AF54: 3.047071 | AG54: 7906.349 | AH54: 3.018652 | AI54: 0 | AJ54: NaN
A55: 16YX-1-1@9 | D55: 6.852679 | E55: 0.06710358 | F55: 0.6346069 | G55: 0.1755513 | H55: 2.755428 | I55: 0.3545586 | J55: 0.4840517 | K55: 2.817132 | L55: 0.2894091 | M55: 3.069479 | N55: 1.003009 | O55: 3.427317 | P55: 2.535018 | Q55: 4.011951e-05 | R55: 22.98606 | S55: 36696.21 | T55: 27.31805 | U55: 7385.549 | V55: 1.528941 | W55: 20827.82 | X55: 1.321168 | Y55: 0.2915452 | Z55: 21.9163 | AA55: 0 | AB55: NaN | AC55: 0.7788515 | AD55: 1.109728 | AE55: 63888.76 | AF55: 0.7789706 | AG55: 9013.756 | AH55: 0.7752343 | AI55: 0 | AJ55: NaN
A56: 16YX-1-1@10 | D56: 6.946322 | E56: 0.06870981 | F56: 0.5901948 | G56: 0.0221741 | H56: 3.588157 | I56: 0.3792898 | J56: 0.6292339 | K56: 2.956014 | L56: 0.4739018 | M56: 4.763009 | N56: 1.669449 | O56: 0.388028 | P56: 1.283247 | Q56: 0.0001481206 | R56: 13.02178 | S56: 6813.578 | T56: 13.02178 | U56: 4852.498 | V56: 2.830304 | W56: 12512.19 | X56: 2.474321 | Y56: 0.7167153 | Z56: 13.01889 | AA56: 0 | AB56: NaN | AC56: 0.8703127 | AD56: 1.131784 | AE56: 59883.68 | AF56: 0.9439423 | AG56: 8450.201 | AH56: 0.8510165 | AI56: 0 | AJ56: NaN
A57: PL@11 | D57: 6.920427 | E57: 0.05426479 | F57: 0.9126748 | G57: 0.0284686 | H57: 3.618655 | I57: 0.1389387 | J57: 0.4016845 | K57: 2.870833 | L57: 0.4277585 | M57: 1.976049 | N57: 0.6599288 | O57: 0.537019 | P57: 0.4487335 | Q57: 3.179872e-05 | R57: 31.16615 | S57: NaN | T57: NaN | U57: 4639.853 | V57: 1.32127 | W57: 33393.97 | X57: 1.216726 | Y57: 0.1457726 | Z57: 30.42903 | AA57: 0 | AB57: NaN | AC57: 0.797093 | AD57: 0.742264 | AE57: 65959.51 | AF57: 0.6819307 | AG57: 9387.855 | AH57: 0.4645087 | AI57: 1.822158 | AJ57: 57.73503
A58: 16YX-1-1@13 | D58: 6.874819 | E58: 0.07304297 | F58: 1.966628 | G58: 0.02147389 | H58: 23.33176 | I58: 0.3016639 | J58: 3.85316 | K58: 2.656962 | L58: 1.390153 | M58: 3.147428 | N58: 29.33594 | O58: 0.1925732 | P58: 24.11925 | Q58: 0.0003341683 | R58: 32.04494 | S58: 4800.271 | T58: 21.13167 | U58: 8532.404 | V58: 20.07785 | W58: 28769.33 | X58: 19.61903 | Y58: 1.895044 | Z58: 9.222754 | AA58: 0 | AB58: NaN | AC58: 0.8848365 | AD58: 0.852516 | AE58: 60878.03 | AF58: 0.8956622 | AG58: 8524.163 | AH58: 0.4874628 | AI58: 0.7086169 | AJ58: 100
A59: 16YX-1-1@14 | D59: 6.998111 | E59: 0.08116197 | F59: 1.519113 | G59: 0.3086184 | H59: 2.013083 | I59: 0.3659035 | J59: 0.7157128 | K59: 2.827826 | L59: 0.5702531 | M59: 17.13861 | N59: 2.18575 | O59: 5.586572 | P59: 0.8646531 | Q59: 0.001234381 | R59: 9.792911 | S59: 857.906 | T59: 9.718182 | U59: 1231.711 | V59: 2.169796 | W59: 3369.467 | X59: 2.719801 | Y59: 1.506317 | Z59: 8.980265 | AA59: 0 | AB59: NaN | AC59: 0.6182606 | AD59: 0.5335455 | AE59: 57543.72 | AF59: 0.6419903 | AG59: 8106.328 | AH59: 0.4998626 | AI59: 0 | AJ59: NaN
A60: 16YX-1-1@15 | D60: 6.803393 | E60: 0.06752032 | F60: 0.7099461 | G60: 0.1755913 | H60: 1.152339 | I60: 0.3789629 | J60: 0.4340947 | K60: 2.904304 | L60: 0.3305452 | M60: 7.215355 | N60: 0.393061 | O60: 3.73502 | P60: 0.3426015 | Q60: 0.0001073936 | R60: 22.5263 | S60: 12038.93 | T60: 18.77781 | U60: 3400.707 | V60: 0.7653063 | W60: 8974.134 | X60: 0.8294283 | Y60: 0.3644315 | Z60: 22.02692 | AA60: 0 | AB60: NaN | AC60: 0.7693973 | AD60: 0.4942209 | AE60: 64745.93 | AF60: 0.7362239 | AG60: 9192.292 | AH60: 0.5201822 | AI60: 0 | AJ60: NaN
A61: 16YX-1-1@17 | D61: 6.939672 | E61: 0.06857352 | F61: 0.7550392 | G61: 0.2230378 | H61: 1.631447 | I61: 0.3677473 | J61: 1.164309 | K61: 2.898697 | L61: 0.4856331 | M61: 7.81753 | N61: 2.161423 | O61: 4.574065 | P61: 1.38731 | Q61: 0.0001281121 | R61: 19.00888 | S61: 7636.024 | T61: 17.96395 | U61: 2969.662 | V61: 1.868815 | W61: 8091.667 | X61: 3.02122 | Y61: 0.3765792 | Z61: 18.34271 | AA61: 0 | AB61: NaN | AC61: 0.6468643 | AD61: 0.8488427 | AE61: 63011.48 | AF61: 0.7992933 | AG61: 8873.353 | AH61: 0.5067214 | AI61: 0 | AJ61: NaN
A62: 16YX-1-1@18 | D62: 6.889057 | E62: 0.06831424 | F62: 0.8041673 | G62: 0.0125241 | H62: 4.173266 | I62: 0.3466892 | J62: 0.4129677 | K62: 2.856844 | L62: 0.243595 | M62: 3.737063 | N62: 3.560334 | O62: 0.1947286 | P62: 2.662596 | Q62: 0.0001074149 | R62: 18.40875 | S62: 9473.997 | T62: 14.3661 | U62: 5760.005 | V62: 4.112642 | W62: 16602.85 | X62: 3.822362 | Y62: 0.5952381 | Z62: 14.95052 | AA62: 0 | AB62: NaN | AC62: 0.8867278 | AD62: 0.628619 | AE62: 61542.33 | AF62: 0.4629227 | AG62: 8703.097 | AH62: 0.5683873 | AI62: 1.214772 | AJ62: 70.71068
A63: PL@12 | D63: 6.330719 | E63: 0.056016 | F63: 1.480339 | G63: 0.03291418 | H63: 7.063465 | I63: 0.14123 | J63: 0.8058878 | K63: 2.896131 | L63: 0.6679816 | M63: 6.836851 | N63: 0.6788562 | O63: 0.5550357 | P63: 0.8083624 | Q63: 0.0001582474 | R63: 30.89916 | S63: NaN | T63: NaN | U63: 1267.139 | V63: 1.925903 | W63: 8982.539 | X63: 2.627225 | Y63: 0.1943635 | Z63: 29.75595 | AA63: 0 | AB63: NaN | AC63: 0.8798194 | AD63: 0.4628138 | AE63: 61351.07 | AF63: 2.009952 | AG63: 8714.252 | AH63: 2.113877 | AI63: 0 | AJ63: NaN
A64: Qinghu@5 | D64: 6.822951 | E64: 0.04993908 | F64: 0.6339814 | G64: 0.2126443 | H64: 1.223774 | I64: 0.06320464 | J64: 0.2746285 | K64: 2.845941 | L64: 0.2688623 | M64: 0.8391784 | N64: 3.239488 | O64: 4.149684 | P64: 0.6060012 | Q64: 8.104921e-06 | R64: 45.158 | S64: NaN | T64: NaN | U64: 5446.991 | V64: 3.841689 | W64: 86167.12 | X64: 3.769401 | Y64: 0.04251701 | Z64: 44.72136 | AA64: 0 | AB64: NaN | AC64: 0.6728942 | AD64: 0.8038912 | AE64: 71786.01 | AF64: 0.7544217 | AG64: 10244.74 | AH64: 1.249993 | AI64: 4.251702 | AJ64: 37.79645
A65: 16YX-1-1@19 | D65: 7.455921 | E65: 0.0666301 | F65: 0.5908287 | G65: 0.01894099 | H65: 4.466856 | I65: 0.3419622 | J65: 0.4774678 | K65: 2.785491 | L65: 0.2937319 | M65: 4.698368 | N65: 1.610086 | O65: 0.3478693 | P65: 3.766393 | Q65: 5.435071e-05 | R65: 25.28745 | S65: 26340.79 | T65: 24.34995 | U65: 4962.244 | V65: 1.773746 | W65: 14519.96 | X65: 2.233238 | Y65: 0.2672498 | Z65: 24.47802 | AA65: 0 | AB65: NaN | AC65: 0.8855422 | AD65: 1.37026 | AE65: 68074.9 | AF65: 0.6614181 | AG65: 9704.616 | AH65: 0.701922 | AI65: 1.214772 | AJ65: 70.71068
A66: 16YX-1-1@20 | D66: 7.417275 | E66: 0.06706451 | F66: 0.5550927 | G66: 0.009359849 | H66: 10.66948 | I66: 0.3785311 | J66: 0.2312178 | K66: 2.951741 | L66: 0.4955589 | M66: 0.8158938 | N66: 1.047567 | O66: 0.1652401 | P66: 12.63476 | Q66: 4.850338e-05 | R66: 14.811 | S66: 17111.59 | T66: 13.45805 | U66: 29923.24 | V66: 0.7591688 | W66: 78547.2 | X66: 0.5909982 | Y66: 1.445578 | Z66: 14.24777 | AA66: 0 | AB66: NaN | AC66: 1.238439 | AD66: 0.4150781 | AE66: 64930.6 | AF66: 1.161732 | AG66: 9146.7 | AH66: 1.531619 | AI66: 6.073861 | AJ66: 31.62278
A67: 16YX-1-1@22 | D67: 7.30603 | E67: 0.06915374 | F67: 1.973597 | G67: 0.006483776 | H67: 12.33319 | I67: 0.3194415 | J67: 5.810103 | K67: 2.717622 | L67: 1.128532 | M67: 0.332165 | N67: 1.194777 | O67: 0.09009348 | P67: 2.485091 | Q67: 3.8221e-05 | R67: 24.56545 | S67: 29165.7 | T67: 21.60275 | U67: 68189.92 | V67: 4.646489 | W67: 203923.5 | X67: 1.209492 | Y67: 1.984127 | Z67: 9.56183 | AA67: 0 | AB67: NaN | AC67: 1.139325 | AD67: 2.986388 | AE67: 67636.58 | AF67: 0.3506179 | AG67: 9452.706 | AH67: 0.5171543 | AI67: 6.073861 | AJ67: 31.62278
A68: 16YX-1-1@24 | D68: 7.387078 | E68: 0.06789819 | F68: 0.8590698 | G68: 0.1431671 | H68: 1.971023 | I68: 0.4207533 | J68: 0.5487119 | K68: 3.097447 | L68: 0.3520701 | M68: 8.398405 | N68: 0.3311235 | O68: 3.384969 | P68: 0.4693989 | Q68: 0.0001063948 | R68: 18.26032 | S68: 10143.27 | T68: 18.26032 | U68: 3439.606 | V68: 1.054349 | W68: 8178.242 | X68: 1.469091 | Y68: 0.3644315 | Z68: 18.25742 | AA68: 0 | AB68: NaN | AC68: 0.6419294 | AD68: 0.6426177 | AE68: 68674.17 | AF68: 1.335358 | AG68: 9790.146 | AH68: 1.377671 | AI68: 1.214772 | AJ68: 70.71068
A69: 16YX-1-1@25 | D69: 7.572408 | E69: 0.06732794 | F69: 0.6348657 | G69: 0.1776269 | H69: 1.040436 | I69: 0.3717575 | J69: 0.8457472 | K69: 2.89926 | L69: 0.6723521 | M69: 6.094422 | N69: 2.035927 | O69: 3.656831 | P69: 1.446642 | Q69: 5.370302e-05 | R69: 38.63171 | S69: NaN | T69: NaN | U69: 4261.617 | V69: 0.9999941 | W69: 11471.17 | X69: 1.591257 | Y69: 0.2308066 | Z69: 39.15073 | AA69: 0 | AB69: NaN | AC69: 0.6177454 | AD69: 0.7730773 | AE69: 69472.02 | AF69: 0.2573829 | AG69: 9866.547 | AH69: 0.6847299 | AI69: 0 | AJ69: NaN
A70: PL@13 | D70: 7.407887 | E70: 0.05490777 | F70: 1.032578 | G70: 0.03476198 | H70: 3.296115 | I70: 0.1382878 | J70: 0.6997132 | K70: 2.87051 | L70: 0.267653 | M70: 5.201168 | N70: 0.8244234 | O70: 0.6195653 | P70: 0.3725901 | Q70: 0.000127835 | R70: 22.36497 | S70: 7783.935 | T70: 22.36497 | U70: 1898.109 | V70: 1.490778 | W70: 13733.01 | X70: 1.859079 | Y70: 0.2429543 | Z70: 22.36068 | AA70: 0 | AB70: NaN | AC70: 0.8638125 | AD70: 0.7487046 | AE70: 71362.62 | AF70: 1.042265 | AG70: 10098.2 | AH70: 1.412423 | AI70: 0 | AJ70: NaN
A71: 16YX-1-1@26 | D71: 7.507476 | E71: 0.07245907 | F71: 1.542321 | G71: 0.2721327 | H71: 2.533477 | I71: 0.3616706 | J71: 1.113113 | K71: 2.877241 | L71: 0.7746427 | M71: 33.97538 | N71: 1.064457 | O71: 5.342741 | P71: 1.565262 | Q71: 0.0007871062 | R71: 15.82828 | S71: 1294.197 | T71: 15.82828 | U71: 681.9482 | V71: 0.8169929 | W71: 1886.554 | X71: 1.095575 | Y71: 0.4859087 | Z71: 15.81139 | AA71: 0 | AB71: NaN | AC71: 0.5678101 | AD71: 0.7844567 | AE71: 64068.12 | AF71: 0.9414716 | AG71: 9073.605 | AH71: 0.5464392 | AI71: 0 | AJ71: NaN
A72: 16YX-1-1@27 | D72: 7.478921 | E72: 0.06852516 | F72: 1.293944 | G72: 0.02855972 | H72: 10.44797 | I72: 0.3184939 | J72: 4.208152 | K72: 2.78109 | L72: 1.018175 | M72: 7.513706 | N72: 10.6946 | O72: 0.5122102 | P72: 11.59776 | Q72: 0.0001316193 | R72: 24.45545 | S72: 8825.029 | T72: 22.84641 | U72: 2895.084 | V72: 5.956099 | W72: 10495.15 | X72: 16.22991 | Y72: 0.3887269 | Z72: 19.59884 | AA72: 0 | AB72: NaN | AC72: 0.8668638 | AD72: 1.123504 | AE72: 70782.92 | AF72: 0.7454003 | AG72: 10038.21 | AH72: 0.9253727 | AI72: 0 | AJ72: NaN
A73: 16YX-1-1@32 | D73: 7.503095 | E73: 0.06769852 | F73: 0.8793136 | G73: 0.1915449 | H73: 1.372973 | I73: 0.3499845 | J73: 0.8036606 | K73: 2.779614 | L73: 0.6033981 | M73: 10.9691 | N73: 0.3682442 | O73: 3.968724 | P73: 0.4869363 | Q73: 9.35097e-05 | R73: 34.57975 | S73: NaN | T73: NaN | U73: 2211.988 | V73: 0.4421064 | W73: 6322.475 | X73: 0.8565032 | Y73: 0.2065112 | Z73: 34.63436 | AA73: 0 | AB73: NaN | AC73: 0.5921134 | AD73: 0.6634545 | AE73: 69346.81 | AF73: 0.7745392 | AG73: 9721.641 | AH73: 0.8126908 | AI73: 0 | AJ73: NaN
A74: 16YX-1-1@28 | D74: 7.327935 | E74: 0.07300117 | F74: 0.725971 | G74: 0.3131379 | H74: 0.6617863 | I74: 0.3438535 | J74: 0.4191477 | K74: 2.829706 | L74: 0.3598923 | M74: 3.521253 | N74: 1.289904 | O74: 6.153371 | P74: 0.3272781 | Q74: 0.0004330343 | R74: 6.933025 | S74: 2382.796 | T74: 7.473263 | U74: 6453.396 | V74: 1.955787 | W74: 18770.06 | X74: 2.006278 | Y74: 2.781827 | Z74: 6.608186 | AA74: 0 | AB74: NaN | AC74: 0.6049501 | AD74: 1.25954 | AE74: 65997.09 | AF74: 0.8915495 | AG74: 9294.639 | AH74: 1.638175 | AI74: 0.7086169 | AJ74: 100
A75: 16YX-1-1@33 | D75: 7.401394 | E75: 0.06769336 | F75: 1.090523 | G75: 0.1569231 | H75: 1.474787 | I75: 0.3427307 | J75: 0.51616 | K75: 2.736524 | L75: 0.384696 | M75: 10.3138 | N75: 0.9860638 | O75: 3.129718 | P75: 0.7751744 | Q75: 0.0001024614 | R75: 29.37223 | S75: NaN | T75: NaN | U75: 2305.997 | V75: 2.203001 | W75: 6728.293 | X75: 2.158791 | Y75: 0.2429543 | Z75: 30 | AA75: 0 | AB75: NaN | AC75: 0.7470643 | AD75: 1.192225 | AE75: 69307.85 | AF75: 1.255552 | AG75: 9836.353 | AH75: 1.231661 | AI75: 0 | AJ75: NaN
A76: PL@14 | D76: 7.624901 | E76: 0.05331509 | F76: 0.4999308 | G76: 0.0354348 | H76: 1.743342 | I76: 0.1397453 | J76: 0.4805043 | K76: 2.847388 | L76: 0.3293512 | M76: 1.187843 | N76: 1.039677 | O76: 0.6737122 | P76: 0.3165624 | Q76: 2.961002e-05 | R76: 22.36167 | S76: 45108.23 | T76: 22.4474 | U76: 8268.551 | V76: 1.286827 | W76: 59191.13 | X76: 1.65044 | Y76: 0.2429543 | Z76: 22.36068 | AA76: 0 | AB76: NaN | AC76: 0.7657744 | AD76: 1.192517 | AE76: 70238.75 | AF76: 0.6380126 | AG76: 10015.31 | AH76: 1.138612 | AI76: 2.429544 | AJ76: 64.54972
A77: Qinghu@6 | D77: 7.409843 | E77: 0.04930912 | F77: 0.538901 | G77: 0.2170634 | H77: 1.476708 | I77: 0.06862571 | J77: 0.9384691 | K77: 2.841234 | L77: 0.365744 | M77: 0.6487489 | N77: 2.961675 | O77: 4.314427 | P77: 0.8033155 | Q77: 2.937681e-05 | R77: 23.57124 | S77: 36082.7 | T77: 23.57124 | U77: 7619.301 | V77: 2.434099 | W77: 110995.7 | X77: 1.9923 | Y77: 0.2186589 | Z77: 23.57023 | AA77: 0 | AB77: NaN | AC77: 0.7336898 | AD77: 0.6315684 | AE77: 71764.7 | AF77: 1.234058 | AG77: 10174.21 | AH77: 1.345684 | AI77: 5.466475 | AJ77: 33.33333
A78: 15PG-32-1@1 | D78: 9.871941 | E78: 0.06710328 | F78: 0.3219204 | G78: 0.2159323 | H78: 0.4734549 | I78: 0.3213598 | J78: 0.8705513 | K78: 2.632859 | L78: 0.757877 | M78: 1.966333 | N78: 2.452617 | O78: 4.203027 | P78: 0.1501685 | Q78: 2.043738e-05 | R78: 18.8988 | S78: 57889.23 | T78: 18.8988 | U78: 16690.72 | V78: 1.404188 | W78: 51957.16 | X78: 1.568731 | Y78: 0.3401361 | Z78: 18.89822 | AA78: 0 | AB78: NaN | AC78: 0.7306298 | AD78: 0.8339815 | AE78: 101965.1 | AF78: 1.406406 | AG78: 14460.93 | AH78: 1.374746 | AI78: 5.466475 | AJ78: 33.33333
A79: 15PG-32-1@02 | D79: 9.932493 | E79: 0.06713625 | F79: 0.6737308 | G79: 0.1305898 | H79: 2.28827 | I79: 0.3152599 | J79: 0.8319792 | K79: 2.634275 | L79: 0.2238795 | M79: 4.96465 | N79: 1.610882 | O79: 2.524399 | P79: 1.288507 | Q79: 4.255008e-05 | R79: 21.32142 | S79: 23656.65 | T79: 21.32142 | U79: 6325.069 | V79: 2.22397 | W79: 20092.61 | X79: 3.04518 | Y79: 0.2672498 | Z79: 21.32007 | AA79: 0 | AB79: NaN | AC79: 0.8444262 | AD79: 0.7046326 | AE79: 99464.21 | AF79: 1.448079 | AG79: 14133.87 | AH79: 1.453708 | AI79: 0 | AJ79: NaN
A80: 15PG-32-1@03 | D80: 9.951816 | E80: 0.07076128 | F80: 0.5528671 | G80: 0.1738845 | H80: 1.139857 | I80: 0.3574378 | J80: 0.4346073 | K80: 2.638129 | L80: 0.4038389 | M80: 6.829523 | N80: 0.672044 | O80: 3.354424 | P80: 0.2504703 | Q80: 6.244944e-05 | R80: 24.86946 | S80: 17884.23 | T80: 19.83471 | U80: 5395.602 | V80: 1.243392 | W80: 15099.84 | X80: 1.546114 | Y80: 0.3401361 | Z80: 25.58832 | AA80: 0 | AB80: NaN | AC80: 0.6465406 | AD80: 1.154348 | AE80: 103067 | AF80: 0.9848454 | AG80: 14654.97 | AH80: 1.065612 | AI80: 0 | AJ80: NaN
A81: 15PG-32-1@04 | D81: 9.864822 | E81: 0.06700976 | F81: 0.3094025 | G81: 0.03242182 | H81: 38.36483 | I81: 0.3108264 | J81: 0.8617326 | K81: 2.64888 | L81: 0.7404674 | M81: 1.625263 | N81: 2.207074 | O81: 0.714446 | P81: 39.05938 | Q81: 2.020941e-05 | R81: 25.16539 | S81: 54072.92 | T81: 20.05382 | U81: 18949.05 | V81: 3.455352 | W81: 59413.47 | X81: 3.463024 | Y81: 0.3279883 | Z81: 19.24501 | AA81: 0 | AB81: NaN | AC81: 0.9701258 | AD81: 1.247111 | AE81: 96143.41 | AF81: 1.628959 | AG81: 13717.22 | AH81: 1.698597 | AI81: 2.834468 | AJ81: 37.79645
A82: PL@15 | D82: 10.01299 | E82: 0.05332747 | F82: 0.6413693 | G82: 0.02612573 | H82: 2.129031 | I82: 0.1237425 | J82: 0.486454 | K82: 2.63933 | L82: 0.502366 | M82: 1.952773 | N82: 0.8885626 | O82: 0.4955944 | P82: 0.2091525 | Q82: 5.356459e-05 | R82: 21.29944 | S82: 27899.38 | T82: 28.92446 | U82: 6231.53 | V82: 1.868683 | W82: 50371.67 | X82: 2.026236 | Y82: 0.3401361 | Z82: 22.49339 | AA82: 0 | AB82: NaN | AC82: 0.7853433 | AD82: 1.406607 | AE82: 98261.07 | AF82: 1.170893 | AG82: 14044.46 | AH82: 1.370205 | AI82: 3.644316 | AJ82: 40.82483
A83: Qinghu@7 | D83: 9.868343 | E83: 0.04930816 | F83: 0.5545442 | G83: 0.1286694 | H83: 3.09088 | I83: 0.06164833 | J83: 0.5017392 | K83: 2.717799 | L83: 0.705518 | M83: 0.8755835 | N83: 3.021383 | O83: 2.50586 | P83: 3.304118 | Q83: 7.914338e-06 | R83: 35.35606 | S83: NaN | T83: NaN | U83: 7195.246 | V83: 1.84383 | W83: 116702.8 | X83: 1.665229 | Y83: 0.05668934 | Z83: 35.35534 | AA83: 0 | AB83: NaN | AC83: 0.8414714 | AD83: 0.1740333 | AE83: 101878.4 | AF83: 1.403717 | AG83: 14569.21 | AH83: 1.421345 | AI83: 10.32557 | AJ83: 24.25356
A84: 15PG-32-1@05 | D84: 9.932649 | E84: 0.06754357 | F84: 0.2528809 | G84: 0.1841909 | H84: 1.196545 | I84: 0.3330639 | J84: 0.4435579 | K84: 2.702643 | L84: 0.3945082 | M84: 1.214556 | N84: 0.7235033 | O84: 3.60621 | P84: 1.009083 | Q84: 4.217501e-05 | R84: 16.81456 | S84: 29551.22 | T84: 20.66567 | U84: 26801.41 | V84: 0.4625633 | W84: 80487.29 | X84: 0.8736158 | Y84: 1.129738 | Z84: 16.72726 | AA84: 0 | AB84: NaN | AC84: 0.8299574 | AD84: 1.1123 | AE84: 97780.44 | AF84: 1.451863 | AG84: 13873.13 | AH84: 1.486799 | AI84: 3.644316 | AJ84: 40.82483
A85: 15PG-32-1@06 | D85: 9.755768 | E85: 0.06793318 | F85: 0.3784834 | G85: 0.1610318 | H85: 0.9877021 | I85: 0.3150466 | J85: 0.6547335 | K85: 2.633487 | L85: 0.4069773 | M85: 2.159304 | N85: 2.720974 | O85: 3.087956 | P85: 0.3548946 | Q85: 1.540914e-05 | R85: 23.57075 | S85: 86040.26 | T85: 23.57075 | U85: 14630.73 | V85: 3.269471 | W85: 46485.66 | X85: 3.668218 | Y85: 0.2186589 | Z85: 23.57023 | AA85: 0 | AB85: NaN | AC85: 0.784457 | AD85: 1.377392 | AE85: 99778.94 | AF85: 0.9548904 | AG85: 14159.82 | AH85: 1.211898 | AI85: 0 | AJ85: NaN
A86: 15PG-32-1@07 | D86: 9.729717 | E86: 0.06743054 | F86: 0.3636416 | G86: 0.1231108 | H86: 1.022263 | I86: 0.2973429 | J86: 0.9624368 | K86: 2.557514 | L86: 0.1725822 | M86: 2.368395 | N86: 3.731208 | O86: 2.231378 | P86: 0.2699791 | Q86: 2.886838e-05 | R86: 18.95837 | S86: 34669.61 | T86: 17.96131 | U86: 12974.88 | V86: 4.559549 | W86: 43766.06 | X86: 5.438485 | Y86: 0.3765792 | Z86: 18.99303 | AA86: 0 | AB86: NaN | AC86: 0.7566394 | AD86: 2.736342 | AE86: 102400.9 | AF86: 1.73148 | AG86: 14623.96 | AH86: 1.635323 | AI86: 4.251703 | AJ86: 43.64358
A87: 15PG-32-1@08 | D87: 9.890091 | E87: 0.06869033 | F87: 0.6833793 | G87: 0.1627832 | H87: 0.5916591 | I87: 0.3428592 | J87: 0.4576426 | K87: 2.774169 | L87: 0.3272567 | M87: 1.62433 | N87: 0.5678395 | O87: 3.114639 | P87: 0.2045842 | Q87: 0.0001031655 | R87: 7.626116 | S87: 9993.417 | T87: 7.626116 | U87: 20502.75 | V87: 0.8926619 | W87: 59234.68 | X87: 1.391761 | Y87: 2.089407 | Z87: 8.418531 | AA87: 0 | AB87: NaN | AC87: 0.8245354 | AD87: 1.422512 | AE87: 96189.75 | AF87: 1.163358 | AG87: 13671.39 | AH87: 0.9347472 | AI87: 3.644316 | AJ87: 40.82483
A88: 15PG-32-1@09 | D88: 9.736523 | E88: 0.0674341 | F88: 0.4103462 | G88: 0.2704159 | H88: 1.103548 | I88: 0.308321 | J88: 0.2405818 | K88: 2.56854 | L88: 0.2686686 | M88: 2.9436 | N88: 0.3988229 | O88: 5.174787 | P88: 0.8926159 | Q88: 1.57007e-05 | R88: 27.73565 | S88: NaN | T88: NaN | U88: 10188.46 | V88: 1.519906 | W88: 33049.09 | X88: 1.634369 | Y88: 0.157920 | Z88: 27.735010 | AA88: 0 | AB88: NaN | AC88: 0.5877563 | AD88: 1.030044 | AE88: 97250.38 | AF88: 1.309491 | AG88: 13719.04 | AH88: 1.34834 | AI88: 0 | AJ88: NaN
A89: PL@16 | D89: 9.816554 | E89: 0.05359842 | F89: 0.4357365 | G89: 0.0300832 | H89: 1.216956 | I89: 0.1262743 | J89: 1.070453 | K89: 2.658661 | L89: 1.152626 | M89: 0.7319019 | N89: 1.832165 | O89: 0.5722114 | P89: 0.1235848 | Q89: 2.261216e-05 | R89: 17.96114 | S89: 47086.28 | T89: 17.96114 | U89: 16595.32 | V89: 2.292432 | W89: 131529.4 | X89: 2.627804 | Y89: 0.376579 | Z89: 17.960530 | AA89: 0 | AB89: NaN | AC89: 0.7567335 | AD89: 1.689026 | AE89: 96042.54 | AF89: 1.549999 | AG89: 13789.8 | AH89: 1.499485 | AI89: 13.96989 | AJ89: 20.85144
A90: 15PG-32-1@10 | D90: 9.836816 | E90: 0.0675595 | F90: 0.3799415 | G90: 0.1168622 | H90: 1.219476 | I90: 0.3166933 | J90: 0.3353382 | K90: 2.594159 | L90: 0.484432 | M90: 2.643322 | N90: 0.5907491 | O90: 2.227403 | P90: 0.5949253 | Q90: 2.371169e-05 | R90: 20.85218 | S90: 41766.05 | T90: 20.85218 | U90: 11868.62 | V90: 1.296536 | W90: 37484.91 | X90: 1.516454 | Y90: 0.2793975 | Z90: 20.85144 | AA90: 0 | AB90: NaN | AC90: 0.7798718 | AD90: 1.30041 | AE90: 99038.65 | AF90: 1.036952 | AG90: 14005.52 | AH90: 0.9809702 | AI90: 1.822158 | AJ90: 69.38887
A91: 15PG-32-1@11 | D91: 9.587649 | E91: 0.06840427 | F91: 1.1407 | G91: 0.1838574 | H91: 1.769771 | I91: 0.2944445 | J91: 3.700503 | K91: 2.588218 | L91: 0.5011207 | M91: 5.620948 | N91: 10.83995 | O91: 3.408356 | P91: 1.347451 | Q91: 5.703813e-05 | R91: 20.00166 | S91: 23871.24 | T91: 26.19687 | U91: 5481.251 | V91: 10.69813 | W91: 19076.74 | X91: 13.46178 | Y91: 0.3036929 | Z91: 20 | AA91: 0 | AB91: NaN | AC91: 0.6729165 | AD91: 2.495912 | AE91: 98082.59 | AF91: 1.602146 | AG91: 13959.51 | AH91: 1.740607 | AI91: 0 | AJ91: NaN
A92: 15PG-32-1@12 | D92: 9.787764 | E92: 0.07089153 | F92: 0.4757037 | G92: 0.1946869 | H92: 0.7506752 | I92: 0.3269941 | J92: 0.287639 | K92: 2.685955 | L92: 0.8861167 | M92: 4.380308 | N92: 0.5538791 | O92: 3.629571 | P92: 0.2044603 | Q92: 0.0002719717 | R92: 7.835796 | S92: 3757.457 | T92: 7.835796 | U92: 7290.211 | V92: 0.7570924 | W92: 22295.87 | X92: 0.8344681 | Y92: 1.980078 | Z92: 7.832604 | AA92: 0 | AB92: NaN | AC92: 0.6949742 | AD92: 1.014051 | AE92: 96765.35 | AF92: 1.132939 | AG92: 13741.13 | AH92: 0.8889153 | AI92: 0 | AJ92: NaN
A93: 15PG-32-1@13 | D93: 9.677771 | E93: 0.06723109 | F93: 1.159811 | G93: 0.002350897 | H93: 9.359186 | I93: 0.3125431 | J93: 3.717596 | K93: 2.653666 | L93: 1.336431 | M93: 1.039625 | N93: 8.299445 | O93: 0.02898891 | P93: 5.571305 | Q93: 2.671803e-05 | R93: 13.52318 | S93: 42347.81 | T93: 15.1108 | U93: 30504.44 | V93: 8.721516 | W93: 97693.37 | X93: 8.200428 | Y93: 0.7774539 | Z93: 12.5 | AA93: 0 | AB93: NaN | AC93: 1.018131 | AD93: 1.890603 | AE93: 97457.46 | AF93: 1.242708 | AG93: 13841.1 | AH93: 1.432359 | AI93: 3.644316 | AJ93: 47.14045
A94: 15PG-32-1@14 | D94: 9.713679 | E94: 0.06767042 | F94: 0.430196 | G94: 0.005943335 | H94: 5.843345 | I94: 0.3053379 | J94: 1.015949 | K94: 2.617692 | L94: 0.3488952 | M94: 2.934028 | N94: 2.022391 | O94: 0.06838758 | P94: 5.651198 | Q94: 8.201976e-05 | R94: 16.96324 | S94: 14217.32 | T94: 15.08462 | U94: 9244.992 | V94: 2.356146 | W94: 30337.17 | X94: 3.314049 | Y94: 0.7531584 | Z94: 16.2362 | AA94: 0 | AB94: NaN | AC94: 0.9517993 | AD94: 1.482228 | AE94: 88655.47 | AF94: 1.344194 | AG94: 12722.17 | AH94: 1.543312 | AI94: 1.214772 | AJ94: 70.71068
A95: PL@17 | D95: 9.780176 | E95: 0.05367871 | F95: 0.5780973 | G95: 0.02858752 | H95: 2.048525 | I95: 0.124796 | J95: 0.310717 | K95: 2.660924 | L95: 0.5758249 | M95: 2.004294 | N95: 0.9824247 | O95: 0.5088219 | P95: 0.268869 | Q95: 1.79009e-05 | R95: 35.9521 | S95: NaN | T95: NaN | U95: 6169.026 | V95: 1.877634 | W95: 49441.95 | X95: 2.015124 | Y95: 0.1093294 | Z95: 36.85139 | AA95: 0 | AB95: NaN | AC95: 0.7818645 | AD95: 1.183898 | AE95: 98979.17 | AF95: 1.030671 | AG95: 14138.94 | AH95: 0.9223906 | AI95: 1.214772 | AJ95: 70.71068
A96: Qinghu@8 | D96: 9.701397 | E96: 0.05012153 | F96: 0.6246781 | G96: 0.1567851 | H96: 1.503776 | I96: 0.06027419 | J96: 0.8305785 | K96: 2.714415 | L96: 0.1292544 | M96: 1.010878 | N96: 0.2649552 | O96: 2.970028 | P96: 0.8995305 | Q96: 3.494648e-05 | R96: 36.78463 | S96: NaN | T96: NaN | U96: 5592.944 | V96: 0.7295593 | W96: 92859.16 | X96: 1.511124 | Y96: 0.1943635 | Z96: 36.62166 | AA96: 0 | AB96: NaN | AC96: 0.7008581 | AD96: 1.098936 | AE96: 93870.92 | AF96: 1.546115 | AG96: 13428.3 | AH96: 1.473373 | AI96: 5.466475 | AJ96: 33.33333
A97: 15PG-32-1@15 | D97: 9.770788 | E97: 0.06729369 | F97: 0.6972008 | G97: 0.1584701 | H97: 9.932114 | I97: 0.3245167 | J97: 0.4113822 | K97: 2.702411 | L97: 0.8380145 | M97: 5.04455 | N97: 1.270961 | O97: 3.157019 | P97: 8.794511 | Q97: 6.151786e-05 | R97: 17.9622 | S97: 19443.98 | T97: 17.9622 | U97: 6212.496 | V97: 0.3966965 | W97: 19084.46 | X97: 0.1952626 | Y97: 0.3765792 | Z97: 17.96053 | AA97: 0 | AB97: NaN | AC97: 0.7426019 | AD97: 0.2771018 | AE97: 96521.03 | AF97: 1.18323 | AG97: 13702.01 | AH97: 1.286955 | AI97: 0 | AJ97: NaN
A98: 15PG-32-1@16 | D98: 9.63936 | E98: 0.06760303 | F98: 0.576275 | G98: 0.2644882 | H98: 0.7777657 | I98: 0.3227756 | J98: 0.4179414 | K98: 2.690886 | L98: 0.5387454 | M98: 6.321824 | N98: 1.097322 | O98: 5.136551 | P98: 0.5876363 | Q98: 6.776348e-05 | R98: 18.57144 | S98: 16259.13 | T98: 18.57144 | U98: 5155.787 | V98: 2.056933 | W98: 15980.07 | X98: 2.343648 | Y98: 0.3522838 | Z98: 18.56953 | AA98: 0 | AB98: NaN | AC98: 0.725831 | AD98: 0.9990442 | AE98: 100874.7 | AF98: 1.325699 | AG98: 14345.56 | AH98: 1.563931 | AI98: 1.214772 | AJ98: 70.71068
A99: 15PG-32-1@17 | D99: 9.700693 | E99: 0.06528796 | F99: 1.822537 | G99: 0.07855689 | H99: 3.801238 | I99: 0.3824329 | J99: 3.506446 | K99: 2.681213 | L99: 1.109411 | M99: 1.770888 | N99: 21.61948 | O99: 1.709331 | P99: 4.614995 | Q99: 1.112947e-05 | R99: 30.64471 | S99: NaN | T99: NaN | U99: 28355.89 | V99: 20.91048 | W99: 75520.27 | X99: 22.75743 | Y99: 0.255102 | Z99: 26.22653 | AA99: 0 | AB99: NaN | AC99: 0.9687784 | AD99: 1.385931 | AE99: 97080.57 | AF99: 1.733812 | AG99: 13874.76 | AH99: 1.744681 | AI99: 2.429544 | AJ99: 52.04165
A100: 15PG-32-1@18 | D100: 9.733628 | E100: 0.06691861 | F100: 0.4422327 | G100: 0.2544881 | H100: 0.8439832 | I100: 0.3400355 | J100: 0.3439842 | K100: 2.746008 | L100: 0.8399746 | M100: 3.655569 | N100: 2.271623 | O100: 5.125257 | P100: 0.2864658 | Q100: 2.950297e-05 | R100: 21.82274 | S100: 35976.27 | T100: 21.82274 | U100: 8827.285 | V100: 1.855467 | W100: 25795.16 | X100: 2.154187 | Y100: 0.255102 | Z100: 21.82179 | AA100: 0 | AB100: NaN | AC100: 0.6369586 | AD100: 1.244105 | AE100: 94029.31 | AF100: 0.6189211 | AG100: 13301.99 | AH100: 0.9064601 | AI100: 2.429544 | AJ100: 50
A101: 15PG-32-1@19 | D101: 9.168563 | E101: 0.06627174 | F101: 0.5014612 | G101: 0.01891822 | H101: 3.823726 | I101: 0.3183461 | J101: 1.679192 | K101: 2.675585 | L101: 0.2498074 | M101: 3.563642 | N101: 4.936195 | O101: 0.2938991 | P101: 6.657923 | Q101: 5.151407e-05 | R101: 32.35876 | S101: 51233.94 | T101: 34.87402 | U101: 8296.333 | V101: 5.506405 | W101: 26165.94 | X101: 6.372477 | Y101: 0.4008746 | Z101: 29.89626 | AA101: 0 | AB101: NaN | AC101: 0.9506332 | AD101: 1.458015 | AE101: 91497.08 | AF101: 1.441645 | AG101: 13034.79 | AH101: 1.552018 | AI101: 1.822158 | AJ101: 69.38887
A102: PL@18 | D102: 9.388315 | E102: 0.05316503 | F102: 0.6586139 | G102: 0.02621846 | H102: 2.716461 | I102: 0.1274664 | J102: 0.2895365 | K102: 2.701608 | L102: 0.4602563 | M102: 2.214366 | N102: 0.8672181 | O102: 0.4981432 | P102: 0.2263955 | Q102: 2.16705e-05 | R102: 35.59733 | S102: NaN | T102: NaN | U102: 5459.087 | V102: 1.831819 | W102: 42829.14 | X102: 1.84639 | Y102: 0.1214772 | Z102: 36.96846 | AA102: 0 | AB102: NaN | AC102: 0.8054149 | AD102: 1.177996 | AE102: 94750.62 | AF102: 1.012513 | AG102: 13496.42 | AH102: 1.133255 | AI102: 2.125851 | AJ102: 44.72136
A103: 15PG-32-1@20 | D103: 9.334726 | E103: 0.06984749 | F103: 1.502898 | G103: 0.1063856 | H103: 3.073338 | I103: 0.3564442 | J103: 0.9187965 | K103: 2.77092 | L103: 0.6914781 | M103: 45.76371 | N103: 1.084192 | O103: 1.991459 | P103: 0.7264768 | Q103: 0.0001514669 | R103: 33.34073 | S103: NaN | T103: NaN | U103: 739.4598 | V103: 1.641194 | W103: 2074.786 | X103: 1.673541 | Y103: 0.1093294 | Z103: 33.33333 | AA103: 0 | AB103: NaN | AC103: 0.7812267 | AD103: 0.6375303 | AE103: 94876.43 | AF103: 1.202791 | AG103: 13498.25 | AH103: 1.620606 | AI103: 0 | AJ103: NaN
A104: 15PG-32-1@21 | D104: 9.317672 | E104: 0.07617993 | F104: 1.609216 | G104: 0.1838388 | H104: 2.101362 | I104: 0.3977766 | J104: 1.61031 | K104: 2.892364 | L104: 0.7719576 | M104: 11.25285 | N104: 1.109759 | O104: 3.357475 | P104: 0.490026 | Q104: 0.0005928013 | R104: 22.15448 | S104: 2168.272 | T104: 18.0797 | U104: 2813.894 | V104: 1.104095 | W104: 7092.042 | X104: 2.679241 | Y104: 1.65209 | Z104: 21.68806 | AA104: 0 | AB104: NaN | AC104: 0.6573712 | AD104: 1.030393 | AE104: 79909.74 | AF104: 3.560956 | AG104: 11259.03 | AH104: 3.722205 | AI104: 0 | AJ104: NaN
A105: 15PG-32-1@22 | D105: 9.348026 | E105: 0.06786716 | F105: 0.6129536 | G105: 0.003258947 | H105: 8.538822 | I105: 0.3408729 | J105: 1.992835 | K105: 2.82221 | L105: 1.172709 | M105: 2.387451 | N105: 7.324536 | O105: 0.04301596 | P105: 6.98502 | Q105: 5.198825e-05 | R105: 15.37598 | S105: 18765.38 | T105: 13.74568 | U105: 12490.77 | V105: 5.843628 | W105: 36885.13 | X105: 6.968912 | Y105: 0.643829 | Z105: 16.52066 | AA105: 0 | AB105: NaN | AC105: 0.9517273 | AD105: 1.20101 | AE105: 85383.9 | AF105: 0.786717 | AG105: 12151.7 | AH105: 0.6723982 | AI105: 0 | AJ105: NaN
A106: 15PG-32-1@23 | D106: 9.260172 | E106: 0.09040142 | F106: 1.616148 | G106: 0.1856314 | H106: 2.585208 | I106: 0.3401075 | J106: 1.196032 | K106: 2.676559 | L106: 0.4782822 | M106: 9.795957 | N106: 1.561141 | O106: 2.496978 | P106: 4.033348 | Q106: 0.001600986 | R106: 9.085302 | S106: 655.2284 | T106: 8.834602 | U106: 3180.552 | V106: 0.8896524 | W106: 9260.724 | X106: 0.517797 | Y106: 5.102042 | Z106: 9.491018 | AA106: 0 | AB106: NaN | AC106: 0.8789179 | AD106: 1.293322 | AE106: 91637.78 | AF106: 1.685983 | AG106: 13074.94 | AH106: 1.995959 | AI106: 1.214772 | AJ106: 70.71068
A107: 15PG-32-1@24 | D107: 9.392305 | E107: 0.06599604 | F107: 0.3565214 | G107: 0.0404175 | H107: 22.26167 | I107: 0.3377472 | J107: 1.445359 | K107: 2.606813 | L107: 1.270848 | M107: 1.317121 | N107: 10.15729 | O107: 0.8929771 | P107: 22.59779 | Q107: 1.448456e-05 | R107: 21.28445 | S107: 54674.11 | T107: 24.45131 | U107: 23083.59 | V107: 8.78285 | W107: 68661.09 | X107: 9.667901 | Y107: 0.3117914 | Z107: 21.89381 | AA107: 0 | AB107: NaN | AC107: 0.9808096 | AD107: 0.442053 | AE107: 85247.04 | AF107: 1.159899 | AG107: 12200.77 | AH107: 1.276852 | AI107: 4.251702 | AJ107: 37.79645
A108: PL@19 | D108: 9.229192 | E108: 0.05379667 | F108: 0.4197549 | G108: 0.05097551 | H108: 1.337601 | I108: 0.1274427 | J108: 0.527 | K108: 2.698293 | L108: 0.3325368 | M108: 1.023146 | N108: 1.037868 | O108: 0.9656209 | P108: 0.2491265 | Q108: 1.133644e-05 | R108: 30.15165 | S108: NaN | T108: NaN | U108: 11683.85 | V108: 1.864252 | W108: 91741.72 | X108: 2.335562 | Y108: 0.1336249 | Z108: 30.60456 | AA108: 0 | AB108: NaN | AC108: 0.7307805 | AD108: 1.140079 | AE108: 93731.06 | AF108: 1.332957 | AG108: 13274.42 | AH108: 1.281883 | AI108: 4.859089 | AJ108: 35.35535
A109: Qinghu@9 | D109: 9.31423 | E109: 0.04956609 | F109: 0.5543092 | G109: 0.1954703 | H109: 1.349706 | I109: 0.06107535 | J109: 0.483898 | K109: 2.708755 | L109: 0.1608408 | M109: 0.7852097 | N109: 0.3347616 | O109: 3.702949 | P109: 1.471326 | Q109: 1.355078e-05 | R109: 35.49554 | S109: NaN | T109: NaN | U109: 7169.676 | V109: 0.6186897 | W109: 117416.8 | X109: 0.9427357 | Y109: 0.09718173 | Z109: 35.35534 | AA109: 0 | AB109: NaN | AC109: 0.6225765 | AD109: 0.9993124 | AE109: 92778.1 | AF109: 1.391129 | AG109: 13159.67 | AH109: 1.723239 | AI109: 6.681247 | AJ109: 30.15113
A110: 15PG-32-1@25 | D110: 9.36907 | E110: 0.06764063 | F110: 0.7476661 | G110: 0.2063075 | H110: 1.689897 | I110: 0.3400251 | J110: 2.297461 | K110: 2.732159 | L110: 1.241425 | M110: 7.744966 | N110: 3.755729 | O110: 4.042121 | P110: 0.7006467 | Q110: 7.678743e-05 | R110: 20.20118 | S110: NaN | T110: NaN | U110: 4169.961 | V110: 2.028709 | W110: 12297.57 | X110: 2.755111 | Y110: 0.3158406 | Z110: 20.10819 | AA110: 0 | AB110: NaN | AC110: 0.6772383 | AD110: 1.574642 | AE110: 94654.86 | AF110: 0.8452727 | AG110: 13388.76 | AH110: 1.204703 | AI110: 1.214772 | AJ110: 70.71068
A111: 16YX-1-2@1 | D111: 7.42588 | E111: 0.0706736 | F111: 0.9926506 | G111: 0.008570405 | H111: 11.14003 | I111: 0.3028895 | J111: 3.312725 | K111: 2.792113 | L111: 0.7695081 | M111: 0.7932153 | N111: 21.73155 | O111: 0.09860495 | P111: 6.734478 | Q111: 9.239113e-05 | R111: 23.74268 | S111: 17547.59 | T111: 29.29529 | U111: 40191.02 | V111: 28.62756 | W111: 131966 | X111: 26.68698 | Y111: 2.405248 | Z111: 7.106691 | AA111: 0 | AB111: NaN | AC111: 1.191985 | AD111: 1.646 | AE111: 70814.11 | AF111: 0.6757476 | AG111: 10049.56 | AH111: 0.9910967 | AI111: 3.036931 | AJ111: 66.3325
A112: 16YX-1-2@2 | D112: 7.43519 | E112: 0.07739052 | F112: 2.800276 | G112: 0.06415046 | H112: 10.6254 | I112: 0.3793488 | J112: 3.64169 | K112: 3.07231 | L112: 1.168864 | M112: 2.826569 | N112: 5.262062 | O112: 0.949525 | P112: 23.03376 | Q112: 0.000967789 | R112: 25.5357 | S112: 1653.425 | T112: 29.63746 | U112: 10203.27 | V112: 3.732927 | W112: 27261.29 | X112: 6.783577 | Y112: 9.475225 | Z112: 24.25756 | AA112: 0 | AB112: NaN | AC112: 0.9376525 | AD112: 1.15029 | AE112: 75418.17 | AF112: 1.507619 | AG112: 10754.69 | AH112: 1.735455 | AI112: 0 | AJ112: NaN
A113: 16YX-1-2@4 | D113: 7.359306 | E113: 0.0687496 | F113: 1.820432 | G113: 0.1325782 | H113: 3.64353 | I113: 0.09363041 | J113: 0.4466835 | K113: 2.687826 | L113: 0.3008148 | M113: 1.479295 | N113: 1.438918 | O113: 1.771319 | P113: 2.386339 | Q113: 0.001083315 | R113: 6.577718 | S113: 947.7379 | T113: 6.659747 | U113: 4279.12 | V113: 2.3512 | W113: 45696.05 | X113: 2.198501 | Y113: 4.603986 | Z113: 5.215117 | AA113: 0 | AB113: NaN | AC113: 0.8833507 | AD113: 1.128919 | AE113: 67472.09 | AF113: 0.8483836 | AG113: 9537.42 | AH113: 0.9185958 | AI113: 1.417234 | AJ113: 63.24555
A114: 16YX-1-2@5 | D114: 7.39404 | E114: 0.07184708 | F114: 2.550478 | G114: 0.0163186 | H114: 28.83821 | I114: 0.2948801 | J114: 3.398264 | K114: 2.68566 | L114: 1.014072 | M114: 1.568138 | N114: 10.04357 | O114: 0.1552321 | P114: 16.61228 | Q114: 0.0002862793 | R114: 37.91619 | S114: 6863.76 | T114: 26.76078 | U114: 12697.24 | V114: 13.73117 | W114: 42635.34 | X114: 12.25481 | Y114: 2.526725 | Z114: 17.68203 | AA114: 0 | AB114: NaN | AC114: 1.147777 | AD114: 3.357131 | AE114: 70411.34 | AF114: 0.8897088 | AG114: 9962.007 | AH114: 1.153371 | AI114: 1.822158 | AJ114: 57.73503
A115: PL@20 | D115: 7.353829 | E115: 0.05326332 | F115: 0.3923695 | G115: 0.03954685 | H115: 0.9492736 | I115: 0.1380749 | J115: 0.4030438 | K115: 2.819496 | L115: 0.4616167 | M115: 0.47216 | N115: 0.8199558 | O115: 0.7767738 | P115: 0.157495 | Q115: 8.258341e-06 | R115: 26.72645 | S115: NaN | T115: NaN | U115: 20854.33 | V115: 2.049742 | W115: 150979.8 | X115: 1.668667 | Y115: 0.170068 | Z115: 26.72612 | AA115: 0 | AB115: NaN | AC115: 0.7805219 | AD115: 0.9352785 | AE115: 71229.99 | AF115: 0.8949005 | AG115: 10049.97 | AH115: 1.190107 | AI115: 10.32557 | AJ115: 24.25356
A116: 16YX-1-2@6 | D116: 7.392163 | E116: 0.08966723 | F116: 1.890993 | G116: 0.1436485 | H116: 2.924208 | I116: 0.170081 | J116: 0.2411086 | K116: 2.750094 | L116: 0.3301729 | M116: 1.421019 | N116: 0.4467674 | O116: 1.178065 | P116: 0.5985169 | Q116: 0.002261788 | R116: 2.8537 | S116: 444.3919 | T116: 2.979203 | U116: 8409.452 | V116: 1.238882 | W116: 49445.13 | X116: 1.262502 | Y116: 19.03549 | Z116: 3.448441 | AA116: 0 | AB116: NaN | AC116: 0.9716447 | AD116: 1.002897 | AE116: 70239.93 | AF116: 0.8433951 | AG116: 10109.14 | AH116: 0.6328148 | AI116: 1.822158 | AJ116: 69.38887
A117: 16YX-1-2@7 | D117: 7.373465 | E117: 0.0923078 | F117: 0.6542908 | G117: 0.09873757 | H117: 2.252923 | I117: 0.4827423 | J117: 0.3822252 | K117: 3.397593 | L117: 0.8033571 | M117: 2.648425 | N117: 1.315047 | O117: 0.7989789 | P117: 5.35655 | Q117: 0.001934509 | R117: 2.849283 | S117: 519.3263 | T117: 2.707397 | U117: 11436.71 | V117: 0.5611087 | W117: 23657.56 | X117: 0.8164637 | Y117: 22.10887 | Z117: 2.441196 | AA117: 0 | AB117: NaN | AC117: 1.00115 | AD117: 1.193968 | AE117: 63430.32 | AF117: 0.5803838 | AG117: 9110.217 | AH117: 0.6420051 | AI117: 3.03693 | AJ117: 44.72136
A118: 16YX-1-2@11 | D118: 7.364547 | E118: 0.08066801 | F118: 1.3506 | G118: 0.1093856 | H118: 2.775622 | I118: 0.1580028 | J118: 0.6717185 | K118: 2.643766 | L118: 0.1238766 | M118: 0.865674 | N118: 3.022767 | O118: 0.8767474 | P118: 2.045311 | Q118: 0.001648002 | R118: 3.015152 | S118: 609.8954 | T118: 2.818142 | U118: 11469.15 | V118: 3.123883 | W118: 72695.16 | X118: 3.767087 | Y118: 18.81683 | Z118: 2.540822 | AA118: 0 | AB118: NaN | AC118: 0.9678757 | AD118: 0.868356 | AE118: 62503.6 | AF118: 0.7935239 | AG118: 8906.555 | AH118: 0.9290195 | AI118: 3.644316 | AJ118: 40.82483
A119: 16YX-1-2@12 | D119: 7.353282 | E119: 0.06769303 | F119: 0.3702644 | G119: 0.04242406 | H119: 4.480253 | I119: 0.3546218 | J119: 0.9948574 | K119: 2.832556 | L119: 0.3127837 | M119: 1.819184 | N119: 1.218794 | O119: 0.8264473 | P119: 5.190993 | Q119: 8.649732e-05 | R119: 9.536058 | S119: 10825.52 | T119: 10.08148 | U119: 13352.53 | V119: 2.219914 | W119: 37638.37 | X119: 1.656208 | Y119: 1.176304 | Z119: 9.534626 | AA119: 0 | AB119: NaN | AC119: 0.8733609 | AD119: 0.603582 | AE119: 68392.92 | AF119: 0.6645195 | AG119: 9733.395 | AH119: 0.6677577 | AI119: 1.214772 | AJ119: 70.71068
A120: 16YX-1-2@13 | D120: 7.319642 | E120: 0.0692327 | F120: 1.109028 | G120: 0.01493021 | H120: 7.231762 | I120: 0.3472044 | J120: 2.755145 | K120: 2.859361 | L120: 0.4073647 | M120: 0.4396371 | N120: 4.860716 | O120: 0.1712315 | P120: 16.34327 | Q120: 0.0001157211 | R120: 4.407342 | S120: 8658.255 | T120: 4.407342 | U120: 50854.92 | V120: 6.93755 | W120: 145541.5 | X120: 4.872616 | Y120: 6.256076 | Z120: 4.827109 | AA120: 0 | AB120: NaN | AC120: 1.122306 | AD120: 1.438463 | AE120: 63085.96 | AF120: 0.7255505 | AG120: 8915.066 | AH120: 0.8661057 | AI120: 5.466475 | AJ120: 40.57204
A121: PL@21 | D121: 7.314635 | E121: 0.05321128 | F121: 0.3612851 | G121: 0.03389724 | H121: 1.412349 | I121: 0.1379945 | J121: 0.2233086 | K121: 2.834338 | L121: 0.4540084 | M121: 0.5987731 | N121: 0.7436457 | O121: 0.6767911 | P121: 0.1901286 | Q121: 1.660523e-05 | R121: 25.01249 | S121: 92051.19 | T121: 26.35935 | U121: 15911.5 | V121: 1.738952 | W121: 115282.6 | X121: 1.52125 | Y121: 0.2672498 | Z121: 25.44372 | AA121: 0 | AB121: NaN | AC121: 0.7872167 | AD121: 0.8641698 | AE121: 68982.6 | AF121: 0.815504 | AG121: 9767.444 | AH121: 0.9502415 | AI121: 8.503406 | AJ121: 26.72612
A122: Qinghu@10 | D122: 7.293826 | E122: 0.04974223 | F122: 1.073337 | G122: 0.1806665 | H122: 2.344963 | I122: 0.06342376 | J122: 2.493863 | K122: 2.796568 | L122: 0.3202046 | M122: 1.048708 | N122: 5.089391 | O122: 3.5422 | P122: 0.9280788 | Q122: 5.365021e-05 | R122: 22.9434 | S122: 23951.85 | T122: 22.9434 | U122: 4357.551 | V122: 4.040185 | W122: 69102.2 | X122: 5.302696 | Y122: 0.2308066 | Z122: 22.94157 | AA122: 0 | AB122: NaN | AC122: 0.7428176 | AD122: 1.182697 | AE122: 71312.18 | AF122: 0.9305219 | AG122: 10110.77 | AH122: 1.091358 | AI122: 4.251702 | AJ122: 35.35534
A123: 16YX-1-2@14 | D123: 7.355081 | E123: 0.08531816 | F123: 1.527234 | G123: 0.1803384 | H123: 2.122401 | I123: 0.1699267 | J123: 1.402815 | K123: 2.802126 | L123: 0.4523928 | M123: 1.015048 | N123: 0.8058063 | O123: 2.546604 | P123: 0.3588397 | Q123: 0.001973269 | R123: 6.099236 | S123: 519.1366 | T123: 6.565399 | U123: 11508.86 | V123: 3.42554 | W123: 69232.69 | X123: 1.172128 | Y123: 22.83773 | Z123: 8.310659 | AA123: 0 | AB123: NaN | AC123: 0.8985883 | AD123: 0.8160279 | AE123: 69926.34 | AF123: 0.7686478 | AG123: 9943.157 | AH123: 0.930864 | AI123: 4.859089 | AJ123: 40.18188
A124: 16YX-1-2@15 | D124: 7.289445 | E124: 0.06960329 | F124: 0.6350091 | G124: 0.01071888 | H124: 17.21876 | I124: 0.3017338 | J124: 1.6614 | K124: 2.704073 | L124: 0.4579097 | M124: 1.225563 | N124: 21.06359 | O124: 0.1725505 | P124: 16.16232 | Q124: 4.057819e-05 | R124: 31.28048 | S124: 34647.5 | T124: 28.7523 | U124: 22038.45 | V124: 20.49564 | W124: 71916.69 | X124: 18.99887 | Y124: 0.5952381 | Z124: 16.19848 | AA124: 0 | AB124: NaN | AC124: 1.084034 | AD124: 2.499597 | AE124: 68681.08 | AF124: 0.8873879 | AG124: 9694.282 | AH124: 0.9477661 | AI124: 3.644316 | AJ124: 40.82483
A125: 16YX-1-2@16 | D125: 7.334976 | E125: 0.06842346 | F125: 0.5631639 | G125: 0.1203645 | H125: 2.381106 | I125: 0.3475058 | J125: 0.463619 | K125: 2.783271 | L125: 0.4448767 | M125: 4.451202 | N125: 1.592773 | O125: 2.45502 | P125: 2.064495 | Q125: 5.093116e-05 | R125: 18.25928 | S125: 19682.35 | T125: 18.25928 | U125: 5349.003 | V125: 1.734816 | W125: 15523.4 | X125: 1.787116 | Y125: 0.2692744 | Z125: 18.25742 | AA125: 0 | AB125: NaN | AC125: 0.7626234 | AD125: 0.2307013 | AE125: 68984.38 | AF125: 0.5760985 | AG125: 9794.805 | AH125: 1.090625 | AI125: 0 | AJ125: NaN
A126: PL@22 | D126: 8.961093 | E126: 0.05535756 | F126: 0.6424518 | G126: 0.0355187 | H126: 2.02436 | I126: 0.1302131 | J126: 0.3632079 | K126: 2.739232 | L126: 0.4132867 | M126: 1.286606 | N126: 0.8517592 | O126: 0.5959279 | P126: 0.1861866 | Q126: 0.0001456803 | R126: 11.48535 | S126: 7491.81 | T126: 12.33952 | U126: 9321.114 | V126: 1.614848 | W126: 71613.13 | X126: 1.962413 | Y126: 1.348397 | Z126: 10.60872 | AA126: 0 | AB126: NaN | AC126: 0.7715674 | AD126: 0.9953348 | AE126: 92046.31 | AF126: 1.122965 | AG126: 13136.76 | AH126: 1.098097 | AI126: 4.859089 | AJ126: 35.35535
A127: Qinghu@11 | D127: 9.003182 | E127: 0.0495954 | F127: 1.043583 | G127: 0.1398667 | H127: 1.087973 | I127: 0.06161123 | J127: 0.6340552 | K127: 2.75882 | L127: 0.09655259 | M127: 0.8340617 | N127: 0.6420816 | O127: 2.684488 | P127: 0.3651147 | Q127: 3.531369e-05 | R127: 25.37644 | S127: 42230.14 | T127: 24.92774 | U127: 6611.81 | V127: 1.396035 | W127: 107394.1 | X127: 2.006193 | Y127: 0.2308066 | Z127: 25.05764 | AA127: 0 | AB127: NaN | AC127: 0.7165982 | AD127: 0.9854968 | AE127: 89505.39 | AF127: 1.375979 | AG127: 12686.29 | AH127: 1.210326 | AI127: 1.822158 | AJ127: 57.73503

Sheet Raw data for Hf isotope
A1: Run | B1: Date | C1: 176Yb (ppm) | D1: 176Lu (ppm) | E1: 178Hf/177Hf | F1: 2SE | G1: 180Hf/177Hf | H1: 2SE | I1: 176Yb/177Hf | J1: 2SE | K1: 176Lu/177Hf | L1: 2SE | M1: 176Hf/177Hf | N1: 2SE | O1: Number
A2: 15PG-32-1-01.xls | B2: 2018-05-10 | C2: 72790 | D2: 2566 | E2: 1.467236 | F2: 0.000040 | G2: 1.886945 | H2: 0.000072 | I2: 0.026258 | J2: 0.000506 | K2: 0.000925 | L2: 0.000018 | M2: 0.282285 | N2: 0.000013 | O2: 200
A3: 15PG-32-1-02.xls | B3: 2018-05-10 | C3: 75062 | D3: 2812 | E3: 1.467194 | F3: 0.000042 | G3: 1.887017 | H3: 0.000079 | I3: 0.031709 | J3: 0.001097 | K3: 0.001192 | L3: 0.000041 | M3: 0.282303 | N3: 0.000014 | O3: 200
A4: 15PG-32-1-05.xls | B4: 2018-05-10 | C4: 99268 | D4: 3865 | E4: 1.467228 | F4: 0.000031 | G4: 1.886990 | H4: 0.000074 | I4: 0.029520 | J4: 0.000649 | K4: 0.001153 | L4: 0.000022 | M4: 0.282348 | N4: 0.000012 | O4: 200
A5: 15PG-32-1-06.xls | B5: 2018-05-10 | C5: 44222 | D5: 1595 | E5: 1.467213 | F5: 0.000048 | G5: 1.886990 | H5: 0.000097 | I5: 0.027093 | J5: 0.000081 | K5: 0.000982 | L5: 0.000004 | M5: 0.282321 | N5: 0.000019 | O5: 200
A6: 15PG-32-1-07.xls | B6: 2018-05-10 | C6: 33309 | D6: 1222 | E6: 1.467193 | F6: 0.000049 | G6: 1.886898 | H6: 0.000106 | I6: 0.021623 | J6: 0.000130 | K6: 0.000794 | L6: 0.000003 | M6: 0.282312 | N6: 0.000019 | O6: 200
A7: 15PG-32-1-08.xls | B7: 2018-05-10 | C7: 73793 | D7: 2805 | E7: 1.467202 | F7: 0.000047 | G7: 1.886925 | H7: 0.000090 | I7: 0.043073 | J7: 0.000321 | K7: 0.001637 | L7: 0.000012 | M7: 0.282326 | N7: 0.000019 | O7: 200
A8: 15PG-32-1-09.xls | B8: 2018-05-10 | C8: 34400 | D8: 1278 | E8: 1.467239 | F8: 0.000053 | G8: 1.886838 | H8: 0.000120 | I8: 0.027258 | J8: 0.000558 | K8: 0.001011 | L8: 0.000020 | M8: 0.282352 | N8: 0.000025 | O8: 200
A9: 15PG-32-1-10.xls | B9: 2018-05-10 | C9: 49198 | D9: 1963 | E9: 1.467192 | F9: 0.000047 | G9: 1.886750 | H9: 0.000104 | I9: 0.035768 | J9: 0.000920 | K9: 0.001430 | L9: 0.000035 | M9: 0.282437 | N9: 0.000022 | O9: 200
A10: 15PG-32-1-11.xls | B10: 2018-05-10 | C10: 56064 | D10: 2401 | E10: 1.467244 | F10: 0.000040 | G10: 1.886897 | H10: 0.000090 | I10: 0.023847 | J10: 0.000258 | K10: 0.001020 | L10: 0.000010 | M10: 0.282547 | N10: 0.000016 | O10: 200
A11: 15PG-32-1-12.xls | B11: 2018-05-10 | C11: 32679 | D11: 1270 | E11: 1.467267 | F11: 0.000060 | G11: 1.886874 | H11: 0.000130 | I11: 0.027180 | J11: 0.000551 | K11: 0.001061 | L11: 0.000018 | M11: 0.282258 | N11: 0.000023 | O11: 200
A12: 15PG-32-1-16.xls | B12: 2018-05-10 | C12: 32755 | D12: 1270 | E12: 1.467166 | F12: 0.000041 | G12: 1.886763 | H12: 0.000105 | I12: 0.022131 | J12: 0.000294 | K12: 0.000863 | L12: 0.000011 | M12: 0.282298 | N12: 0.000017 | O12: 200
A13: 15PG-32-1-18.xls | B13: 2018-05-10 | C13: 93925 | D13: 3510 | E13: 1.467248 | F13: 0.000038 | G13: 1.886846 | H13: 0.000095 | I13: 0.039677 | J13: 0.000796 | K13: 0.001482 | L13: 0.000029 | M13: 0.282246 | N13: 0.000014 | O13: 200
A14: 15PG-32-1-20.xls | B14: 2018-05-10 | C14: 19676 | D14: 876 | E14: 1.467246 | F14: 0.000050 | G14: 1.887018 | H14: 0.000111 | I14: 0.016150 | J14: 0.000587 | K14: 0.000719 | L14: 0.000025 | M14: 0.282567 | N14: 0.000023 | O14: 200
A15: 15PG-32-1-23.xls | B15: 2018-05-10 | C15: 22505 | D15: 941 | E15: 1.467229 | F15: 0.000052 | G15: 1.887021 | H15: 0.000109 | I15: 0.015807 | J15: 0.000646 | K15: 0.000657 | L15: 0.000025 | M15: 0.282565 | N15: 0.000020 | O15: 200
A16: 15PG-32-1-25.xls | B16: 2018-05-10 | C16: 23560 | D16: 1026 | E16: 1.467150 | F16: 0.000055 | G16: 1.886738 | H16: 0.000109 | I16: 0.019139 | J16: 0.000738 | K16: 0.000834 | L16: 0.000032 | M16: 0.282352 | N16: 0.000021 | O16: 200
A17: 15PG-32-1-04.xls | B17: 2018-05-10 | C17: 75458 | D17: 2879 | E17: 1.467197 | F17: 0.000036 | G17: 1.886842 | H17: 0.000076 | I17: 0.027318 | J17: 0.000288 | K17: 0.001043 | L17: 0.000015 | M17: 0.282319 | N17: 0.000014 | O17: 200
A18: 15PG-32-1-13.xls | B18: 2018-05-10 | C18: 51686 | D18: 1938 | E18: 1.467181 | F18: 0.000052 | G18: 1.886993 | H18: 0.000113 | I18: 0.039079 | J18: 0.001614 | K18: 0.001454 | L18: 0.000056 | M18: 0.282202 | N18: 0.000020 | O18: 200
A19: 15PG-32-1-14.xls | B19: 2018-05-10 | C19: 48032 | D19: 2002 | E19: 1.467155 | F19: 0.000048 | G19: 1.887019 | H19: 0.000120 | I19: 0.036631 | J19: 0.001359 | K19: 0.001513 | L19: 0.000052 | M19: 0.282185 | N19: 0.000022 | O19: 200
A20: 15PG-32-1-15.xls | B20: 2018-05-10 | C20: 41006 | D20: 1671 | E20: 1.467219 | F20: 0.000050 | G20: 1.886979 | H20: 0.000114 | I20: 0.025217 | J20: 0.000729 | K20: 0.001026 | L20: 0.000031 | M20: 0.282274 | N20: 0.000018 | O20: 200
A21: 15PG-32-1-17.xls | B21: 2018-05-10 | C21: 17726 | D21: 792 | E21: 1.467245 | F21: 0.000044 | G21: 1.886813 | H21: 0.000118 | I21: 0.010469 | J21: 0.000397 | K21: 0.000466 | L21: 0.000019 | M21: 0.282447 | N21: 0.000019 | O21: 200
A22: 15PG-32-1-19.xls | B22: 2018-05-10 | C22: 46839 | D22: 1946 | E22: 1.467244 | F22: 0.000058 | G22: 1.886985 | H22: 0.000126 | I22: 0.035280 | J22: 0.002486 | K22: 0.001393 | L22: 0.000077 | M22: 0.282210 | N22: 0.000022 | O22: 200
A23: 15PG-32-1-21.xls | B23: 2018-05-10 | C23: 83505 | D23: 3298 | E23: 1.467192 | F23: 0.000052 | G23: 1.886800 | H23: 0.000120 | I23: 0.067971 | J23: 0.001472 | K23: 0.002683 | L23: 0.000053 | M23: 0.282609 | N23: 0.000022 | O23: 200
A24: 15PG-32-1-24.xls | B24: 2018-05-10 | C24: 30938 | D24: 1220 | E24: 1.467252 | F24: 0.000051 | G24: 1.886913 | H24: 0.000106 | I24: 0.020387 | J24: 0.000364 | K24: 0.000803 | L24: 0.000015 | M24: 0.282519 | N24: 0.000022 | O24: 200
A26: 16YX-1-1-1.xls | B26: 2018-05-10 | C26: 42716 | D26: 1724 | E26: 1.467250 | F26: 0.000054 | G26: 1.886835 | H26: 0.000135 | I26: 0.040189 | J26: 0.000720 | K26: 0.001620 | L26: 0.000028 | M26: 0.282462 | N26: 0.000024 | O26: 200
A27: 16YX-1-1-3.xls | B27: 2018-05-10 | C27: 43478 | D27: 1644 | E27: 1.467142 | F27: 0.000052 | G27: 1.886993 | H27: 0.000142 | I27: 0.040569 | J27: 0.000402 | K27: 0.001538 | L27: 0.000015 | M27: 0.282430 | N27: 0.000029 | O27: 200
A28: 16YX-1-1-4.xls | B28: 2018-05-10 | C28: 40509 | D28: 1670 | E28: 1.467221 | F28: 0.000044 | G28: 1.886803 | H28: 0.000099 | I28: 0.026083 | J28: 0.001266 | K28: 0.001078 | L28: 0.000049 | M28: 0.282472 | N28: 0.000022 | O28: 200
A29: 16YX-1-1-9.xls | B29: 2018-05-10 | C29: 38126 | D29: 1444 | E29: 1.467243 | F29: 0.000059 | G29: 1.887042 | H29: 0.000117 | I29: 0.028866 | J29: 0.000308 | K29: 0.001102 | L29: 0.000014 | M29: 0.282256 | N29: 0.000023 | O29: 200
A30: 16YX-1-1-14.xls | B30: 2018-05-10 | C30: 37267 | D30: 1507 | E30: 1.467092 | F30: 0.000059 | G30: 1.886800 | H30: 0.000160 | I30: 0.028918 | J30: 0.000187 | K30: 0.001169 | L30: 0.000006 | M30: 0.282295 | N30: 0.000026 | O30: 123
A31: 16YX-1-1-15.xls | B31: 2018-05-10 | C31: 33608 | D31: 1358 | E31: 1.467123 | F31: 0.000053 | G31: 1.886809 | H31: 0.000123 | I31: 0.029218 | J31: 0.000363 | K31: 0.001183 | L31: 0.000015 | M31: 0.282532 | N31: 0.000021 | O31: 200
A32: 16YX-1-1-17.xls | B32: 2018-05-10 | C32: 89686 | D32: 3307 | E32: 1.467166 | F32: 0.000053 | G32: 1.886804 | H32: 0.000100 | I32: 0.079811 | J32: 0.002076 | K32: 0.002945 | L32: 0.000078 | M32: 0.282609 | N32: 0.000027 | O32: 200
A33: 16YX-1-1-24.xls | B33: 2018-05-10 | C33: 44007 | D33: 1707 | E33: 1.467190 | F33: 0.000047 | G33: 1.886886 | H33: 0.000106 | I33: 0.037464 | J33: 0.000907 | K33: 0.001454 | L33: 0.000038 | M33: 0.282431 | N33: 0.000022 | O33: 200
A34: 16YX-1-1-25.xls | B34: 2018-05-10 | C34: 43082 | D34: 1593 | E34: 1.467146 | F34: 0.000054 | G34: 1.886998 | H34: 0.000131 | I34: 0.037521 | J34: 0.000505 | K34: 0.001385 | L34: 0.000018 | M34: 0.282302 | N34: 0.000024 | O34: 200
A35: 16YX-1-1-26.xls | B35: 2018-05-10 | C35: 30967 | D35: 1212 | E35: 1.467220 | F35: 0.000056 | G35: 1.886920 | H35: 0.000133 | I35: 0.031664 | J35: 0.001044 | K35: 0.001239 | L35: 0.000040 | M35: 0.282405 | N35: 0.000025 | O35: 200
A36: 16YX-1-1-28.xls | B36: 2018-05-10 | C36: 40457 | D36: 1464 | E36: 1.467244 | F36: 0.000050 | G36: 1.886859 | H36: 0.000105 | I36: 0.032668 | J36: 0.001768 | K36: 0.001182 | L36: 0.000065 | M36: 0.282350 | N36: 0.000022 | O36: 200
A37: 16YX-1-1-32.xls | B37: 2018-05-10 | C37: 66214 | D37: 2585 | E37: 1.467104 | F37: 0.000036 | G37: 1.886846 | H37: 0.000077 | I37: 0.033355 | J37: 0.000446 | K37: 0.001306 | L37: 0.000019 | M37: 0.282335 | N37: 0.000014 | O37: 200
A38: 16YX-1-1-33.xls | B38: 2018-05-10 | C38: 44750 | D38: 1779 | E38: 1.467092 | F38: 0.000057 | G38: 1.886976 | H38: 0.000118 | I38: 0.043285 | J38: 0.001711 | K38: 0.001721 | L38: 0.000068 | M38: 0.282524 | N38: 0.000025 | O38: 200
A39: 16YX-1-1-2.xls | B39: 2018-05-10 | C39: 38795 | D39: 1435 | E39: 1.467180 | F39: 0.000052 | G39: 1.887004 | H39: 0.000097 | I39: 0.025292 | J39: 0.000882 | K39: 0.000942 | L39: 0.000035 | M39: 0.282305 | N39: 0.000021 | O39: 200
A40: 16YX-1-1-5.xls | B40: 2018-05-10 | C40: 41803 | D40: 1599 | E40: 1.467163 | F40: 0.000045 | G40: 1.886931 | H40: 0.000109 | I40: 0.025140 | J40: 0.000384 | K40: 0.000966 | L40: 0.000013 | M40: 0.282319 | N40: 0.000023 | O40: 200
A41: 16YX-1-1-6.xls | B41: 2018-05-10 | C41: 69189 | D41: 2647 | E41: 1.467149 | F41: 0.000044 | G41: 1.886720 | H41: 0.000104 | I41: 0.037679 | J41: 0.001816 | K41: 0.001436 | L41: 0.000074 | M41: 0.282378 | N41: 0.000019 | O41: 200
A42: 16YX-1-1-7.xls | B42: 2018-05-10 | C42: 57692 | D42: 1975 | E42: 1.467213 | F42: 0.000043 | G42: 1.886874 | H42: 0.000099 | I42: 0.026963 | J42: 0.000161 | K42: 0.000922 | L42: 0.000005 | M42: 0.282345 | N42: 0.000016 | O42: 200
A43: 16YX-1-1-8.xls | B43: 2018-05-10 | C43: 51677 | D43: 2022 | E43: 1.467166 | F43: 0.000060 | G43: 1.886828 | H43: 0.000125 | I43: 0.045052 | J43: 0.002630 | K43: 0.001782 | L43: 0.000109 | M43: 0.282446 | N43: 0.000022 | O43: 200
A44: 16YX-1-1-10.xls | B44: 2018-05-10 | C44: 34045 | D44: 1291 | E44: 1.467140 | F44: 0.000048 | G44: 1.887031 | H44: 0.000110 | I44: 0.021794 | J44: 0.000401 | K44: 0.000830 | L44: 0.000014 | M44: 0.282286 | N44: 0.000019 | O44: 200
A45: 16YX-1-1-11.xls | B45: 2018-05-10 | C45: 39072 | D45: 1384 | E45: 1.467228 | F45: 0.000043 | G45: 1.886664 | H45: 0.000091 | I45: 0.023053 | J45: 0.000934 | K45: 0.000812 | L45: 0.000038 | M45: 0.282349 | N45: 0.000022 | O45: 200
A46: 16YX-1-1-12.xls | B46: 2018-05-10 | C46: 45944 | D46: 1636 | E46: 1.467127 | F46: 0.000045 | G46: 1.886773 | H46: 0.000098 | I46: 0.020020 | J46: 0.000747 | K46: 0.000713 | L46: 0.000026 | M46: 0.282355 | N46: 0.000015 | O46: 200
A47: 16YX-1-1-13.xls | B47: 2018-05-10 | C47: 80258 | D47: 2968 | E47: 1.467214 | F47: 0.000053 | G47: 1.886654 | H47: 0.000112 | I47: 0.036128 | J47: 0.000867 | K47: 0.001343 | L47: 0.000036 | M47: 0.282366 | N47: 0.000016 | O47: 200
A48: 16YX-1-1-18.xls | B48: 2018-05-10 | C48: 120593 | D48: 4778 | E48: 1.467113 | F48: 0.000036 | G48: 1.887013 | H48: 0.000081 | I48: 0.039650 | J48: 0.001136 | K48: 0.001564 | L48: 0.000048 | M48: 0.282336 | N48: 0.000017 | O48: 200
A49: 16YX-1-1-19.xls | B49: 2018-05-10 | C49: 40753 | D49: 1570 | E49: 1.467182 | F49: 0.000042 | G49: 1.886940 | H49: 0.000086 | I49: 0.017498 | J49: 0.000643 | K49: 0.000677 | L49: 0.000023 | M49: 0.282272 | N49: 0.000019 | O49: 200
A50: 16YX-1-1-20.xls | B50: 2018-05-10 | C50: 75707 | D50: 2765 | E50: 1.467172 | F50: 0.000033 | G50: 1.887035 | H50: 0.000072 | I50: 0.026234 | J50: 0.000424 | K50: 0.000959 | L50: 0.000016 | M50: 0.282310 | N50: 0.000013 | O50: 200
A51: 16YX-1-1-21.xls | B51: 2018-05-10 | C51: 69059 | D51: 2530 | E51: 1.467169 | F51: 0.000057 | G51: 1.886915 | H51: 0.000123 | I51: 0.058902 | J51: 0.001510 | K51: 0.002163 | L51: 0.000057 | M51: 0.282427 | N51: 0.000025 | O51: 200
A52: 16YX-1-1-22.xls | B52: 2018-05-10 | C52: 138302 | D52: 5063 | E52: 1.467142 | F52: 0.000034 | G52: 1.886924 | H52: 0.000077 | I52: 0.050875 | J52: 0.001337 | K52: 0.001864 | L52: 0.000050 | M52: 0.282357 | N52: 0.000015 | O52: 200
A53: 16YX-1-1-27.xls | B53: 2018-05-10 | C53: 50727 | D53: 2047 | E53: 1.467162 | F53: 0.000042 | G53: 1.887067 | H53: 0.000086 | I53: 0.023653 | J53: 0.000139 | K53: 0.000957 | L53: 0.000005 | M53: 0.282379 | N53: 0.000017 | O53: 200
A55: 16YX-1-2-1.xls | B55: 2018-05-10 | C55: 132963 | D55: 5266 | E55: 1.466926 | F55: 0.000116 | G55: 1.887480 | H55: 0.000234 | I55: 0.061946 | J55: 0.002026 | K55: 0.002431 | L55: 0.000087 | M55: 0.282272 | N55: 0.000045 | O55: 200
A56: 16YX-1-2-2.xls | B56: 2018-05-10 | C56: 113562 | D56: 4034 | E56: 1.466736 | F56: 0.000157 | G56: 1.887393 | H56: 0.000273 | I56: 0.069629 | J56: 0.000673 | K56: 0.002491 | L56: 0.000015 | M56: 0.282411 | N56: 0.000035 | O56: 123
A57: 16YX-1-2-3.xls | B57: 2018-05-10 | C57: 105181 | D57: 4912 | E57: 1.467244 | F57: 0.000061 | G57: 1.886821 | H57: 0.000120 | I57: 0.042728 | J57: 0.001993 | K57: 0.001999 | L57: 0.000083 | M57: 0.282429 | N57: 0.000019 | O57: 130
A58: 16YX-1-2-4.xls | B58: 2018-05-10 | C58: 34161 | D58: 1464 | E58: 1.466973 | F58: 0.000096 | G58: 1.887186 | H58: 0.000242 | I58: 0.022826 | J58: 0.000921 | K58: 0.000977 | L58: 0.000042 | M58: 0.282417 | N58: 0.000032 | O58: 107
A59: 16YX-1-2-5.xls | B59: 2018-05-10 | C59: 132256 | D59: 5366 | E59: 1.466907 | F59: 0.000101 | G59: 1.887488 | H59: 0.000247 | I59: 0.054191 | J59: 0.001074 | K59: 0.002173 | L59: 0.000041 | M59: 0.282209 | N59: 0.000036 | O59: 200
A60: 16YX-1-2-6.xls | B60: 2018-05-10 | C60: 47309 | D60: 1791 | E60: 1.467415 | F60: 0.000101 | G60: 1.886419 | H60: 0.000173 | I60: 0.016944 | J60: 0.000529 | K60: 0.000641 | L60: 0.000019 | M60: 0.282394 | N60: 0.000025 | O60: 200
A61: 16YX-1-2-7.xls | B61: 2018-05-10 | C61: 49217 | D61: 1926 | E61: 1.466920 | F61: 0.000135 | G61: 1.887562 | H61: 0.000229 | I61: 0.036380 | J61: 0.000456 | K61: 0.001434 | L61: 0.000023 | M61: 0.282309 | N61: 0.000047 | O61: 125
A62: 16YX-1-2-11.xls | B62: 2018-05-10 | C62: 35601 | D62: 1365 | E62: 1.467059 | F62: 0.000087 | G62: 1.887251 | H62: 0.000149 | I62: 0.032137 | J62: 0.001456 | K62: 0.001220 | L62: 0.000053 | M62: 0.282308 | N62: 0.000028 | O62: 200
A63: 16YX-1-2-12.xls | B63: 2018-05-10 | C63: 110899 | D63: 4347 | E63: 1.467213 | F63: 0.000035 | G63: 1.887059 | H63: 0.000085 | I63: 0.045323 | J63: 0.000385 | K63: 0.001774 | L63: 0.000015 | M63: 0.282514 | N63: 0.000013 | O63: 200
A64: 16YX-1-2-13.xls | B64: 2018-05-10 | C64: 51622 | D64: 2015 | E64: 1.466966 | F64: 0.000098 | G64: 1.887504 | H64: 0.000230 | I64: 0.050325 | J64: 0.000911 | K64: 0.001937 | L64: 0.000034 | M64: 0.282083 | N64: 0.000045 | O64: 139
A65: 16YX-1-2-14.xls | B65: 2018-05-10 | C65: 90560 | D65: 3389 | E65: 1.467153 | F65: 0.000032 | G65: 1.886884 | H65: 0.000073 | I65: 0.033146 | J65: 0.002037 | K65: 0.001234 | L65: 0.000071 | M65: 0.282250 | N65: 0.000012 | O65: 200
A66: 16YX-1-2-15.xls | B66: 2018-05-10 | C66: 157181 | D66: 6055 | E66: 1.467304 | F66: 0.000086 | G66: 1.886710 | H66: 0.000148 | I66: 0.060304 | J66: 0.002854 | K66: 0.002312 | L66: 0.000105 | M66: 0.282351 | N66: 0.000018 | O66: 200
A68: 16YX-4-1-01.xls | B68: 2018-05-10 | C68: 59738 | D68: 2395 | E68: 1.467181 | F68: 0.000044 | G68: 1.887018 | H68: 0.000100 | I68: 0.030041 | J68: 0.000765 | K68: 0.001201 | L68: 0.000028 | M68: 0.282354 | N68: 0.000016 | O68: 200
A69: 16YX-4-1-02.xls | B69: 2018-05-10 | C69: 49669 | D69: 1940 | E69: 1.467173 | F69: 0.000041 | G69: 1.886906 | H69: 0.000088 | I69: 0.025263 | J69: 0.000394 | K69: 0.000989 | L69: 0.000014 | M69: 0.282304 | N69: 0.000018 | O69: 200
A70: 16YX-4-1-04.xls | B70: 2018-05-10 | C70: 139213 | D70: 5142 | E70: 1.467179 | F70: 0.000032 | G70: 1.886938 | H70: 0.000077 | I70: 0.046616 | J70: 0.000631 | K70: 0.001714 | L70: 0.000020 | M70: 0.282391 | N70: 0.000011 | O70: 200
A71: 16YX-4-1-05.xls | B71: 2018-05-10 | C71: 57620 | D71: 2164 | E71: 1.467189 | F71: 0.000035 | G71: 1.886980 | H71: 0.000082 | I71: 0.023565 | J71: 0.000234 | K71: 0.000888 | L71: 0.000011 | M71: 0.282326 | N71: 0.000015 | O71: 200
A72: 16YX-4-1-06.xls | B72: 2018-05-10 | C72: 58750 | D72: 2274 | E72: 1.467154 | F72: 0.000060 | G72: 1.887163 | H72: 0.000116 | I72: 0.050501 | J72: 0.000957 | K72: 0.001961 | L72: 0.000035 | M72: 0.282494 | N72: 0.000023 | O72: 200
A73: 16YX-4-1-07.xls | B73: 2018-05-10 | C73: 24036 | D73: 1016 | E73: 1.467194 | F73: 0.000059 | G73: 1.886981 | H73: 0.000124 | I73: 0.022309 | J73: 0.000270 | K73: 0.000947 | L73: 0.000011 | M73: 0.282558 | N73: 0.000023 | O73: 200
A74: 16YX-4-1-10.xls | B74: 2018-05-10 | C74: 47984 | D74: 1738 | E74: 1.467215 | F74: 0.000038 | G74: 1.886987 | H74: 0.000079 | I74: 0.019520 | J74: 0.000241 | K74: 0.000709 | L74: 0.000008 | M74: 0.282177 | N74: 0.000015 | O74: 200
A75: 16YX-4-1-11.xls | B75: 2018-05-10 | C75: 60877 | D75: 2676 | E75: 1.467236 | F75: 0.000033 | G75: 1.886991 | H75: 0.000078 | I75: 0.023314 | J75: 0.000533 | K75: 0.001024 | L75: 0.000022 | M75: 0.282493 | N75: 0.000013 | O75: 200
A76: 16YX-4-1-12.xls | B76: 2018-05-10 | C76: 18789 | D76: 793 | E76: 1.467154 | F76: 0.000056 | G76: 1.887027 | H76: 0.000125 | I76: 0.014141 | J76: 0.000486 | K76: 0.000596 | L76: 0.000021 | M76: 0.282426 | N76: 0.000024 | O76: 200
A77: 16YX-4-1-14.xls | B77: 2018-05-10 | C77: 54835 | D77: 2102 | E77: 1.467161 | F77: 0.000033 | G77: 1.886962 | H77: 0.000076 | I77: 0.020053 | J77: 0.000077 | K77: 0.000769 | L77: 0.000003 | M77: 0.282264 | N77: 0.000013 | O77: 200
A78: 16YX-4-1-16.xls | B78: 2018-05-10 | C78: 26080 | D78: 1156 | E78: 1.467132 | F78: 0.000044 | G78: 1.886977 | H78: 0.000101 | I78: 0.018574 | J78: 0.000651 | K78: 0.000819 | L78: 0.000026 | M78: 0.282304 | N78: 0.000020 | O78: 200
A79: 16YX-4-1-19.xls | B79: 2018-05-10 | C79: 30246 | D79: 1137 | E79: 1.467166 | F79: 0.000054 | G79: 1.887070 | H79: 0.000133 | I79: 0.030245 | J79: 0.000499 | K79: 0.001138 | L79: 0.000019 | M79: 0.282285 | N79: 0.000025 | O79: 200
A80: 16YX-4-1-21.xls | B80: 2018-05-10 | C80: 43476 | D80: 2017 | E80: 1.467180 | F80: 0.000033 | G80: 1.886952 | H80: 0.000071 | I80: 0.018744 | J80: 0.000863 | K80: 0.000869 | L80: 0.000039 | M80: 0.282527 | N80: 0.000014 | O80: 200
A81: 16YX-4-1-22.xls | B81: 2018-05-10 | C81: 24134 | D81: 967 | E81: 1.467138 | F81: 0.000057 | G81: 1.886941 | H81: 0.000129 | I81: 0.019469 | J81: 0.000270 | K81: 0.000782 | L81: 0.000010 | M81: 0.282547 | N81: 0.000024 | O81: 200
A82: 16YX-4-1-24.xls | B82: 2018-05-10 | C82: 31729 | D82: 1394 | E82: 1.467187 | F82: 0.000037 | G82: 1.887008 | H82: 0.000087 | I82: 0.014799 | J82: 0.000384 | K82: 0.000652 | L82: 0.000017 | M82: 0.282277 | N82: 0.000015 | O82: 200
A83: 16YX-4-1-25.xls | B83: 2018-05-10 | C83: 74253 | D83: 2992 | E83: 1.467149 | F83: 0.000033 | G83: 1.886843 | H83: 0.000083 | I83: 0.031155 | J83: 0.000570 | K83: 0.001257 | L83: 0.000022 | M83: 0.282342 | N83: 0.000015 | O83: 200
A84: 16YX-4-1-30.xls | B84: 2018-05-10 | C84: 67173 | D84: 2567 | E84: 1.467156 | F84: 0.000043 | G84: 1.886827 | H84: 0.000081 | I84: 0.032117 | J84: 0.000749 | K84: 0.001230 | L84: 0.000026 | M84: 0.282329 | N84: 0.000016 | O84: 200
A85: 16YX-4-1-31.xls | B85: 2018-05-10 | C85: 91177 | D85: 3441 | E85: 1.467117 | F85: 0.000039 | G85: 1.886998 | H85: 0.000087 | I85: 0.044043 | J85: 0.001125 | K85: 0.001671 | L85: 0.000038 | M85: 0.282345 | N85: 0.000017 | O85: 200
A86: 16YX-4-1-33.xls | B86: 2018-05-10 | C86: 153642 | D86: 6089 | E86: 1.467186 | F86: 0.000029 | G86: 1.886871 | H86: 0.000067 | I86: 0.052500 | J86: 0.002984 | K86: 0.002083 | L86: 0.000122 | M86: 0.282273 | N86: 0.000014 | O86: 200
A87: 16YX-4-1-34.xls | B87: 2018-05-10 | C87: 44041 | D87: 1946 | E87: 1.467186 | F87: 0.000039 | G87: 1.887076 | H87: 0.000085 | I87: 0.020218 | J87: 0.000444 | K87: 0.000895 | L87: 0.000021 | M87: 0.282468 | N87: 0.000015 | O87: 200
A88: 16YX-4-1-35.xls | B88: 2018-05-10 | C88: 23606 | D88: 1029 | E88: 1.467169 | F88: 0.000034 | G88: 1.886966 | H88: 0.000075 | I88: 0.008922 | J88: 0.000074 | K88: 0.000390 | L88: 0.000003 | M88: 0.282351 | N88: 0.000012 | O88: 200
A89: 16YX-4-1-15.xls | B89: 2018-05-10 | C89: 42836 | D89: 1990 | E89: 1.467222 | F89: 0.000042 | G89: 1.887031 | H89: 0.000094 | I89: 0.025218 | J89: 0.000518 | K89: 0.001176 | L89: 0.000026 | M89: 0.282350 | N89: 0.000018 | O89: 200
A90: 16YX-4-1-17.xls | B90: 2018-05-10 | C90: 39105 | D90: 1411 | E90: 1.467160 | F90: 0.000055 | G90: 1.887022 | H90: 0.000113 | I90: 0.028647 | J90: 0.000614 | K90: 0.001036 | L90: 0.000021 | M90: 0.282010 | N90: 0.000021 | O90: 200
A91: 16YX-4-1-20.xls | B91: 2018-05-10 | C91: 50664 | D91: 2044 | E91: 1.467191 | F91: 0.000046 | G91: 1.886986 | H91: 0.000104 | I91: 0.030419 | J91: 0.000558 | K91: 0.001223 | L91: 0.000024 | M91: 0.282298 | N91: 0.000021 | O91: 200
A92: 16YX-4-1-26.xls | B92: 2018-05-10 | C92: 42439 | D92: 1672 | E92: 1.467185 | F92: 0.000058 | G92: 1.887063 | H92: 0.000142 | I92: 0.038652 | J92: 0.000894 | K92: 0.001501 | L92: 0.000028 | M92: 0.282356 | N92: 0.000024 | O92: 200
A93: 16YX-4-1-27.xls | B93: 2018-05-10 | C93: 64091 | D93: 2439 | E93: 1.467140 | F93: 0.000050 | G93: 1.887068 | H93: 0.000112 | I93: 0.050323 | J93: 0.000626 | K93: 0.001898 | L93: 0.000025 | M93: 0.282393 | N93: 0.000022 | O93: 200
A94: 16YX-4-1-28.xls | B94: 2018-05-10 | C94: 22265 | D94: 961 | E94: 1.467087 | F94: 0.000044 | G94: 1.886971 | H94: 0.000095 | I94: 0.013145 | J94: 0.000651 | K94: 0.000570 | L94: 0.000024 | M94: 0.282485 | N94: 0.000022 | O94: 200
A95: 16YX-4-1-29.xls | B95: 2018-05-10 | C95: 33865 | D95: 1313 | E95: 1.467146 | F95: 0.000054 | G95: 1.887016 | H95: 0.000132 | I95: 0.030730 | J95: 0.000606 | K95: 0.001194 | L95: 0.000026 | M95: 0.282312 | N95: 0.000025 | O95: 200
A96: 16YX-4-1-36.xls | B96: 2018-05-10 | C96: 16294 | D96: 655 | E96: 1.467207 | F96: 0.000052 | G96: 1.887082 | H96: 0.000105 | I96: 0.012078 | J96: 0.000544 | K96: 0.000484 | L96: 0.000022 | M96: 0.282418 | N96: 0.000021 | O96: 200
A98: 91500-1.xls | B98: 2018-05-10 | C98: 9731 | D98: 405 | E98: 1.467197 | F98: 0.000047 | G98: 1.886931 | H98: 0.000122 | I98: 0.007260 | J98: 0.000007 | K98: 0.000302 | L98: 0.000000 | M98: 0.282278 | N98: 0.000024 | O98: 200
A99: 91500-2.xls | B99: 2018-05-10 | C99: 6592 | D99: 260 | E99: 1.467369 | F99: 0.000097 | G99: 1.886484 | H99: 0.000200 | I99: 0.007834 | J99: 0.000014 | K99: 0.000310 | L99: 0.000001 | M99: 0.282333 | N99: 0.000029 | O99: 200
A100: 91500-3.xls | B100: 2018-05-10 | C100: 11766 | D100: 463 | E100: 1.467222 | F100: 0.000050 | G100: 1.887062 | H100: 0.000108 | I100: 0.007798 | J100: 0.000007 | K100: 0.000307 | L100: 0.000000 | M100: 0.282248 | N100: 0.000018 | O100: 200
A101: 91500-4.xls | B101: 2018-05-10 | C101: 11917 | D101: 471 | E101: 1.467115 | F101: 0.000044 | G101: 1.886868 | H101: 0.000108 | I101: 0.007632 | J101: 0.000009 | K101: 0.000302 | L101: 0.000000 | M101: 0.282276 | N101: 0.000018 | O101: 200
A102: 91500-5.xls | B102: 2018-05-10 | C102: 11436 | D102: 452 | E102: 1.467172 | F102: 0.000042 | G102: 1.886967 | H102: 0.000091 | I102: 0.007625 | J102: 0.000008 | K102: 0.000302 | L102: 0.000000 | M102: 0.282281 | N102: 0.000016 | O102: 200
A103: 91500-6.xls | B103: 2018-05-10 | C103: 13083 | D103: 514 | E103: 1.467220 | F103: 0.000043 | G103: 1.886874 | H103: 0.000106 | I103: 0.007654 | J103: 0.000014 | K103: 0.000302 | L103: 0.000000 | M103: 0.282295 | N103: 0.000019 | O103: 200
A104: 91500-7.xls | B104: 2018-05-10 | C104: 12216 | D104: 483 | E104: 1.467163 | F104: 0.000039 | G104: 1.886782 | H104: 0.000105 | I104: 0.007597 | J104: 0.000014 | K104: 0.000301 | L104: 0.000000 | M104: 0.282290 | N104: 0.000019 | O104: 200
A105: 91500-8.xls | B105: 2018-05-10 | C105: 12524 | D105: 496 | E105: 1.467224 | F105: 0.000047 | G105: 1.886912 | H105: 0.000098 | I105: 0.007470 | J105: 0.000010 | K105: 0.000297 | L105: 0.000000 | M105: 0.282292 | N105: 0.000018 | O105: 200
A106: 91500-9.xls | B106: 2018-05-10 | C106: 12473 | D106: 493 | E106: 1.467206 | F106: 0.000043 | G106: 1.886785 | H106: 0.000098 | I106: 0.007568 | J106: 0.000008 | K106: 0.000300 | L106: 0.000000 | M106: 0.282278 | N106: 0.000017 | O106: 200
A107: 91500-10.xls | B107: 2018-05-10 | C107: 12367 | D107: 488 | E107: 1.467173 | F107: 0.000044 | G107: 1.886898 | H107: 0.000101 | I107: 0.007539 | J107: 0.000015 | K107: 0.000298 | L107: 0.000000 | M107: 0.282304 | N107: 0.000018 | O107: 200
A108: 91500-11.xls | B108: 2018-05-10 | C108: 12487 | D108: 493 | E108: 1.467256 | F108: 0.000042 | G108: 1.886836 | H108: 0.000095 | I108: 0.007606 | J108: 0.000012 | K108: 0.000301 | L108: 0.000000 | M108: 0.282319 | N108: 0.000019 | O108: 200
A109: 91500-12.xls | B109: 2018-05-10 | C109: 11609 | D109: 454 | E109: 1.467649 | F109: 0.000205 | G109: 1.886259 | H109: 0.000294 | I109: 0.007708 | J109: 0.000053 | K109: 0.000299 | L109: 0.000001 | M109: 0.282334 | N109: 0.000030 | O109: 200
A110: 91500-13.xls | B110: 2018-05-10 | C110: 11831 | D110: 465 | E110: 1.467197 | F110: 0.000052 | G110: 1.886707 | H110: 0.000115 | I110: 0.007554 | J110: 0.000026 | K110: 0.000298 | L110: 0.000000 | M110: 0.282296 | N110: 0.000018 | O110: 200
A111: 91500-14.xls | B111: 2018-05-10 | C111: 11861 | D111: 469 | E111: 1.467227 | F111: 0.000046 | G111: 1.886917 | H111: 0.000093 | I111: 0.007561 | J111: 0.000017 | K111: 0.000300 | L111: 0.000000 | M111: 0.282286 | N111: 0.000019 | O111: 200
A112: 91500-15.xls | B112: 2018-05-10 | C112: 11367 | D112: 451 | E112: 1.467210 | F112: 0.000043 | G112: 1.886819 | H112: 0.000084 | I112: 0.007421 | J112: 0.000016 | K112: 0.000296 | L112: 0.000000 | M112: 0.282294 | N112: 0.000018 | O112: 200
A113: 91500-16.xls | B113: 2018-05-10 | C113: 10654 | D113: 426 | E113: 1.467240 | F113: 0.000049 | G113: 1.886823 | H113: 0.000102 | I113: 0.007019 | J113: 0.000015 | K113: 0.000281 | L113: 0.000000 | M113: 0.282314 | N113: 0.000018 | O113: 200
A115: mt-1.xls | B115: 2018-05-10 | C115: 886 | D115: 33 | E115: 1.467310 | F115: 0.000062 | G115: 1.886714 | H115: 0.000123 | I115: 0.000386 | J115: 0.000006 | K115: 0.000014 | L115: 0.000000 | M115: 0.282502 | N115: 0.000014 | O115: 200
A116: mt-2.xls | B116: 2018-05-10 | C116: 404 | D116: 14 | E116: 1.467138 | F116: 0.000053 | G116: 1.886854 | H116: 0.000107 | I116: 0.000323 | J116: 0.000006 | K116: 0.000011 | L116: 0.000000 | M116: 0.282464 | N116: 0.000019 | O116: 200
A117: mt-3.xls | B117: 2018-05-10 | C117: 1792 | D117: 63 | E117: 1.467203 | F117: 0.000037 | G117: 1.886965 | H117: 0.000082 | I117: 0.000778 | J117: 0.000004 | K117: 0.000028 | L117: 0.000000 | M117: 0.282479 | N117: 0.000015 | O117: 200
A118: mt-4.xls | B118: 2018-05-10 | C118: 1314 | D118: 46 | E118: 1.467146 | F118: 0.000034 | G118: 1.886920 | H118: 0.000077 | I118: 0.000555 | J118: 0.000004 | K118: 0.000020 | L118: 0.000000 | M118: 0.282479 | N118: 0.000015 | O118: 200
A119: mt-5.xls | B119: 2018-05-10 | C119: 1981 | D119: 70 | E119: 1.467235 | F119: 0.000035 | G119: 1.886873 | H119: 0.000086 | I119: 0.000814 | J119: 0.000004 | K119: 0.000029 | L119: 0.000000 | M119: 0.282509 | N119: 0.000014 | O119: 200
A120: mt-6.xls | B120: 2018-05-10 | C120: 1245 | D120: 44 | E120: 1.467270 | F120: 0.000042 | G120: 1.886959 | H120: 0.000089 | I120: 0.000492 | J120: 0.000003 | K120: 0.000017 | L120: 0.000000 | M120: 0.282491 | N120: 0.000014 | O120: 200
A121: mt-7.xls | B121: 2018-05-10 | C121: 2320 | D121: 82 | E121: 1.467214 | F121: 0.000038 | G121: 1.886848 | H121: 0.000085 | I121: 0.000933 | J121: 0.000011 | K121: 0.000033 | L121: 0.000000 | M121: 0.282490 | N121: 0.000013 | O121: 200
A122: mt-8.xls | B122: 2018-05-10 | C122: 2411 | D122: 86 | E122: 1.467393 | F122: 0.000111 | G122: 1.886554 | H122: 0.000177 | I122: 0.000978 | J122: 0.000004 | K122: 0.000035 | L122: 0.000000 | M122: 0.282505 | N122: 0.000016 | O122: 200
A123: mt-9.xls | B123: 2018-05-10 | C123: 1133 | D123: 39 | E123: 1.467238 | F123: 0.000037 | G123: 1.886888 | H123: 0.000083 | I123: 0.000450 | J123: 0.000004 | K123: 0.000016 | L123: 0.000000 | M123: 0.282481 | N123: 0.000013 | O123: 200
A124: mt-10.xls | B124: 2018-05-10 | C124: 971 | D124: 34 | E124: 1.467255 | F124: 0.000049 | G124: 1.886764 | H124: 0.000095 | I124: 0.000377 | J124: 0.000004 | K124: 0.000013 | L124: 0.000000 | M124: 0.282481 | N124: 0.000014 | O124: 200
A125: mt-11.xls | B125: 2018-05-10 | C125: 1628 | D125: 58 | E125: 1.467206 | F125: 0.000039 | G125: 1.886843 | H125: 0.000077 | I125: 0.000617 | J125: 0.000003 | K125: 0.000022 | L125: 0.000000 | M125: 0.282501 | N125: 0.000012 | O125: 200
A126: mt-12.xls | B126: 2018-05-10 | C126: 1528 | D126: 54 | E126: 1.467206 | F126: 0.000035 | G126: 1.886821 | H126: 0.000084 | I126: 0.000589 | J126: 0.000004 | K126: 0.000021 | L126: 0.000000 | M126: 0.282475 | N126: 0.000014 | O126: 200
A127: mt-13.xls | B127: 2018-05-10 | C127: 1432 | D127: 51 | E127: 1.467209 | F127: 0.000034 | G127: 1.886909 | H127: 0.000083 | I127: 0.000548 | J127: 0.000007 | K127: 0.000019 | L127: 0.000000 | M127: 0.282467 | N127: 0.000014 | O127: 200
A128: mt-14.xls | B128: 2018-05-10 | C128: 1826 | D128: 65 | E128: 1.467232 | F128: 0.000033 | G128: 1.886855 | H128: 0.000078 | I128: 0.000706 | J128: 0.000005 | K128: 0.000025 | L128: 0.000000 | M128: 0.282490 | N128: 0.000014 | O128: 200
